Workbook

Sheet Instructions
B2: =CONCATENATE(dms_Sector," ",dms_Segment," ", "Network Service Provider") -> Electricity Distribution Network Service Provider
B3: =IF(dms_Model="Reset","Regulatory Proposal RIN Template","Annual Reporting RIN") -> Regulatory Proposal RIN Template
B4: =CONCATENATE("This template is to be used by ",INDEX(dms_TradingNameFull_List,MATCH(dms_TradingName,dms_TradingName_List))," to fulfil its reporting obligations to the AER.") -> This template is to be used by Energex to fulfil its reporting obligations to the AER.
B5: INSTRUCTIONS
B6: GENERAL | C6: Complete the Business & other details worksheet before entering data or values in any other worksheets. The Business & other details worksheet is linked to other worksheets within the workbook and automatically generates certain column headings and conditional formatting.
B8: CONFIDENTIAL INFORMATION | C8: Businesses must use the macro at the top of each worksheet to identify confidential information in the confidential workbook and where confidential information has been removed in the public workbook.
C9: -Do this by selecting the cell or cells that contain confidential information and then run the CONFIDENTIAL macro. This will format the cells a specific colour that is identified by the AER's database which in turn marks that information as confidential. -To reverse this, select the cell or cells and run the NON-CONFIDENTIAL macro.
B11: PROTECTED (SOCI) INFORMATION | C11: Please use the macro at the top of each worksheet to identify information in the confidential workbook that is protected information under the SOCI Act. All information marked Protected (SOCI) is also deemed to be confidential information.
C12: -Do this by selecting the cell or cells that contain protected information and then run the PROTECTED (SOCI) macro. This will format the cells a specific colour that is identified by the AER's database which in turn marks that information as protected.. -To reverse this, select the cell or cells and run the NON-PROTECTED macro.
B14: RESPONSES | C14: Please return two (2) files to the AER: 1. A confidential version which must contain a complete set of all responses with confidential information marked using the Mark selection CONFIDENTIAL macro and which has been completed using the locked template file provided by the AER. 2. A public version with confidential information redacted or aggregated. Use the drop down box on the Business and other details worksheet to identify the file as either confidential or public.
B17: ORDER OF MAGNITUDE | C17: All amounts are to be unrounded and reported on a one for one basis: that is 1000 is to be entered as '1000'.
B19: INPUT / NON-INPUT CELLS
D20: Yellow = Input cell (mandatory)
D21: Darker yellow = input cell (mandatory)
D22: Orange = input cell (if data available)
D23: Grey = Not applicable/No inputs required
D24: PLEASE DO NOT ENTER TEXT into cells that are to contain numbers (including 'numbers stored as text')

Sheet CONTENTS
C1: =IF(dms_MultiYear_ResponseFlag="Yes","REGULATORY REPORTING STATEMENT - HISTORICAL INFORMATION",INDEX(dms_Worksheet_List,MATCH(dms_Model,dms_Model_List))) -> REGULATORY REPORTING STATEMENT
C2: =INDEX(dms_TradingNameFull_List,MATCH(dms_TradingName,dms_TradingName_List)) -> Energex
C3: =CONCATENATE("REGULATORY PERIOD FROM ", FRCP_y1," TO ",dms_MultiYear_FinalYear_Result) -> REGULATORY PERIOD FROM 2025-26 TO 2029-30
D7: CONTENTS
D9: DRAFT RIN ONLY - DO NOT USE FOR SUBMISSION
D11: TEMPLATE | E11: OCTOBER 2023 - FINAL RIN
D13: SUBMISSION | E13: Business & other details
D15: EXPENDITURE | E15: 2.1 Expenditure summary
E16: 2.2 Repex
E17: 2.3 Augex (b)
E18: 2.5 Connections
E19: 2.6 Non-network
E20: 2.10 Overheads
E21: 2.11 Labour
E22: 2.14 FORECAST price changes
E23: 2.16 Opex Summary
E24: 2.17 Step Changes
D26: ECONOMIC BENCHMARKING | E26: 3.1 Revenue
E27: 3.2 Operating expenditure
E28: 3.3 Assets (RAB)
E29: 3.4 Operational data
E30: 3.5 Physical assets
E31: 3.6 Quality of service
E32: 3.7 Operating Environment
D34: ALTERNATIVE CONTROL | E34: 4.1 Public lighting
D36: NETWORK | E36: 5.4 MD & utilisation-Spatial
D38: SERVICE | E38: 6.2 Reliability & Cust serv
D40: OTHER | E40: 7.1 Policies and Procedures
E41: 7.2 Contingent projects
E42: 7.3 Obligations
E43: 7.4 Shared Assets
E44: 7.7 TSS-LRMC
E45: 7.8 Export Services

Sheet Business & other details
V1: =INDEX(dms_Worksheet_List,MATCH(dms_Model,dms_Model_List)) -> REGULATORY REPORTING STATEMENT
V2: =INDEX(dms_TradingNameFull_List,MATCH(dms_TradingName,dms_TradingName_List)) -> Energex
V3: =CONCATENATE("REGULATORY PERIOD FROM ", FRCP_y1," TO ",dms_MultiYear_FinalYear_Result) -> REGULATORY PERIOD FROM 2025-26 TO 2029-30
V4: BUSINESS & OTHER DETAILS
V6: INSTRUCTIONS
V7: Complete the following business details regulatory template before entering data or values in any other regulatory template. This regulatory template is linked to other cells within the spreadsheet and automatically generates column headings and conditional formatting to distinguish business specific input and non-input cells.
Q9: SUBMISSION PARTICULARS INPUT SHEET
Q11: DRAFT TEMPLATE ONLY
Q12: DO NOT USE FOR SUBMISSIONS
V15: ENTITY DETAILS
V17: Business Name
V19: Short name | AL19: Energex
V20: ACN/ABN | AL20: =INDEX(dms_ABN_List,MATCH(dms_TradingName,dms_TradingName_List)) -> 40078849055
V24: Business Address | BQ24: Postal Address
V26: Address 1 | AL26: =INDEX(dms_Addr1_List,MATCH(dms_TradingName,dms_TradingName_List)) -> 26 Reddacliff Street | BI26: Address 1 | BQ26: =INDEX(dms_PAddr1_List,MATCH(dms_TradingName,dms_TradingName_List)) -> 26 Reddacliff Street
V27: Address 2 | AL27: =IF(ISBLANK(INDEX(dms_Addr2_List,MATCH(dms_TradingName,dms_TradingName_List))),"",(INDEX(dms_Addr2_List,MATCH(dms_TradingName,dms_TradingName_List)))) ->  | BI27: Address 2 | BQ27: =IF(ISBLANK(INDEX(dms_PAddr2_List,MATCH(dms_TradingName,dms_TradingName_List))),"",(INDEX(dms_PAddr2_List,MATCH(dms_TradingName,dms_TradingName_List)))) -> 
V28: Suburb | AL28: =INDEX(dms_Suburb_List,MATCH(dms_TradingName,dms_TradingName_List)) -> NEWSTEAD | BI28: Suburb | BQ28: =INDEX(dms_PSuburb_List,MATCH(dms_TradingName,dms_TradingName_List)) -> NEWSTEAD
V29: State | AL29: =INDEX(dms_State_List,MATCH(dms_TradingName,dms_TradingName_List)) -> Qld | AV29: Post code | BI29: State | BQ29: =INDEX(dms_PState_List,MATCH(dms_TradingName,dms_TradingName_List)) -> QLD | CA29: Post code
BA31: `
V33: Contact Names
V35: Name | BI35: Name
V36: Phone | BI36: Phone
V37: Email | BI37: Email
Q42: REGULATORY CONTROL PERIODS
Z45: Forthcoming period | AL45: 2025-26 | AU45: =FRCP_y2 -> 2026-27 | BD45: =FRCP_y3 -> 2027-28 | BM45: =FRCP_y4 -> 2028-29 | BV45: =FRCP_y5 -> 2029-30
AL46: =FRCP_y6 -> 2030-31 | AU46: =FRCP_y7 -> 2031-32 | BD46: =FRCP_y8 -> 2032-33 | BM46: =FRCP_y9 -> 2033-34 | BV46: =FRCP_y10 -> 2034-35
AL47: =FRCP_y11 -> 2035-36 | AU47: =FRCP_y12 -> 2036-37 | BD47: =FRCP_y13 -> 2037-38 | BM47: =FRCP_y14 -> 2038-39 | BV47: =FRCP_y15 -> 2039-40
X49: RESETS | Z49: Current period | AL49: =CRCP_y1 -> 2020-21 | AU49: =CRCP_y2 -> 2021-22 | BD49: =CRCP_y3 -> 2022-23 | BM49: =CRCP_y4 -> 2023-24 | BV49: =CRCP_y5 -> 2024-25
AL50: =CRCP_y6 -> 2025-26 | AU50: =CRCP_y7 -> 2026-27 | BD50: =CRCP_y8 -> 2027-28 | BM50: =CRCP_y9 -> 2028-29 | BV50: =CRCP_y10 -> 2029-30
AL51: =CRCP_y11 -> 2030-31 | AU51: =CRCP_y12 -> 2031-32 | BD51: =CRCP_y13 -> 2032-33 | BM51: =CRCP_y14 -> 2033-34 | BV51: =CRCP_y15 -> 2034-35
Z53: Previous period | AL53: =PRCP_y1 -> 2015-16 | AU53: =PRCP_y2 -> 2016-17 | BD53: =PRCP_y3 -> 2017-18 | BM53: =PRCP_y4 -> 2018-19 | BV53: =PRCP_y5 -> 2019-20
AL54: =PRCP_y6 -> 2020-21 | AU54: =PRCP_y7 -> 2021-22 | BD54: =PRCP_y8 -> 2022-23 | BM54: =PRCP_y9 -> 2023-24 | BV54: =PRCP_y10 -> 2024-25
AL55: =PRCP_y11 -> 2025-26 | AU55: =PRCP_y12 -> 2026-27 | BD55: =PRCP_y13 -> 2027-28 | BM55: =PRCP_y14 -> 2028-29 | BV55: =PRCP_y15 -> 2029-30
Z57: Commencing year | AL57: 2022-23
X58: ANNUAL RINS
Z59: Final year | AL59: 2028-29
Q63: SUBMISSION DETAILS
Z65: RIN type | AL65: =INDIRECT(dms_Model) -> Regulatory Reporting (Reset)
Z67: Source | AL67: Regulatory proposal
X69: THIS FILE | Z69: Data Quality | AL69: Consolidated
Z71: Confidentiality Status | AL71: Public
Z73: Amended RIN Amendment Reason | AL73: .
Z77: Submission Date | AL77: 31/01/24 | BD77: Please enter date this file submitted to AER

Sheet 2.1 Expenditure summary
B1: =INDEX(dms_Worksheet_List,MATCH(dms_Model,dms_Model_List)) -> REGULATORY REPORTING STATEMENT
B2: =INDEX(dms_TradingNameFull_List,MATCH(dms_TradingName,dms_TradingName_List)) -> Energex
B3: =CONCATENATE("REGULATORY PERIOD FROM ", FRCP_y1," TO ",dms_MultiYear_FinalYear_Result) -> REGULATORY PERIOD FROM 2025-26 TO 2029-30
B4: 2.1 EXPENDITURE SUMMARY & RECONCILIATION
B5: TEMPLATE DATE - OCTOBER 2023 - FINAL RIN
B8: 2.1.1 - STANDARD CONTROL SERVICES CAPEX (including dual function assets)
C9: =CONCATENATE("EXPENDITURE ($, real ", dms_DollarReal, ")") -> EXPENDITURE ($, real June 2025)
C10: =CRCP_y4 -> 2023-24 | D10: =CRCP_y5 -> 2024-25 | E10: =FRCP_y1 -> 2025-26 | F10: =FRCP_y2 -> 2026-27 | G10: =FRCP_y3 -> 2027-28 | H10: =FRCP_y4 -> 2028-29 | I10: =FRCP_y5 -> 2029-30
B11: Replacement expenditure | C11: =SUM('2.2 Repex'!D12:D119,'2.2 Repex'!D129:D177 ) -> 166122500.1 | D11: =SUM('2.2 Repex'!E12:E119,'2.2 Repex'!E129:E177 ) -> 161456323.7 | E11: =SUM('2.2 Repex'!F12:F119,'2.2 Repex'!F129:F177 ) -> 162287450.1 | F11: =SUM('2.2 Repex'!G12:G119,'2.2 Repex'!G129:G177 ) -> 183870743.5 | G11: =SUM('2.2 Repex'!H12:H119,'2.2 Repex'!H129:H177 ) -> 189515465.3 | H11: =SUM('2.2 Repex'!I12:I119,'2.2 Repex'!I129:I177 ) -> 198119984.1 | I11: =SUM('2.2 Repex'!J12:J119,'2.2 Repex'!J129:J177 ) -> 180279268.1
B12: Connections | C12: =SUM('2.5 Connections'!E124:E137, '2.5 Connections'!E142:E155) -> 71178790.41 | D12: =SUM('2.5 Connections'!F124:F137, '2.5 Connections'!F142:F155) -> 70166631.01 | E12: =SUM('2.5 Connections'!G124:G137, '2.5 Connections'!G142:G155) -> 71179521 | F12: =SUM('2.5 Connections'!H124:H137, '2.5 Connections'!H142:H155) -> 73690167.17 | G12: =SUM('2.5 Connections'!I124:I137, '2.5 Connections'!I142:I155) -> 76321788.11 | H12: =SUM('2.5 Connections'!J124:J137, '2.5 Connections'!J142:J155) -> 79155677.29 | I12: =SUM('2.5 Connections'!K124:K137, '2.5 Connections'!K142:K155) -> 81245665.71 | Q12: ADELAIDE | R12: SA | S12: 5000 | T12: PO Box 6468 | U12: Halifax Street | V12: ADELAIDE | W12: SA | X12: 5000 | Y12: NO | Z12: NO | AA12: NO | AB12: NO | AC12: NO | AD12: CBD | AE12: Urban | AF12: Short rural | AG12: Long rural | AI12: NO | AJ12: NO | AK12: =B12 -> Connections
B13: Augmentation Expenditure | C13: =SUM('2.3 Augex (b)'!D48:D56) -> 68233106.42 | D13: =SUM('2.3 Augex (b)'!E48:E56) -> 98685048.3 | E13: =SUM('2.3 Augex (b)'!F48:F56) -> 127881687.2 | F13: =SUM('2.3 Augex (b)'!G48:G56) -> 120638454.1 | G13: =SUM('2.3 Augex (b)'!H48:H56) -> 115550878.2 | H13: =SUM('2.3 Augex (b)'!I48:I56) -> 109480070 | I13: =SUM('2.3 Augex (b)'!J48:J56) -> 136770878.3 | Q13: ADELAIDE | R13: SA | S13: 5000 | T13: PO Box 6468 | U13: Halifax Street | V13: ADELAIDE | W13: SA | X13: 5000 | Y13: NO | Z13: NO | AA13: NO | AB13: NO | AC13: NO | AD13: CBD | AE13: Urban | AF13: Short rural | AG13: Long rural | AI13: NO | AJ13: NO | AK13: Augmentation Expenditure
B14: Non-network | C14: =SUM('2.6 Non-network'!E33:E51) -> 136452158.5 | D14: =SUM('2.6 Non-network'!F33:F51) -> 187717142.9 | E14: =SUM('2.6 Non-network'!G33:G51) -> 157437075.2 | F14: =SUM('2.6 Non-network'!H33:H51) -> 155290478.7 | G14: =SUM('2.6 Non-network'!I33:I51) -> 117129893.3 | H14: =SUM('2.6 Non-network'!J33:J51) -> 106822374.4 | I14: =SUM('2.6 Non-network'!K33:K51) -> 105063891.2
B15: Export services | C15: =SUM('7.8 Export Services'!C24:C26) -> 11861810 | D15: =SUM('7.8 Export Services'!D24:D26) -> 5022684 | E15: =SUM('7.8 Export Services'!E24:E26) -> 11168222.39 | F15: =SUM('7.8 Export Services'!F24:F26) -> 13771974.7 | G15: =SUM('7.8 Export Services'!G24:G26) -> 12283830.6 | H15: =SUM('7.8 Export Services'!H24:H26) -> 9610703.167 | I15: =SUM('7.8 Export Services'!I24:I26) -> 9058434.699
B16: Public lighting
B17: Metering
B18: Capitalised network overheads | C18: ='2.10 Overheads'!D16 -> 124925433.8 | D18: ='2.10 Overheads'!E16 -> 143839843.7 | E18: ='2.10 Overheads'!F16 -> 151848673.7 | F18: ='2.10 Overheads'!G16 -> 158082945.6 | G18: ='2.10 Overheads'!H16 -> 156009478.5 | H18: ='2.10 Overheads'!I16 -> 153860326.7 | I18: ='2.10 Overheads'!J16 -> 152433829.8
B19: Capitalised corporate overheads | C19: ='2.10 Overheads'!D31 -> 11227736.32 | D19: ='2.10 Overheads'!E31 -> 10944192.45 | E19: ='2.10 Overheads'!F31 -> 12941019.71 | F19: ='2.10 Overheads'!G31 -> 13694967.62 | G19: ='2.10 Overheads'!H31 -> 13538313.56 | H19: ='2.10 Overheads'!I31 -> 13136684.85 | I19: ='2.10 Overheads'!J31 -> 12564596.18
B20: capcons (included in the above) | C20: 3423158.421 | D20: 3747087.63 | E20: 4096725.99 | F20: 3941337.866 | G20: 3881697.294 | H20: 3835513.814 | I20: 3698235.845
B21: Total | C21: =SUM(C11:C19) -> 590001535.5 | D21: 677831866 | E21: 694743649.2 | F21: 719039731.4 | G21: 680349647.5 | H21: 670185820.4 | I21: 677416564.1
B24: 2.1.2 - STANDARD CONTROL SERVICES OPEX BY CATEGORY
C25: =CONCATENATE("EXPENDITURE ($, real ", dms_DollarReal, ")") -> EXPENDITURE ($, real June 2025)
C26: =CRCP_y4 -> 2023-24 | D26: =CRCP_y5 -> 2024-25
B27: Vegetation management | C27: 43658931.93 | D27: 43435282.05
B28: Maintenance | C28: 93575013.24 | D28: 93095660.22
B29: Emergency response | C29: 55416167.14 | D29: 55132288.93
B30: Non-network | C30: =SUM('2.6 Non-network'!E13:E31) -> 158212771.2 | D30: =SUM('2.6 Non-network'!F13:F31) -> 157402387
B31: Export services | C31: =SUM('7.8 Export Services'!C14:C15) -> 4762225.888 | D31: =SUM('7.8 Export Services'!D14:D15) -> 4751684.986
B32: Metering
B33: Network overheads | C33: ='2.10 Overheads'!D13 -> 219926232.8 | D33: ='2.10 Overheads'!E13 -> 218799625.4
B34: Corporate overheads | C34: ='2.10 Overheads'!D28 -> 82224275.29 | D34: ='2.10 Overheads'!E28 -> 81803068.25
B35: Total | C35: =SUM(C27:C29,C32:C34) -> 494800620.4 | D35: =SUM(D27:D29,D32:D34) -> 492265924.8
B38: 2.1.3 - ALTERNATIVE CONTROL SERVICES CAPEX
C39: =CONCATENATE("EXPENDITURE ($, real ", dms_DollarReal, ")") -> EXPENDITURE ($, real June 2025)
C40: =CRCP_y4 -> 2023-24 | D40: =CRCP_y5 -> 2024-25 | E40: =FRCP_y1 -> 2025-26 | F40: =FRCP_y2 -> 2026-27 | G40: =FRCP_y3 -> 2027-28 | H40: =FRCP_y4 -> 2028-29 | I40: =FRCP_y5 -> 2029-30
B41: Connections | C41: 15082923.91 | D41: 14555911.59 | E41: 15078417.03 | F41: 16386553.31 | G41: 17721346.61 | H41: 19142900.11 | I41: 20114504.26
B42: Metering
B43: Public lighting | C43: =SUM('4.1 Public lighting'!D15,'4.1 Public lighting'!D19,'4.1 Public lighting'!D23) -> 31547732.19 | D43: =SUM('4.1 Public lighting'!E15,'4.1 Public lighting'!E19,'4.1 Public lighting'!E23) -> 28802146.99 | E43: =SUM('4.1 Public lighting'!F15,'4.1 Public lighting'!F19,'4.1 Public lighting'!F23) -> 39402441.76 | F43: =SUM('4.1 Public lighting'!G15,'4.1 Public lighting'!G19,'4.1 Public lighting'!G23) -> 39259397.91 | G43: =SUM('4.1 Public lighting'!H15,'4.1 Public lighting'!H19,'4.1 Public lighting'!H23) -> 39110810.77 | H43: =SUM('4.1 Public lighting'!I15,'4.1 Public lighting'!I19,'4.1 Public lighting'!I23) -> 39034465.32 | I43: =SUM('4.1 Public lighting'!J15,'4.1 Public lighting'!J19,'4.1 Public lighting'!J23) -> 38996234.84
B44: Fee and quoted | C44: 20063383.24 | D44: 19362348.73 | E44: 20057388.17 | F44: 21797477.79 | G44: 23573026.74 | H44: 25463984.53 | I44: 26756417.39
B45: Network overheads | C45: ='2.10 Overheads'!D17 -> 6807726.944 | D45: ='2.10 Overheads'!E17 -> 6848886.544 | E45: ='2.10 Overheads'!F17 -> 7524260.9 | F45: ='2.10 Overheads'!G17 -> 7604997.715 | G45: ='2.10 Overheads'!H17 -> 7546238.787 | H45: ='2.10 Overheads'!I17 -> 7477119.541 | I45: ='2.10 Overheads'!J17 -> 7411978.769
B46: Corporate overheads | C46: ='2.10 Overheads'!D32 -> 402455.7867 | D46: ='2.10 Overheads'!E32 -> 404889.0393 | E46: ='2.10 Overheads'!F32 -> 444815.4817 | F46: ='2.10 Overheads'!G32 -> 449588.4402 | G46: ='2.10 Overheads'!H32 -> 446114.7594 | H46: ='2.10 Overheads'!I32 -> 442028.6024 | I46: ='2.10 Overheads'!J32 -> 438177.643
B47: capcons (included in the above)
B48: Total | C48: =SUM(C41:C46) -> 73904222.07 | D48: 69974182.89 | E48: 82507323.34 | F48: 85498015.17 | G48: 88397537.67 | H48: 91560498.1 | I48: 93717312.9
B51: 2.1.4 - ALTERNATIVE CONTROL SERVICES OPEX
C52: =CONCATENATE("EXPENDITURE ($, real ", dms_DollarReal, ")") -> EXPENDITURE ($, real June 2025)
C53: =CRCP_y4 -> 2023-24 | D53: =CRCP_y5 -> 2024-25 | E53: =FRCP_y1 -> 2025-26 | F53: =FRCP_y2 -> 2026-27 | G53: =FRCP_y3 -> 2027-28 | H53: =FRCP_y4 -> 2028-29 | I53: =FRCP_y5 -> 2029-30
B54: Connections | C54: 27120701.82 | D54: 26714035.06 | E54: 26415682.86 | F54: 26158776.66 | G54: 25904369 | H54: 25652435.59 | I54: 25402952.37
B55: Metering | C55: ='3.2 Operating expenditure'!K72 -> 0 | D55: ='3.2 Operating expenditure'!L72 -> 0 | E55: ='3.2 Operating expenditure'!M72 -> 0 | F55: ='3.2 Operating expenditure'!N72 -> 0 | G55: ='3.2 Operating expenditure'!O72 -> 0 | H55: ='3.2 Operating expenditure'!P72 -> 0 | I55: ='3.2 Operating expenditure'!Q72 -> 0
B56: Public lighting | C56: ='3.2 Operating expenditure'!K74 -> 24130471.04 | D56: ='3.2 Operating expenditure'!L74 -> 22711458.59 | E56: ='3.2 Operating expenditure'!M74 -> 17994836.05 | F56: ='3.2 Operating expenditure'!N74 -> 17385971.94 | G56: ='3.2 Operating expenditure'!O74 -> 16782254.68 | H56: ='3.2 Operating expenditure'!P74 -> 16236621.28 | I56: ='3.2 Operating expenditure'!Q74 -> 15728168.92
B57: Fee and quoted | C57: 51032980.5 | D57: 50267756.31 | E57: 49706347.46 | F57: 49222927.49 | G57: 48744209.01 | H57: 48270146.33 | I57: 47800694.15
B58: Network overheads | C58: ='2.10 Overheads'!D14 -> 45860303.1 | D58: ='2.10 Overheads'!E14 -> 46137575.05 | E58: ='2.10 Overheads'!F14 -> 50687239.42 | F58: ='2.10 Overheads'!G14 -> 51231123.57 | G58: ='2.10 Overheads'!H14 -> 50835293.62 | H58: ='2.10 Overheads'!I14 -> 50369671.3 | I58: ='2.10 Overheads'!J14 -> 49930850.01
B59: Corporate overheads | C59: ='2.10 Overheads'!D29 -> 15420207.38 | D59: ='2.10 Overheads'!E29 -> 15513438.14 | E59: ='2.10 Overheads'!F29 -> 17043231.08 | F59: ='2.10 Overheads'!G29 -> 17226108.34 | G59: ='2.10 Overheads'!H29 -> 17093013.27 | H59: ='2.10 Overheads'!I29 -> 16936451.02 | I59: ='2.10 Overheads'!J29 -> 16788900.41
B60: Total | C60: =SUM(C54:C59) -> 163564663.8 | D60: 161344263.1 | E60: 161847336.9 | F60: 161224908 | G60: 159359139.6 | H60: 157465325.5 | I60: 155651565.9
B63: 2.1.5 - DUAL FUNCTION ASSETS CAPEX
C64: =CONCATENATE("EXPENDITURE ($, real ", dms_DollarReal, ")") -> EXPENDITURE ($, real June 2025)
C65: =CRCP_y4 -> 2023-24 | D65: =CRCP_y5 -> 2024-25 | E65: =FRCP_y1 -> 2025-26 | F65: =FRCP_y2 -> 2026-27 | G65: =FRCP_y3 -> 2027-28 | H65: =FRCP_y4 -> 2028-29 | I65: =FRCP_y5 -> 2029-30
B66: Replacement expenditure
B67: Connections
B68: Augmentation expenditure
B69: Non-network
B70: Export services
B71: Capitalised network overheads
B72: Capitalised corporate overheads
B73: capcons (included in the above)
B74: Total | C74: =SUM(C66:C72) -> 0 | D74: 0 | E74: 0 | F74: 0 | G74: 0 | H74: 0 | I74: 0
B77: 2.1.6 - DUAL FUNCTION ASSETS OPEX BY CATEGORY
C78: =CONCATENATE("EXPENDITURE ($, real ", dms_DollarReal, ")") -> EXPENDITURE ($, real June 2025)
C79: =CRCP_y4 -> 2023-24 | D79: =CRCP_y5 -> 2024-25
B80: Vegetation management
B81: Maintenance
B82: Emergency response
B83: Non-network
B84: Export services
B85: Metering
B86: Network overheads
B87: Corporate overheads
B88: Total | C88: =SUM(C80:C87) -> 0 | D88: =SUM(D80:D87) -> 0
B91: 2.1.7 - STANDARD CONTROL SERVICES CAPCONS
C92: =CONCATENATE("EXPENDITURE ($, real ", dms_DollarReal, ")") -> EXPENDITURE ($, real June 2025)
C93: =CRCP_y4 -> 2023-24 | D93: =CRCP_y5 -> 2024-25 | E93: =FRCP_y1 -> 2025-26 | F93: =FRCP_y2 -> 2026-27 | G93: =FRCP_y3 -> 2027-28 | H93: =FRCP_y4 -> 2028-29 | I93: =FRCP_y5 -> 2029-30
B94: Replacement expenditure
B95: Connections | C95: 3423158.421 | D95: 3747087.63 | E95: 4096725.99 | F95: 3941337.866 | G95: 3881697.294 | H95: 3835513.814 | I95: 3698235.845
B96: Augmentation Expenditure
B97: Non-network
B98: Export services
B99: Capitalised network overheads
B100: Capitalised corporate overheads
B101: Total | C101: =SUM(C94:C100) -> 3423158.421 | D101: 3747087.63 | E101: 4096725.99 | F101: 3941337.866 | G101: 3881697.294 | H101: 3835513.814 | I101: 3698235.845
B104: 2.1.8 - STANDARD CONTROL SERVICES CAPITALISED OVERHEADS
C105: =CONCATENATE("EXPENDITURE ($, real ", dms_DollarReal, ")") -> EXPENDITURE ($, real June 2025)
C106: =CRCP_y4 -> 2023-24 | D106: =CRCP_y5 -> 2024-25 | E106: =FRCP_y1 -> 2025-26 | F106: =FRCP_y2 -> 2026-27 | G106: =FRCP_y3 -> 2027-28 | H106: =FRCP_y4 -> 2028-29 | I106: =FRCP_y5 -> 2029-30
B107: Replacement expenditure | C107: 89790471.19 | D107: 102126403.2 | E107: 95390247.71 | F107: 99436850.7 | G107: 98146047.53 | H107: 96668129.2 | I107: 95508397.28
B108: Connections | C108: 0 | D108: 0 | E108: 0 | F108: 0 | G108: 0 | H108: 0 | I108: 0
B109: Augmentation Expenditure | C109: 46314911 | D109: 52601974.36 | E109: 63463247.84 | F109: 66150671.59 | G109: 65291467.59 | H109: 64312903.18 | I109: 63551016.84
B110: Non-network | C110: 0 | D110: 0 | E110: 0 | F110: 0 | G110: 0 | H110: 0 | I110: 0
B111: Export services | C111: 47787.88915 | D111: 55658.63233 | E111: 5936197.832 | F111: 6190390.944 | G111: 6110276.909 | H111: 6015979.154 | I111: 5939011.892
B112: capcons (included in the above)
B113: Total | C113: =SUM(C107:C111) -> 136153170.1 | D113: 154784036.2 | E113: 164789693.4 | F113: 171777913.2 | G113: 169547792 | H113: 166997011.5 | I113: 164998426

Sheet 2.2 Repex
B1: =INDEX(dms_Worksheet_List,MATCH(dms_Model,dms_Model_List)) -> REGULATORY REPORTING STATEMENT
B2: =INDEX(dms_TradingNameFull_List,MATCH(dms_TradingName,dms_TradingName_List)) -> Energex
B3: =CONCATENATE("REGULATORY PERIOD FROM ", FRCP_y1," TO ",dms_MultiYear_FinalYear_Result) -> REGULATORY PERIOD FROM 2025-26 TO 2029-30
B4: 2.2 REPEX
B5: TEMPLATE DATE - OCTOBER 2023 - FINAL RIN
B8: 2.2.1 - REPLACEMENT EXPENDITURE, VOLUMES AND ASSET FAILURES BY ASSET CATEGORY
B9: EXPENDITURE
D10: =CONCATENATE("EXPENDITURE ($, real ", dms_DollarReal, ")") -> EXPENDITURE ($, real June 2025)
B11: ASSET GROUP | C11: ASSET CATEGORY | D11: =CRCP_y4 -> 2023-24 | E11: =CRCP_y5 -> 2024-25 | F11: =FRCP_y1 -> 2025-26 | G11: =FRCP_y2 -> 2026-27 | H11: =FRCP_y3 -> 2027-28 | I11: =FRCP_y4 -> 2028-29 | J11: =FRCP_y5 -> 2029-30
B12: POLES BY: HIGHEST OPERATING VOLTAGE ; MATERIAL TYPE | C12: ˂ = 1 kV; Wood | D12: 9703086.71 | E12: 9951234.835 | F12: 10155748.7 | G12: 10189931.86 | H12: 10218257.62 | I12: 10237323.39 | J12: 10305221.21
C13: > 1 kV & < = 11 kV; Wood | D13: 11451353.64 | E13: 11744212.2 | F13: 11930980.2 | G13: 11971138.61 | H13: 12004415.73 | I13: 12026814.21 | J13: 12106580.61
C14: ˃ 11 kV & < = 22 kV; Wood
C15: > 22 kV & < = 66 kV; Wood | D15: 4511921.658 | E15: 4627310.187 | F15: 4704286.009 | G15: 4720120.133 | H15: 4733241.023 | I15: 4742072.559 | J15: 4773523.785
C16: > 66 kV & < = 132 kV; Wood | D16: 865654.4654 | E16: 887792.8363 | F16: 894649.5462 | G16: 897660.8411 | H16: 900156.1396 | I16: 901835.6993 | J16: 907817.0163
C17: > 132 kV; Wood
C18: ˂ = 1 kV; Concrete
C19: > 1 kV & < = 11 kV; Concrete | D19: 886273.5987 | E19: 908939.2862 | F19: 931586.3669 | G19: 934721.9873 | H19: 937320.3075 | I19: 939069.2102 | J19: 945297.4739
C20: ˃ 11 kV & < = 22 kV; Concrete
C21: > 22 kV & < = 66 kV; Concrete
C22: > 66 kV & < = 132 kV; Concrete
C23: > 132 kV; Concrete
C24: ˂ = 1 kV; Steel
C25: > 1 kV & < = 11 kV; Steel
C26: ˃ 11 kV & < = 22 kV; Steel
C27: > 22 kV & < = 66 kV; Steel
C28: > 66 kV & < = 132 kV; Steel
C29: > 132 kV; Steel
C30: Other
B31: POLE TOP STRUCTURES BY: HIGHEST OPERATING VOLTAGE | C31: ˂ = 1 kV | D31: 19895710.94 | E31: 20404526.7 | F31: 20898490.71 | G31: 20968832.8 | H31: 21027121.52 | I31: 21066355.05 | J31: 21206075.12
C32: > 1 kV & < = 11 kV | D32: 7254345.397 | E32: 7439869.062 | F32: 7453131.767 | G32: 7478218.213 | H32: 7499006.005 | I32: 7512998.054 | J32: 7562827.111
C33: ˃ 11 kV & < = 22 kV
C34: > 22 kV & < = 66 kV | D34: 871116.3528 | E34: 893394.4068 | F34: 896987.8077 | G34: 900006.973 | H34: 902508.7932 | I34: 904192.7426 | J34: 910189.6924
C35: > 66 kV & < = 132 kV
C36: > 132 kV
C37: Other
B38: STAKING WOODEN POLES BY: HIGHEST OPERATING VOLTAGE | C38: ˂ = 1 Kv | D38: 673094.8479 | E38: 690308.6716 | F38: 685854.3971 | G38: 688162.9098 | H38: 690075.8504 | I38: 691363.4311 | J38: 695948.816
C39: > 1 kV & < = 11 kV | D39: 849327.2087 | E39: 871048.024 | F39: 865427.5136 | G39: 868340.4503 | H39: 870754.2446 | I39: 872378.9447 | J39: 878164.8933
C40: ˃ 11 kV & < = 22 kV
C41: > 22 kV & < = 66 kV | D41: 90904.51834 | E41: 93229.32347 | F41: 92627.75345 | G41: 92939.52858 | H41: 93197.87991 | I41: 93371.77352 | J41: 93991.0506
C42: > 66 kV & < = 132 kV
C43: > 132 kV
B44: OVERHEAD CONDUCTORS BY: Highest operating voltage; Number of phases (at HV) | C44: ˂ = 1 kV | D44: 11654258.56 | E44: 11952306.24 | F44: 12816171.85 | G44: 12859309.71 | H44: 12895055.75 | I44: 12919116.04 | J44: 13004800.52
C45: > 1 kV & < = 11 kV | D45: 4345372.664 | E45: 4456501.845 | F45: 4527736.458 | G45: 4542976.336 | H45: 4555604.805 | I45: 4564104.898 | J45: 4594375.775
C46: ˃ 11 kV & < = 22 kV ; SWER | D46: 197.2205515 | E46: 202.2642981 | F46: 0 | G46: 0 | H46: 0 | I46: 0 | J46: 0
C47: ˃ 11 kV & < = 22 kV ; Single-Phase
C48: ˃ 11 kV & < = 22 kV ; Multiple-Phase
C49: > 22 kV & < = 66 kV | D49: 4126312.241 | E49: 4780596.049 | F49: 1308272.393 | G49: 1312828.55 | H49: 1316324.847 | I49: 1318780.917 | J49: 1327527.573
C50: > 66 kV & < = 132 kV | D50: 1938.734643 | E50: 1988.316119 | F50: 0 | G50: 0 | H50: 0 | I50: 0 | J50: 0
C51: > 132 kV
C52: Other
B53: UNDERGROUND CABLES BY: Highest operating voltage | C53: ˂ = 1 kV | D53: 985865.4627 | E53: 1011078.127 | F53: 1004554.061 | G53: 1007935.282 | H53: 1010737.119 | I53: 1012623.007 | J53: 1019339.107
C54: > 1 kV & < = 11 kV | D54: 4433198.885 | E54: 4066664.428 | F54: 2000361.242 | G54: 2007094.244 | H54: 3827070.511 | I54: 3818411.568 | J54: 2910696.378
C55: > 11 kV & < = 22 kV
C56: > 22 kV & < = 33 kV | D56: 513956.5138 | E56: 527100.5111 | F56: 523699.3508 | G56: 525462.067 | H56: 3308504.036 | I56: 3290455.322 | J56: 1881871.086
C57: > 33 kV & < = 66 kV
C58: > 66 kV & < = 132 kV | D58: 3647.12209 | E58: 0 | F58: 0 | G58: 0 | H58: 0 | I58: 0 | J58: 0
C59: > 132 kV
C60: Other
B61: SERVICE LINES BY: Connection voltage; Customer type; Connection complexity | C61: ˂ = 11 kV ; Residential ; Simple Type | D61: 7505566.236 | E61: 7184016.614 | F61: 6626881.235 | G61: 6649186.611 | H61: 6667669.878 | I61: 6680110.775 | J61: 6724415.807
C62: ˂ = 11 kV ; Commercial & Industrial ; Simple Type | D62: 652657.9336 | E62: 669349.1008 | F62: 576250.5422 | G62: 578190.14 | H62: 579797.3807 | I62: 580879.1978 | J62: 584731.8093
C63: ˂ = 11 kV ; Residential ; Complex Type
C64: ˂ = 11 kV ; Commercial & Industrial ; Complex Type
C65: ˂ = 11 kV ; Subdivision ; Complex Type
C66: > 11 kV & < = 22 kV ; Commercial & Industrial
C67: > 11 kV & < = 22 kV ; Subdivision
C68: > 22 kV & < = 33 kV ; Commercial & Industrial
C69: > 22 kV & < = 33 kV ; Subdivision
C70: > 33 kV & < = 66 kV ; Commercial & Industrial
C71: > 33 kV & < = 66 kV ; Subdivision
C72: > 66 kV & < = 132 kV ; Commercial & Industrial
C73: > 66 kV & < = 132 kV ; Subdivision
C74: > 132 kV ; Commercial & Industrial
C75: > 132 kV ; Subdivision
C76: Other
B77: TRANSFORMERS BY: Mounting type; Highest operating voltage; Ampere rating; Number of phases (at LV) | C77: Pole Mounted ; < = 22kV ; < = 60 kVA ; Single Phase | D77: 1187391.975 | E77: 1217758.507 | F77: 1287422.223 | G77: 1291755.549 | H77: 1295346.343 | I77: 1297763.27 | J77: 1306370.529
C78: Pole Mounted ; < = 22kV ; > 60 kVA and < = 600 kVA ; Single Phase | D78: 19004.63568 | E78: 19490.66295 | F78: 19364.89781 | G78: 19430.07799 | H78: 19484.08931 | I78: 19520.44377 | J78: 19649.91077
C79: Pole Mounted ; < = 22kV ; > 600 kVA ; Single Phase
C80: Pole Mounted ; < = 22kV ; < = 60 kVA ; Multiple Phase | D80: 3570207.176 | E80: 3661512.165 | F80: 3915930.633 | G80: 3929111.238 | H80: 3940033.297 | I80: 3947384.824 | J80: 3973565.379
C81: Pole Mounted ; < = 22kV ; > 60 kVA and < = 600 kVA ; Multiple Phase | D81: 11311730.42 | E81: 11601018.23 | F81: 12259249.74 | G81: 12300513.07 | H81: 12334705.77 | I81: 12357720.53 | J81: 12439681.63
C82: Pole Mounted ; < = 22kV ; > 600 kVA ; Multiple Phase
C83: Kiosk Mounted ; < = 22kV ; < = 60 kVA ; Single Phase
C84: Kiosk Mounted ; < = 22kV ; > 60 kVA and < = 600 kVA ; Single Phase
C85: Kiosk Mounted ; < = 22kV ; > 600 kVA ; Single Phase
C86: Kiosk Mounted ; < = 22kV ; < = 60 kVA ; Multiple Phase
C87: Kiosk Mounted ; < = 22kV ; > 60 kVA and < = 600 kVA ; Multiple Phase | D87: 2156631.675 | E87: 2211785.681 | F87: 2197513.949 | G87: 2204910.546 | H87: 2211039.71 | I87: 2215165.187 | J87: 2229857.004
C88: Kiosk Mounted ; < = 22kV ; > 600 kVA ; Multiple Phase | D88: 312455.4492 | E88: 320446.2295 | F88: 318378.5233 | G88: 319450.1515 | H88: 320338.1522 | I88: 320935.8564 | J88: 323064.4249
C89: Ground Outdoor / Indoor Chamber Mounted; ˂ 22 kV ; < = 60 kVA ; Single Phase
C90: Ground Outdoor / Indoor Chamber Mounted; ˂ 22 kV ; > 60 kVA and < = 600 kVA ; Single Phase
C91: Ground Outdoor / Indoor Chamber Mounted; ˂ 22 kV ; > 600 kVA ; Single Phase
C92: Ground Outdoor / Indoor Chamber Mounted; ˂ 22 kV ; < = 60 kVA ; Multiple Phase
C93: Ground Outdoor / Indoor Chamber Mounted; ˂ 22 kV ; > 60 kVA and < = 600 kVA ; Multiple Phase | D93: 309478.1139 | E93: 317392.7514 | F93: 315344.748 | G93: 316406.1648 | H93: 317285.7039 | I93: 317877.7127 | J93: 319985.9984
C94: Ground Outdoor / Indoor Chamber Mounted; ˂ 22 kV ; > 600 kVA ; Multiple Phase | D94: 1558812.623 | E94: 517769.8619 | F94: 291016.4401 | G94: 291995.9704 | H94: 292807.6546 | I94: 293353.9908 | J94: 295299.626
C95: Ground Outdoor / Indoor Chamber Mounted; > = 22 kV & < = 33 kV ; < = 15 MVA | D95: 5225885.306 | E95: 2556843.411 | F95: 2396541.111 | G95: 5672906.177 | H95: 6584679.461 | I95: 7162482.41 | J95: 7784431.728
C96: Ground Outdoor / Indoor Chamber Mounted; > = 22 kV & < = 33 kV ; > 15 MVA and < = 40 MVA
C97: Ground Outdoor / Indoor Chamber Mounted; > = 22 kV & < = 33 kV ; > 40 MVA
C98: Ground Outdoor / Indoor Chamber Mounted; > 33 kV & < = 66 kV ; < = 15 MVA
C99: Ground Outdoor / Indoor Chamber Mounted; > 33 kV & < = 66 kV ; > 15 MVA and < = 40 MVA
C100: Ground Outdoor / Indoor Chamber Mounted; > 33 kV & < = 66 kV ; > 40 MVA
C101: Ground Outdoor / Indoor Chamber Mounted; > 66 kV & < = 132 kV ; < = 100 MVA | D101: 117087.179 | E101: 214940.3389 | F101: 495626.5825 | G101: 873063.4305 | H101: 2716939.517 | I101: 5344364.151 | J101: 622055.8194
C102: Ground Outdoor / Indoor Chamber Mounted; > 66 kV & < = 132 kV ; > 100 MVA
C103: Ground Outdoor / Indoor Chamber Mounted; > 132 kV ; < = 100 MVA
C104: Ground Outdoor / Indoor Chamber Mounted; > 132 kV ; > 100 MVA
C105: Other
B106: SWITCHGEAR BY: Highest operating voltage; Switch function | C106: ˂ = 11 kV ; FUSE | D106: 17258184.16 | E106: 17716070.48 | F106: 0 | G106: 0 | H106: 0 | I106: 0 | J106: 0
C107: ˂ = 11 kV ; Switch | D107: 6991125.482 | E107: 8592226.461 | F107: 18245188.38 | G107: 18306773.02 | H107: 18357623.3 | I107: 18395254.68 | J107: 18512827.54
C108: ˂ = 11 kV ; Circuit Breaker | D108: 1320335.636 | E108: 1354102.088 | F108: 7110367.026 | G108: 12614317.02 | H108: 11832425.99 | I108: 11585671.75 | J108: 10670697.55
C109: > 11 kV & < = 22 kV ; Switch | D109: 0 | E109: 0 | F109: 2368743.806 | G109: 2376716.745 | H109: 2383323.492 | I109: 2387770.425 | J109: 2403607.026
C110: > 11 kV & < = 22 kV ; Circuit Breaker | D110: 10371.59652 | E110: 45249.28218 | F110: 0 | G110: 0 | H110: 0 | I110: 0 | J110: 0
C111: > 22 kV & < = 33 kV ; Switch | D111: 1536361.738 | E111: 2575102.742 | F111: 52935.91656 | G111: 6605.68665 | H111: 17362.20119 | I111: 36619.61952 | J111: 0
C112: > 22 kV & < = 33 kV ; Circuit Breaker | D112: 0 | E112: 0 | F112: 3081907.882 | G112: 2362999.823 | H112: 2782010.666 | I112: 3653294.483 | J112: 2220154.17
C113: > 33 kV & < = 66 kV ; Switch
C114: > 33 kV & < = 66 kV ; Circuit Breaker
C115: > 66 kV & < = 132 kV ; Switch | D115: 40549.28529 | E115: 154165.6377 | F115: 0 | G115: 0 | H115: 0 | I115: 0 | J115: 0
C116: > 66 kV & < = 132 kV ; Circuit Breaker | D116: 0 | E116: 0 | F116: 346640.829 | G116: 237519.9378 | H116: 407793.3666 | I116: 540161.6582 | J116: 362406.1227
C117: > 132 kV ; Switch
C118: > 132 kV ; Circuit Breaker
C119: Other
B120: PUBLIC LIGHTING BY: Asset type ; Lighting obligation | C120: Luminaires ; Major Road
C121: Luminaires ; Minor Road
C122: Brackets ; Major Road
C123: Brackets ; Minor Road
C124: Lamps ; Major Road
C125: Lamps ; Minor Road
C126: Poles / Columns ; Major Road
C127: Poles / Columns ; Minor Road
C128: Other
B129: SCADA, NETWORK CONTROL AND PROTECTION SYSTEMS BY: Function | C129: Field Devices | D129: 7363474.157 | E129: 6401055.456 | F129: 9764517.583 | G129: 15771812.54 | H129: 14762919.19 | I129: 14073065.67 | J129: 10700375
C130: Local Network Wiring Assets
C131: Communications Network Assets | D131: 5934973.152 | E131: 4081054.566 | F131: 2061961.956 | G131: 5584381.473 | H131: 6100455.214 | I131: 5376002.1 | J131: 5907331.692
C132: Master Station Assets
C133: Communications Site Infrastructure | D133: 0 | E133: 0 | F133: 746784.7734 | G133: 1905095.072 | H133: 2163682.757 | I133: 1965219.98 | J133: 2120577.701
C134: Communications Linear Assets
C135: AFLC | D135: 55483.39647 | E135: 189326.9593 | F135: 256099.1152 | G135: 949337.0681 | H135: 1209554.892 | I135: 938990.888 | J135: 612345.4831
C136: Other
B137: OTHER: | C137: CURRENT TRANSFORMERS | D137: 679479.8497 | E137: 263111.6071 | F137: 1143382.834 | G137: 1160103.34 | H137: 578527.0934 | I137: 723394.1705 | J137: 533554.605
C138: VOLTAGE TRANSFORMERS | D138: 152514.0771 | E138: 277677.9214 | F138: 133655.1127 | G138: 570485.0974 | H138: 180100.4127 | I138: 335409.607 | J138: 235907.9453
C139: OTHER | D139: 7735202.127 | E139: 4006553.591 | F139: 4585178.09 | G139: 5611997.073 | H139: 4670207.596 | I139: 10660303.93 | J139: 4252126.41
B181: ASSET REPLACEMENTS
D182: VOLUMES (0's)
B183: ASSET GROUP | C183: ASSET CATEGORY | D183: =CRCP_y4 -> 2023-24 | E183: =CRCP_y5 -> 2024-25 | F183: =FRCP_y1 -> 2025-26 | G183: =FRCP_y2 -> 2026-27 | H183: =FRCP_y3 -> 2027-28 | I183: =FRCP_y4 -> 2028-29 | J183: =FRCP_y5 -> 2029-30
B184: POLES BY: HIGHEST OPERATING VOLTAGE ; MATERIAL TYPE | C184: ˂ = 1 kV; Wood | D184: 1806 | E184: 1806 | F184: 1862 | G184: 1862 | H184: 1862 | I184: 1862 | J184: 1862
C185: > 1 kV & < = 11 kV; Wood
C186: ˃ 11 kV & < = 22 kV; Wood | D186: 193 | E186: 193 | F186: 199 | G186: 199 | H186: 199 | I186: 199 | J186: 199
C187: > 22 kV & < = 66 kV; Wood | D187: 23 | E187: 23 | F187: 24 | G187: 24 | H187: 24 | I187: 24 | J187: 24
C188: > 66 kV & < = 132 kV; Wood
C189: > 132 kV; Wood
C190: ˂ = 1 kV; Concrete | D190: 41 | E190: 41 | F190: 42 | G190: 42 | H190: 42 | I190: 42 | J190: 42
C191: > 1 kV & < = 11 kV; Concrete
C192: ˃ 11 kV & < = 22 kV; Concrete
C193: > 22 kV & < = 66 kV; Concrete
C194: > 66 kV & < = 132 kV; Concrete
C195: > 132 kV; Concrete
C196: ˂ = 1 kV; Steel
C197: > 1 kV & < = 11 kV; Steel
C198: ˃ 11 kV & < = 22 kV; Steel
C199: > 22 kV & < = 66 kV; Steel
C200: > 66 kV & < = 132 kV; Steel
C201: > 132 kV; Steel
C202: Other
B203: POLE TOP STRUCTURES BY: HIGHEST OPERATING VOLTAGE | C203: ˂ = 1 kV | D203: 5936.240474 | E203: 5936.240474 | F203: 6090.470756 | G203: 6090.470756 | H203: 6090.470756 | I203: 6090.470756 | J203: 6090.470756
C204: > 1 kV & < = 11 kV | D204: 5446.05842 | E204: 5446.05842 | F204: 5586.521478 | G204: 5586.521478 | H204: 5586.521478 | I204: 5586.521478 | J204: 5586.521478
C205: ˃ 11 kV & < = 22 kV
C206: > 22 kV & < = 66 kV | D206: 190.3062362 | E206: 190.3062362 | F206: 192.0987527 | G206: 192.0987527 | H206: 192.0987527 | I206: 192.0987527 | J206: 192.0987527
C207: > 66 kV & < = 132 kV
C208: > 132 kV
C209: Other
B210: STAKING WOODEN POLES BY: HIGHEST OPERATING VOLTAGE | C210: ˂ = 1 Kv | D210: 584.9274359 | E210: 584.9274359 | F210: 584.9274359 | G210: 584.9274359 | H210: 584.9274359 | I210: 584.9274359 | J210: 584.9274359
C211: > 1 kV & < = 11 kV | D211: 738.0754555 | E211: 738.0754555 | F211: 738.0754555 | G211: 738.0754555 | H211: 738.0754555 | I211: 738.0754555 | J211: 738.0754555
C212: ˃ 11 kV & < = 22 kV
C213: > 22 kV & < = 66 kV | D213: 78.99710864 | E213: 78.99710864 | F213: 78.99710864 | G213: 78.99710864 | H213: 78.99710864 | I213: 78.99710864 | J213: 78.99710864
C214: > 66 kV & < = 132 kV
C215: > 132 kV
B216: OVERHEAD CONDUCTORS BY: Highest operating voltage; Number of phases (at HV) | C216: ˂ = 1 kV | D216: 104.379 | E216: 104.379 | F216: 111.1311207 | G216: 111.1311207 | H216: 111.1311207 | I216: 111.1311207 | J216: 111.1311207
C217: > 1 kV & < = 11 kV | D217: 169.4083388 | E217: 169.4083388 | F217: 180.9707872 | G217: 180.9707872 | H217: 180.9707872 | I217: 180.9707872 | J217: 180.9707872
C218: ˃ 11 kV & < = 22 kV ; SWER | D218: 0.02966666667 | E218: 0.02966666667 | F218: 0 | G218: 0 | H218: 0 | I218: 0 | J218: 0
C219: ˃ 11 kV & < = 22 kV ; Single-Phase
C220: ˃ 11 kV & < = 22 kV ; Multiple-Phase
C221: > 22 kV & < = 66 kV | D221: 7.692080094 | E221: 11.79208009 | F221: 7.898092088 | G221: 7.898092088 | H221: 7.898092088 | I221: 7.898092088 | J221: 7.898092088
C222: > 66 kV & < = 132 kV | D222: 0.002090000073 | E222: 0.002090000073 | F222: 0 | G222: 0 | H222: 0 | I222: 0 | J222: 0
C223: > 132 kV
C224: Other
B225: UNDERGROUND CABLES BY: Highest operating voltage | C225: ˂ = 1 kV | D225: 3.132346668 | E225: 3.132346668 | F225: 3.132346668 | G225: 3.132346668 | H225: 3.132346668 | I225: 3.132346668 | J225: 3.132346668
C226: > 1 kV & < = 11 kV | D226: 1.408563337 | E226: 1.408563337 | F226: 1.408563337 | G226: 1.408563337 | H226: 1.408563337 | I226: 1.408563337 | J226: 11.40856334
C227: > 11 kV & < = 22 kV
C228: > 22 kV & < = 33 kV | D228: 0.4482933464 | E228: 0.4482933464 | F228: 0.4482933464 | G228: 0.4482933464 | H228: 0.4482933464 | I228: 0.4482933464 | J228: 5.448293346
C229: > 33 kV & < = 66 kV
C230: > 66 kV & < = 132 kV | D230: 0.01 | E230: 0 | F230: 0 | G230: 0 | H230: 0 | I230: 0 | J230: 0
C231: > 132 kV
C232: Other
B233: SERVICE LINES BY: Connection voltage; Customer type; Connection complexity | C233: ˂ = 11 kV ; Residential ; Simple Type | D233: 8269.264298 | E233: 8569.264298 | F233: 7361.274457 | G233: 7361.274457 | H233: 7361.274457 | I233: 7361.274457 | J233: 7361.274457
C234: ˂ = 11 kV ; Commercial & Industrial ; Simple Type | D234: 719.0664607 | E234: 719.0664607 | F234: 640.1108223 | G234: 640.1108223 | H234: 640.1108223 | I234: 640.1108223 | J234: 640.1108223
C235: ˂ = 11 kV ; Residential ; Complex Type
C236: ˂ = 11 kV ; Commercial & Industrial ; Complex Type
C237: ˂ = 11 kV ; Subdivision ; Complex Type
C238: > 11 kV & < = 22 kV ; Commercial & Industrial
C239: > 11 kV & < = 22 kV ; Subdivision
C240: > 22 kV & < = 33 kV ; Commercial & Industrial
C241: > 22 kV & < = 33 kV ; Subdivision
C242: > 33 kV & < = 66 kV ; Commercial & Industrial
C243: > 33 kV & < = 66 kV ; Subdivision
... 203 more rows

Sheet 2.3 Augex (b)
B1: =INDEX(dms_Worksheet_List,MATCH(dms_Model,dms_Model_List)) -> REGULATORY REPORTING STATEMENT
B2: =INDEX(dms_TradingNameFull_List,MATCH(dms_TradingName,dms_TradingName_List)) -> Energex
B3: =CONCATENATE("REGULATORY PERIOD FROM ", FRCP_y1," TO ",dms_MultiYear_FinalYear_Result) -> REGULATORY PERIOD FROM 2025-26 TO 2029-30
B4: 2.3 AUGEX PROJECT DATA
B5: TEMPLATE DATE - OCTOBER 2023 - FINAL RIN
B7: There are FOUR tables on this worksheet. These tables have been 'grouped' (and sub-grouped) for easy navigation. See the Instructions sheet on how to group or ungroup tables.
B9: NOTE: DNSP must provide expenditure information on an 'as incurred' basis.
B10: 2.3.3 - AUGEX DATA - HV/LV FEEDERS AND DISTRIBUTION SUBSTATIONS
D11: VOLUMES
B12: PROJECT TYPE | C12: UNITS | D12: =CRCP_y4 -> 2023-24 | E12: =CRCP_y5 -> 2024-25 | F12: =FRCP_y1 -> 2025-26 | G12: =FRCP_y2 -> 2026-27 | H12: =FRCP_y3 -> 2027-28 | I12: =FRCP_y4 -> 2028-29 | J12: =FRCP_y5 -> 2029-30
B13: DESCRIPTOR METRICS - UNITS ADDED
B14: HV Feeder Augmentations - Overhead Lines | C14: Circuit Line Length in KM | D14: 19.83 | E14: 21.4340726 | F14: 33.64275764 | G14: 28.03821852 | H14: 33.64275764 | I14: 44.85333553 | J14: 49.85333553
B15: HV Feeder Augmentations - Underground Cables | C15: Circuit Line Length in KM | D15: 9.5 | E15: 9.5 | F15: 9.5 | G15: 9.5 | H15: 9.5 | I15: 9.5 | J15: 9.5
B16: LV Feeder Augmentations - Overhead Lines | C16: Circuit Line Length in KM | D16: 2.5 | E16: 2.5 | F16: 2.5 | G16: 2.5 | H16: 2.5 | I16: 2.5 | J16: 2.5
B17: LV Feeder Augmentations - Underground Cables | C17: Circuit Line Length in KM | D17: 0.5 | E17: 0.5 | F17: 0.5 | G17: 0.5 | H17: 0.5 | I17: 0.5 | J17: 0.5
B18: Distribution Substation Augmentations - Pole Mounted | C18: Number | D18: 52 | E18: 52 | F18: 52 | G18: 52 | H18: 52 | I18: 52 | J18: 52
B19: Distribution Substation Augmentations - Ground Mounted | C19: Number | D19: 3 | E19: 3 | F19: 3 | G19: 3 | H19: 3 | I19: 3 | J19: 3
B20: Distribution Substation Augmentations - Indoor | C20: Number | D20: 0 | E20: 0 | F20: 0 | G20: 0 | H20: 0 | I20: 0 | J20: 0
B21: DESCRIPTOR METRICS - UNITS UPGRADED
B22: HV Feeder Augmentations - Overhead Lines | C22: Circuit Line Length in KM | D22: 54 | E22: 55 | F22: 66 | G22: 64 | H22: 66 | I22: 79 | J22: 84
B23: HV Feeder Augmentations - Underground Cables | C23: Circuit Line Length in KM | D23: 4.8 | E23: 4.8 | F23: 4.8 | G23: 4.8 | H23: 4.8 | I23: 4.8 | J23: 4.8
B24: LV Feeder Augmentations - Overhead Lines | C24: Circuit Line Length in KM | D24: 20.94 | E24: 20.94 | F24: 20.94 | G24: 20.94 | H24: 20.94 | I24: 20.94 | J24: 20.94
B25: LV Feeder Augmentations - Underground Cables | C25: Circuit Line Length in KM | D25: 0.9 | E25: 0.9 | F25: 0.9 | G25: 0.9 | H25: 0.9 | I25: 0.9 | J25: 0.9
B26: Distribution Substation Augmentations - Pole Mounted | C26: Number | D26: 306 | E26: 306 | F26: 306 | G26: 306 | H26: 306 | I26: 306 | J26: 306
B27: Distribution Substation Augmentations - Ground Mounted | C27: Number | D27: 12 | E27: 12 | F27: 12 | G27: 12 | H27: 12 | I27: 12 | J27: 12
B28: Distribution Substation Augmentations - Indoor | C28: Number | D28: 0 | E28: 0 | F28: 0 | G28: 0 | H28: 0 | I28: 0 | J28: 0
B30: COST METRICS
D31: =CONCATENATE("TOTAL DIRECT EXPENDITURE ($, real ", dms_DollarReal,")") -> TOTAL DIRECT EXPENDITURE ($, real June 2025)
B32: PROJECT TYPE | D32: =CRCP_y4 -> 2023-24 | E32: =CRCP_y5 -> 2024-25 | F32: =FRCP_y1 -> 2025-26 | G32: =FRCP_y2 -> 2026-27 | H32: =FRCP_y3 -> 2027-28 | I32: =FRCP_y4 -> 2028-29 | J32: =FRCP_y5 -> 2029-30
B33: HV Feeder Augmentations - Overhead Lines | D33: 3945557.488 | E33: 4853376.389 | F33: 5283294.479 | G33: 5170100.334 | H33: 5297753.23 | I33: 5729586.019 | J33: 6338896.072
B34: HV Feeder Augmentations - Underground Cables | D34: 2721134.099 | E34: 3347229.898 | F34: 3643731.667 | G34: 3565665.019 | H34: 3653703.439 | I34: 3951525.719 | J34: 4371748.809
B35: HV Feeder Non-Material Projects | D35: 22300532.89 | E35: 27431580.99 | F35: 29861504.4 | G35: 29221724.16 | H35: 29943226.15 | I35: 32383971.56 | J35: 35827829.34
B36: LV Feeder Augmentations - Overhead Lines | D36: 2226222.55 | E36: 1856702.08 | F36: 1096987.887 | G36: 989617.6743 | H36: 1242604.091 | I36: 1249063.904 | J36: 1001111.606
B37: LV Feeder Augmentations - Underground Cables | D37: 335269.6275 | E37: 279619.7598 | F37: 165206.6279 | G37: 149036.6491 | H37: 187136.4616 | I37: 188109.3108 | J37: 150767.6378
B38: LV Feeder Non-Material Projects | D38: 2603470.522 | E38: 2171332.392 | F38: 1282879.66 | G38: 1157314.862 | H38: 1453171.482 | I38: 1460725.952 | J38: 1170756.515
B39: Distribution Substation Augmentations - Pole Mounted | D39: 11001068.71 | E39: 13087898.11 | F39: 11374138.07 | G39: 11528361.14 | H39: 11438628.3 | I39: 11498464.12 | J39: 11515639.03
B40: Distribution Substation Augmentations - Ground Mounted | D40: 1663110.871 | E40: 1978591.916 | F40: 1719510.455 | G40: 1742825.468 | H40: 1729259.909 | I40: 1738305.721 | J40: 1740902.176
B41: Distribution Substation Augmentations - Indoor | D41: 0 | E41: 0 | F41: 0 | G41: 0 | H41: 0 | I41: 0 | J41: 0
B45: 2.3.4 - AUGEX - TOTAL EXPENDITURE
D46: =CONCATENATE("TOTAL DIRECT EXPENDITURE ($, real ", dms_DollarReal,")") -> TOTAL DIRECT EXPENDITURE ($, real June 2025)
D47: =CRCP_y4 -> 2023-24 | E47: =CRCP_y5 -> 2024-25 | F47: =FRCP_y1 -> 2025-26 | G47: =FRCP_y2 -> 2026-27 | H47: =FRCP_y3 -> 2027-28 | I47: =FRCP_y4 -> 2028-29 | J47: =FRCP_y5 -> 2029-30
B48: Subtransmission Substations, Switching Stations, Zone Substations | D48: 15409460.22 | E48: 16520060.21 | F48: 17480439.3 | G48: 17650856.39 | H48: 14279498.37 | I48: 14649543.07 | J48: 27396565.36
B49: Subtransmission Lines | D49: 2305866.63 | E49: 20590271.68 | F49: 37191859.31 | G49: 28509761.06 | H49: 30665764.9 | I49: 23130029.04 | J49: 33919065.92
B50: HV Feeders | D50: 28967224.48 | E50: 35632187.28 | F50: 38788530.55 | G50: 37957489.51 | H50: 38894682.82 | I50: 42065083.29 | J50: 46538474.22
B51: HV Feeders - Land Purchases and Easements | D51: 0 | E51: 0 | F51: 0 | G51: 0 | H51: 0 | I51: 0 | J51: 0
B52: Distribution Substations | D52: 12664179.58 | E52: 15349005.04 | F52: 13093648.52 | G52: 13271186.6 | H52: 13167888.21 | I52: 13236769.84 | J52: 13256541.2
B53: Distribution Substations - Land Purchases and Easements | D53: 0 | E53: 0 | F53: 0 | G53: 0 | H53: 0 | I53: 0 | J53: 0
B54: LV Feeders | D54: 5164962.7 | E54: 4307654.232 | F54: 2545074.175 | G54: 2295969.185 | H54: 2882912.034 | I54: 2897899.166 | J54: 2322635.759
B55: LV Feeders - Land Purchases and Easements | D55: 0 | E55: 0 | F55: 0 | G55: 0 | H55: 0 | I55: 0 | J55: 0
B56: Other Assets | D56: 3721412.801 | E56: 6285869.858 | F56: 18782135.33 | G56: 20953191.34 | H56: 15660131.86 | I56: 13500745.55 | J56: 13337595.85
B60: 2.3.5 - AUGEX - BY DRIVER
D61: =CONCATENATE("TOTAL DIRECT EXPENDITURE ($, real ", dms_DollarReal,")") -> TOTAL DIRECT EXPENDITURE ($, real June 2025)
D62: =CRCP_y4 -> 2023-24 | E62: =CRCP_y5 -> 2024-25 | F62: =FRCP_y1 -> 2025-26 | G62: =FRCP_y2 -> 2026-27 | H62: =FRCP_y3 -> 2027-28 | I62: =FRCP_y4 -> 2028-29 | J62: =FRCP_y5 -> 2029-30
B63: "Greenfield" driven augex (network expansion capex) | D63: 3569647.706 | E63: 26579230.16 | F63: 48972584.72 | G63: 30376198.56 | H63: 6134781.206 | I63: 14690137.25 | J63: 27356512.32
B64: Reinforcement driven augex (augmentation of the existing network) | D64: 64663457.59 | E64: 72105818.14 | F64: 78909102.48 | G64: 90262255.53 | H64: 109416097 | I64: 94789932.71 | J64: 109414366
B68: 2.3.6 - AUGEX - GREENFIELDS DRIVEN
D69: =CONCATENATE("TOTAL DIRECT EXPENDITURE ($, real ", dms_DollarReal,")") -> TOTAL DIRECT EXPENDITURE ($, real June 2025)
D70: =CRCP_y4 -> 2023-24 | E70: =CRCP_y5 -> 2024-25 | F70: =FRCP_y1 -> 2025-26 | G70: =FRCP_y2 -> 2026-27 | H70: =FRCP_y3 -> 2027-28 | I70: =FRCP_y4 -> 2028-29 | J70: =FRCP_y5 -> 2029-30
B71: Subtransmission Substations, Switching Stations, Zone Substations | D71: 1389915.906 | E71: 8940573.812 | F71: 11160941.8 | G71: 7120746.428 | H71: 3368256.843 | I71: 5390898.955 | J71: 10980338.65
B72: Subtransmission Lines | D72: 1965081.692 | E72: 15858821.39 | F72: 35527778.56 | G72: 21811041.64 | H72: 2321165.731 | I72: 7406476.187 | J72: 11093409.05
B73: HV Feeders | D73: 187354.7271 | E73: 1585655.298 | F73: 1837028.329 | G73: 1177295.58 | H73: 442412.9497 | I73: 1892762.113 | J73: 5282764.624
B74: HV Feeders - Land Purchases and Easements | D74: 0 | E74: 0 | F74: 0 | G74: 0 | H74: 0 | I74: 0 | J74: 0
B75: Distribution Substations | D75: 3978.151868 | E75: 27.41279265 | F75: 0 | G75: 0 | H75: 0 | I75: 0 | J75: 0
B76: Distribution Substations - Land Purchases and Easements | D76: 0 | E76: 0 | F76: 0 | G76: 0 | H76: 0 | I76: 0 | J76: 0
B77: LV Feeders | D77: 0 | E77: 0 | F77: 0 | G77: 0 | H77: 0 | I77: 0 | J77: 0
B78: LV Feeders - Land Purchases and Easements | D78: 0 | E78: 0 | F78: 0 | G78: 0 | H78: 0 | I78: 0 | J78: 0
B79: Other Assets | D79: 23317.22939 | E79: 194152.2461 | F79: 446836.037 | G79: 267114.9114 | H79: 2945.682349 | I79: 0 | J79: 0

Sheet 2.5 Connections
B1: =INDEX(dms_Worksheet_List,MATCH(dms_Model,dms_Model_List)) -> REGULATORY REPORTING STATEMENT
B2: =INDEX(dms_TradingNameFull_List,MATCH(dms_TradingName,dms_TradingName_List)) -> Energex
B3: =CONCATENATE("REGULATORY PERIOD FROM ", FRCP_y1," TO ",dms_MultiYear_FinalYear_Result) -> REGULATORY PERIOD FROM 2025-26 TO 2029-30
B4: 2.5 CONNECTIONS
B5: TEMPLATE DATE - OCTOBER 2023 - FINAL RIN
B7: There are THREE tables on this worksheet - each has been 'grouped' (and sub-grouped) for easy navigation. See the Instructions sheet on how to group or ungroup tables.
B9: 2.5.1 - DESCRIPTOR METRICS
B10: VOLUMES AND EXPENDITURE - ALL
B11: CONNECTION SUBCATEGORY | C11: DESCRIPTOR METRIC | D11: Unit of Measure | E11: =CONCATENATE("VOLUMES and EXPENDITURE (0's, real ", dms_DollarReal, ")") -> VOLUMES and EXPENDITURE (0's, real June 2025)
E12: =CRCP_y4 -> 2023-24 | F12: =CRCP_y5 -> 2024-25 | G12: =FRCP_y1 -> 2025-26 | H12: =FRCP_y2 -> 2026-27 | I12: =FRCP_y3 -> 2027-28 | J12: =FRCP_y4 -> 2028-29 | K12: =FRCP_y5 -> 2029-30 | Q12: DRAFT TEMPLATE ONLY
B13: RESIDENTIAL | C13: Underground connections | D13: 0's | E13: 22380.62192 | F13: 22482.86387 | G13: 22993.34969 | H13: 23515.08329 | I13: 24051.06862 | J13: 24598.30972 | K13: 25158.81067 | Q13: DO NOT USE FOR SUBMISSIONS
C14: Overhead connections | D14: 0's | E14: 17569.2184 | F14: 17679.34189 | G14: 18063.28336 | H14: 18456.0559 | I14: 18857.67279 | J14: 19268.14756 | K14: 19688.49392
C15: Distribution substations installed | D15: MVA added | E15: 7.714853014 | F15: 7.773567376 | G15: 8.006567743 | H15: 8.206462861 | I15: 8.420110335 | J15: 8.64254054 | K15: 8.777019101
C16: Distribution substations installed | D16: 0's | E16: 90.87919044 | F16: 91.57083208 | G16: 94.31552271 | H16: 96.67024113 | I16: 99.18695913 | J16: 101.8071357 | K16: 103.3912621
C17: Distribution substations installed | D17: total spend $0s | E17: 3023247.38 | F17: 3189730.087 | G17: 3241099.991 | H17: 3328614.252 | I17: 3422008.506 | J17: 3522947.192 | K17: 3587593.962
C18: Augmentation HV | D18: net circuit KM added | E18: 3.249918875 | F18: 3.274652582 | G18: 3.372805106 | H18: 3.457011884 | I18: 3.547011908 | J18: 3.6407117 | K18: 3.697361439
C19: Augmentation HV | D19: total spend $0s | E19: 1414107.39 | F19: 1491978.764 | G19: 1516006.755 | H19: 1556941.071 | I19: 1600625.721 | J19: 1647839.239 | K19: 1678077.411
C20: Augmentation LV | D20: net circuit KM added | E20: 56.21668183 | F20: 56.64452232 | G20: 58.34235215 | H20: 59.79895025 | I20: 61.35575918 | J20: 62.97656621 | K20: 63.95648618
C21: Augmentation LV | D21: total spend $0s | E21: 19562979.02 | F21: 20640263.57 | G21: 20972670.49 | H21: 21538962.11 | I21: 22143302.28 | J21: 22796461.33 | K21: 23214780.86
C22: Mean days to connect residential customer with LV single phase connection | D22: 0's | E22: 15.252 | F22: 15.007968 | G22: 14.76784051 | H22: 14.53155506 | I22: 14.29905018 | J22: 14.07026538 | K22: 13.84514113
C23: Volume of GSL breaches for residential customers | D23: 0's | E23: 203.688 | F23: 200.428992 | G23: 197.2221281 | H23: 194.0665741 | I23: 190.9615089 | J23: 187.9061248 | K23: 184.8996268
C24: Volume of customer complaints relating to connection services | D24: 0's | E24: 553.992 | F24: 545.128128 | G24: 536.406078 | H24: 527.8235807 | I24: 519.3784034 | J24: 511.068349 | K24: 502.8912554
C25: GSL payments | D25: $ | E25: 55566.0864 | F25: 53434.36927 | G25: 51356.64216 | H25: 49331.72313 | I25: 47358.45421 | J25: 45435.70096 | K25: 43562.35206
B26: COMMERCIAL/INDUSTRIAL | C26: Underground connections | D26: 0's | E26: 1748.73216 | F26: 1598.751875 | G26: 1633.819905 | H26: 1669.937023 | I26: 1707.104015 | J26: 1745.32168 | K26: 1784.590827
C27: Overhead connections | D27: 0's | E27: 1392.978 | F27: 1308.321648 | G27: 1334.782794 | H27: 1362.363319 | I27: 1391.065132 | J27: 1418.890174 | K27: 1448.840417
C28: Distribution substations installed | D28: MVA added | E28: 102.5927034 | F28: 94.81523107 | G28: 97.72092463 | H28: 100.2256164 | I28: 102.9012811 | J28: 105.6874295 | K28: 107.4004131
C29: Distribution substations installed | D29: 0's | E29: 186.2127836 | F29: 172.0961386 | G29: 177.3701714 | H29: 181.9163586 | I29: 186.7728732 | J29: 191.8299234 | K29: 194.9391059
C30: Distribution substations installed | D30: total spend $0s | E30: 39768793.34 | F30: 38585873.56 | G30: 39207960.82 | H30: 40295722.52 | I30: 41456012.05 | J30: 42711050.1 | K30: 43526797.13
C31: Augmentation HV | D31: net circuit KM added | E31: 24.1256814 | F31: 22.29673242 | G31: 22.98003479 | H31: 23.56903765 | I31: 24.19824647 | J31: 24.85343661 | K31: 25.25626152
C32: Augmentation HV | D32: total spend $0s | E32: 33133415.06 | F32: 32147864.11 | G32: 32666156.81 | H32: 33572426.7 | I32: 34539123.23 | J32: 35584759.6 | K32: 36264400.16
C33: Augmentation LV | D33: net circuit KM added | E33: 26.38600009 | F33: 24.38569813 | G33: 25.13301863 | H33: 25.77720477 | I33: 26.46536373 | J33: 27.1819382 | K33: 27.6225035
C34: Augmentation LV | D34: total spend $0s | E34: 5112199.982 | F34: 4960137.976 | G34: 5040106.066 | H34: 5179935.688 | I34: 5329088.62 | J34: 5490421.287 | K34: 5595283.96
B35: SUBDIVISION | C35: Underground connections | D35: 0's | E35: 13497 | F35: 13466 | G35: 13964 | H35: 13956 | I35: 14113 | J35: 14335 | K35: 14461
C36: Overhead connections | D36: 0's | E36: 96 | F36: 96 | G36: 100 | H36: 100 | I36: 101 | J36: 102 | K36: 103
C37: Distribution substations installed | D37: MVA added | E37: 0 | F37: 0 | G37: 0 | H37: 0 | I37: 0 | J37: 0 | K37: 0
C38: Distribution substations installed | D38: 0's | E38: 0 | F38: 0 | G38: 0 | H38: 0 | I38: 0 | J38: 0 | K38: 0
C39: Distribution substations installed | D39: total spend $0s | E39: 0 | F39: 0 | G39: 0 | H39: 0 | I39: 0 | J39: 0 | K39: 0
C40: Augmentation HV | D40: net circuit KM added | E40: 8.492163194 | F40: 8.264283424 | G40: 8.26955703 | H40: 8.376073865 | I40: 8.424035559 | J40: 8.406970542 | K40: 8.410952552
C41: Augmentation HV | D41: total spend $0s | E41: 4287123.38 | F41: 4381828.432 | G41: 4320492.433 | H41: 4384476.174 | I41: 4417342.764 | J41: 4420066.384 | K41: 4433346.382
C42: Augmentation LV | D42: net circuit KM added | E42: 0 | F42: 0 | G42: 0 | H42: 0 | I42: 0 | J42: 0 | K42: 0
C43: Augmentation LV | D43: total spend $0s | E43: 0 | F43: 0 | G43: 0 | H43: 0 | I43: 0 | J43: 0 | K43: 0
C44: Cost per lot | D44: $ | E44: 385.0979349 | F44: 386.8571873 | G44: 395.6409931 | H44: 404.6183365 | I44: 413.8409062 | J44: 423.2571511 | K44: 432.9015551
B45: EMBEDDED GENERATION | C45: Underground connections | D45: 0's | E45: 22176.232 | F45: 22531.05171 | G45: 22891.54854 | H45: 23257.81332 | I45: 23629.93833 | J45: 24008.01734 | K45: 24392.14562
C46: Overhead connections | D46: 0's | E46: 16137.128 | F46: 16395.32205 | G46: 16657.6472 | H46: 16924.16956 | I46: 17194.95627 | J46: 17470.07557 | K46: 17749.59678
C47: Distribution substations installed | D47: MVA added | E47: 0 | F47: 0 | G47: 0 | H47: 0 | I47: 0 | J47: 0 | K47: 0
C48: Distribution substations installed | D48: 0's | E48: 0 | F48: 0 | G48: 0 | H48: 0 | I48: 0 | J48: 0 | K48: 0
C49: Distribution substations installed | D49: total spend $ | E49: 0 | F49: 0 | G49: 0 | H49: 0 | I49: 0 | J49: 0 | K49: 0
C50: Augmentation HV | D50: net circuit KM added | E50: 0 | F50: 0 | G50: 0 | H50: 0 | I50: 0 | J50: 0 | K50: 0
C51: Augmentation HV | D51: total spend $0s | E51: 0 | F51: 0 | G51: 0 | H51: 0 | I51: 0 | J51: 0 | K51: 0
C52: Augmentation LV | D52: net circuit KM added | E52: 0 | F52: 0 | G52: 0 | H52: 0 | I52: 0 | J52: 0 | K52: 0
C53: Augmentation LV | D53: total spend $0s | E53: 23232.00669 | F53: 23303.42322 | G53: 23669.81576 | H53: 23922.44765 | I53: 24199.46356 | J53: 24485.30916 | K53: 24509.61485
B55: VOLUMES AND EXPENDITURE - STANDARD CONTROL SERVICES
B56: CONNECTION SUBCATEGORY | C56: DESCRIPTOR METRIC | D56: Unit of Measure | E56: =CONCATENATE("VOLUMES and EXPENDITURE (0's, real ", dms_DollarReal, ")") -> VOLUMES and EXPENDITURE (0's, real June 2025)
E57: =CRCP_y4 -> 2023-24 | F57: =CRCP_y5 -> 2024-25 | G57: =FRCP_y1 -> 2025-26 | H57: =FRCP_y2 -> 2026-27 | I57: =FRCP_y3 -> 2027-28 | J57: =FRCP_y4 -> 2028-29 | K57: =FRCP_y5 -> 2029-30
B58: RESIDENTIAL | C58: Underground connections | D58: 0's | E58: 21428 | F58: 21515 | G58: 22010 | H58: 22516 | I58: 23036 | J58: 23567 | K58: 24111
C59: Overhead connections | D59: 0's | E59: 14374 | F59: 14433 | G59: 14765 | H59: 15105 | I59: 15453 | J59: 15809 | K59: 16174
C60: Distribution substations installed | D60: MVA added | E60: 4.69281605 | F60: 4.726275687 | G60: 4.911039452 | H60: 5.077761019 | I60: 5.254960312 | J60: 5.439705475 | K60: 5.570850295
C61: Distribution substations installed | D61: 0's | E61: 55.2802915 | F61: 55.67443831 | G61: 57.85091288 | H61: 59.81485451 | I61: 61.90222135 | J61: 64.07847678 | K61: 65.62333254
C62: Distribution substations installed | D62: total spend $0s | E62: 1797594.588 | F62: 1941856.368 | G62: 1964884.542 | H62: 2044522.164 | I62: 2125994.513 | J62: 2214141.239 | K62: 2281544.194
C63: Augmentation HV | D63: net circuit KM added | E63: 1.976871294 | F63: 1.990966327 | G63: 2.06879895 | H63: 2.13903121 | I63: 2.213677263 | J63: 2.29150205 | K63: 2.346747435
C64: Augmentation HV | D64: total spend $0s | E64: 840815.0153 | F64: 908292.672 | G64: 919063.9745 | H64: 956314.0353 | I64: 994422.2804 | J64: 1035652.428 | K64: 1067179.791
C65: Augmentation LV | D65: net circuit KM added | E65: 34.19566728 | F65: 34.43948135 | G65: 35.78582013 | H65: 37.00068881 | I65: 38.29190671 | J65: 39.63810993 | K65: 40.59373755
C66: Augmentation LV | D66: total spend $0s | E66: 11631964.17 | F66: 12565460.45 | G66: 12714472.3 | H66: 13229795.37 | I66: 13756990.69 | J66: 14327374.89 | K66: 14763529.27
C67: Mean days to connect residential customer with LV single phase connection | D67: 0's | E67: 15.252 | F67: 15.007968 | G67: 14.76784051 | H67: 14.53155506 | I67: 14.29905018 | J67: 14.07026538 | K67: 13.84514113
C68: Volume of GSL breaches for residential customers | D68: 0's | E68: 203.688 | F68: 200.428992 | G68: 197.2221281 | H68: 194.0665741 | I68: 190.9615089 | J68: 187.9061248 | K68: 184.8996268
C69: Volume of customer complaints relating to connection services | D69: 0's | E69: 553.992 | F69: 545.128128 | G69: 536.406078 | H69: 527.8235807 | I69: 519.3784034 | J69: 511.068349 | K69: 502.8912554
C70: GSL payments | D70: $ | E70: 55566.0864 | F70: 53434.36927 | G70: 51356.64216 | H70: 49331.72313 | I70: 47358.45421 | J70: 45435.70096 | K70: 43562.35206
B71: COMMERCIAL/INDUSTRIAL | C71: Underground connections | D71: 0's | E71: 1560 | F71: 1407 | G71: 1439 | H71: 1472 | I71: 1506 | J71: 1541 | K71: 1577
C72: Overhead connections | D72: 0's | E72: 934 | F72: 842 | G72: 861 | H72: 881 | I72: 902 | J72: 922 | K72: 944
C73: Distribution substations installed | D73: MVA added | E73: 68.17946183 | F73: 60.36714936 | G73: 62.72707556 | H73: 64.85655475 | I73: 67.11986246 | J73: 69.47955105 | K73: 71.15462027
C74: Distribution substations installed | D74: 0's | E74: 123.750393 | F74: 109.5705108 | G74: 113.8539385 | H74: 117.7190891 | I74: 121.8271476 | J74: 126.110144 | K74: 129.1505094
C75: Distribution substations installed | D75: total spend $0s | E75: 25859003.3 | F75: 24558323.33 | G75: 24849556.7 | H75: 25856719.99 | I75: 26887086.78 | J75: 28001863.25 | K75: 28854296.82
C76: Augmentation HV | D76: net circuit KM added | E76: 16.03306979 | F76: 14.19592782 | G76: 14.75088763 | H76: 15.25165557 | I76: 15.7838946 | J76: 16.33879854 | K76: 16.73270751
C77: Augmentation HV | D77: total spend $0s | E77: 21544457.79 | F77: 20460794.81 | G77: 20703436.21 | H77: 21542555.45 | I77: 22401006.7 | J77: 23329783.97 | K77: 24039989.96
C78: Augmentation LV | D78: net circuit KM added | E78: 17.5351972 | F78: 15.52593465 | G78: 16.13288827 | H78: 16.68057281 | I78: 17.26267696 | J78: 17.86956947 | K78: 18.3003835
C79: Augmentation LV | D79: total spend $0s | E79: 3324123.895 | F79: 3156924.049 | G79: 3194361.524 | H79: 3323830.379 | I79: 3456281.999 | J79: 3599584.316 | K79: 3709162.971
B80: SUBDIVISION | C80: Underground connections | D80: 0's | E80: 9355 | F80: 9334 | G80: 9679 | H80: 9674 | I80: 9782 | J80: 9936 | K80: 10024
C81: Overhead connections | D81: 0's | E81: 0 | F81: 0 | G81: 0 | H81: 0 | I81: 0 | J81: 0 | K81: 0
C82: Distribution substations installed | D82: MVA added | E82: 0 | F82: 0 | G82: 0 | H82: 0 | I82: 0 | J82: 0 | K82: 0
C83: Distribution substations installed | D83: 0's | E83: 0 | F83: 0 | G83: 0 | H83: 0 | I83: 0 | J83: 0 | K83: 0
C84: Distribution substations installed | D84: total spend $0s | E84: 0 | F84: 0 | G84: 0 | H84: 0 | I84: 0 | J84: 0 | K84: 0
C85: Augmentation HV | D85: net circuit KM added | E85: 5.583616886 | F85: 5.338211195 | G85: 5.305732509 | H85: 5.384031104 | I85: 5.402897923 | J85: 5.357718183 | K85: 5.36259493
C86: Augmentation HV | D86: total spend $0s | E86: 2757673.223 | F86: 2827891.704 | G86: 2737019.764 | H86: 2795091.922 | I86: 2818307.853 | J86: 2811763.377 | K86: 2831726.859
C87: Augmentation LV | D87: net circuit KM added | E87: 0 | F87: 0 | G87: 0 | H87: 0 | I87: 0 | J87: 0 | K87: 0
C88: Augmentation LV | D88: total spend $0s | E88: 0 | F88: 0 | G88: 0 | H88: 0 | I88: 0 | J88: 0 | K88: 0
C89: Cost per lot | D89: $ | E89: 0 | F89: 0 | G89: 0 | H89: 0 | I89: 0 | J89: 0 | K89: 0
B90: EMBEDDED GENERATION | C90: Underground connections | D90: 0's | E90: 0 | F90: 0 | G90: 0 | H90: 0 | I90: 0 | J90: 0 | K90: 0
C91: Overhead connections | D91: 0's | E91: 0 | F91: 0 | G91: 0 | H91: 0 | I91: 0 | J91: 0 | K91: 0
C92: Distribution substations installed | D92: MVA added | E92: 0 | F92: 0 | G92: 0 | H92: 0 | I92: 0 | J92: 0 | K92: 0
C93: Distribution substations installed | D93: 0's | E93: 0 | F93: 0 | G93: 0 | H93: 0 | I93: 0 | J93: 0 | K93: 0
C94: Distribution substations installed | D94: total spend $0s | E94: 0 | F94: 0 | G94: 0 | H94: 0 | I94: 0 | J94: 0 | K94: 0
C95: Augmentation HV | D95: net circuit KM added | E95: 0 | F95: 0 | G95: 0 | H95: 0 | I95: 0 | J95: 0 | K95: 0
C96: Augmentation HV | D96: total spend $0s | E96: 0 | F96: 0 | G96: 0 | H96: 0 | I96: 0 | J96: 0 | K96: 0
C97: Augmentation LV | D97: net circuit KM added | E97: 0 | F97: 0 | G97: 0 | H97: 0 | I97: 0 | J97: 0 | K97: 0
C98: Augmentation LV | D98: total spend $0s | E98: 0 | F98: 0 | G98: 0 | H98: 0 | I98: 0 | J98: 0 | K98: 0
B102: 2.5.2 - COST METRICS BY CONNECTION CLASSIFICATION
B103: EXPENDITURE - ALL SERVICE CLASSIFICATIONS (including capcons)
B104: CONNECTION SUBCATEGORY | C104: CONNECTION CLASSICIATION | E104: =CONCATENATE("EXPENDITURE ($, real ", dms_DollarReal, ")") -> EXPENDITURE ($, real June 2025)
E105: =CRCP_y4 -> 2023-24 | F105: =CRCP_y5 -> 2024-25 | G105: =FRCP_y1 -> 2025-26 | H105: =FRCP_y2 -> 2026-27 | I105: =FRCP_y3 -> 2027-28 | J105: =FRCP_y4 -> 2028-29 | K105: =FRCP_y5 -> 2029-30
B106: RESIDENTIAL | C106: Simple connection LV | E106: 18751728.79 | F106: 19794295.95 | G106: 20113152.14 | H106: 20659421.14 | I106: 21242332.31 | J106: 21872443 | K106: 22277309.68
C107: Complex connection LV | E107: 1065224.671 | F107: 1121863.306 | G107: 1139915.774 | H107: 1170048.576 | I107: 1202218.366 | J107: 1236964.184 | K107: 1258951.757
C108: Complex connection HV | E108: 4183380.326 | F108: 4405813.168 | G108: 4476709.328 | H108: 4595047.718 | I108: 4721385.824 | J108: 4857840.579 | K108: 4944190.794
B109: COMMERCIAL/INDUSTRIAL | C109: Simple connection LV | E109: 5915127.31 | F109: 6026723.918 | G109: 6124095.279 | H109: 6303009.899 | I109: 6493685.715 | J109: 6700239.585 | K109: 6838096.684
C110: Complex connection HV (customer connected at LV, minor HV works) | E110: 61908889.31 | F110: 59820513.06 | G110: 60784770.1 | H110: 62463407.81 | I110: 64254115.11 | J110: 66190786.34 | K110: 67446487.31
C111: Complex connection HV (customer connected at LV, upstream asset works) | E111: 2734942.755 | F111: 2642684.769 | G111: 2685282.654 | H111: 2759439.663 | I111: 2838547.559 | J111: 2924103.688 | K111: 2979576.663
C112: Complex connection HV (customer connected at HV) | E112: 7455449.008 | F112: 7203953.903 | G112: 7320075.662 | H112: 7522227.534 | I112: 7737875.515 | J112: 7971101.369 | K112: 8122320.599
C113: Complex connection sub-transmission | E113: 0 | F113: 0 | G113: 0 | H113: 0 | I113: 0 | J113: 0 | K113: 0
B114: SUBDIVISION | C114: Complex connection LV | E114: 0 | F114: 0 | G114: 0 | H114: 0 | I114: 0 | J114: 0 | K114: 0
C115: Complex connection HV (no upstream asset works) | E115: 1390126.65 | F115: 1394399.98 | G115: 1416323.7 | H115: 1431440.359 | I115: 1448016.078 | J115: 1465120.136 | K115: 1466574.508
C116: Complex connection HV (with upstream asset works) | E116: 2896996.73 | F116: 2987428.453 | G116: 2904168.732 | H116: 2953035.815 | I116: 2969326.686 | J116: 2954946.248 | K116: 2966771.874
B117: EMBEDDED GENERATION | C117: Simple connection LV | E117: 0 | F117: 0 | G117: 0 | H117: 0 | I117: 0 | J117: 0 | K117: 0
C118: Complex connection HV (small capacity) | E118: 0 | F118: 0 | G118: 0 | H118: 0 | I118: 0 | J118: 0 | K118: 0
C119: Complex connection HV (large capacity) | E119: 23232.00669 | F119: 23303.42322 | G119: 23669.81576 | H119: 23922.44765 | I119: 24199.46356 | J119: 24485.30916 | K119: 24509.61485
B121: EXPENDITURE - STANDARD CONTROL SERVICES (excluding capcons)
E122: =CONCATENATE("EXPENDITURE ($, real ", dms_DollarReal, ")") -> EXPENDITURE ($, real June 2025)
E123: =CRCP_y4 -> 2023-24 | F123: =CRCP_y5 -> 2024-25 | G123: =FRCP_y1 -> 2025-26 | H123: =FRCP_y2 -> 2026-27 | I123: =FRCP_y3 -> 2027-28 | J123: =FRCP_y4 -> 2028-29 | K123: =FRCP_y5 -> 2029-30
B124: RESIDENTIAL | C124: Simple connection LV | E124: 11263459.5 | F124: 12167382.29 | G124: 12311673.4 | H124: 12810670.85 | I124: 13321164.44 | J124: 13873478.67 | K124: 14295815.53
C125: Complex connection LV | E125: 610264.8739 | F125: 659240.2643 | G125: 667058.0928 | H125: 694094.2461 | I125: 721753.2709 | J125: 751678.1777 | K125: 774560.7875
C126: Complex connection HV | E126: 2396649.398 | F126: 2588986.931 | G126: 2619689.327 | H126: 2725866.47 | I126: 2834489.771 | J126: 2952011.707 | K126: 3041876.937
B127: COMMERCIAL/INDUSTRIAL | C127: Simple connection LV | E127: 4088436.525 | F127: 4166551.421 | G127: 4215961.91 | H127: 4386836.672 | I127: 4561648.126 | J127: 4750780.479 | K127: 4895403.882
C128: Complex connection HV (customer connected at LV, minor HV works) | E128: 40047249.25 | F128: 37789262.97 | G128: 38237400 | H128: 39787178.38 | I128: 41372661.28 | J128: 43088030.06 | K128: 44399717.18
C129: Complex connection HV (customer connected at LV, upstream asset works) | E129: 1769163.289 | F129: 1669412.457 | G129: 1689209.761 | H129: 1757674.164 | I129: 1827715.882 | J129: 1903495.556 | K129: 1961441.825
C130: Complex connection HV (customer connected at HV) | E130: 4822735.927 | F130: 4550815.34 | G130: 4604782.756 | H130: 4791416.595 | I130: 4982350.191 | J130: 5188925.444 | K130: 5346886.87
C131: Complex connection sub-transmission | E131: 0 | F131: 0 | G131: 0 | H131: 0 | I131: 0 | J131: 0 | K131: 0
B132: SUBDIVISION | C132: Complex connection LV | E132: 0 | F132: 0 | G132: 0 | H132: 0 | I132: 0 | J132: 0 | K132: 0
C133: Complex connection HV (no upstream asset works) | E133: 0 | F133: 0 | G133: 0 | H133: 0 | I133: 0 | J133: 0 | K133: 0
C134: Complex connection HV (with upstream asset works) | E134: 2757673.223 | F134: 2827891.704 | G134: 2737019.764 | H134: 2795091.922 | I134: 2818307.853 | J134: 2811763.377 | K134: 2831726.859
B135: EMBEDDED GENERATION | C135: Simple connection LV | E135: 0 | F135: 0 | G135: 0 | H135: 0 | I135: 0 | J135: 0 | K135: 0
C136: Complex connection HV (small capacity) | E136: 0 | F136: 0 | G136: 0 | H136: 0 | I136: 0 | J136: 0 | K136: 0
C137: Complex connection HV (large capacity) | E137: 0 | F137: 0 | G137: 0 | H137: 0 | I137: 0 | J137: 0 | K137: 0
B139: EXPENDITURE - STANDARD CONTROL SERVICES - CAPITAL CONTRIBUTIONS
E140: =CONCATENATE("EXPENDITURE ($, real ", dms_DollarReal, ")") -> EXPENDITURE ($, real June 2025)
E141: =CRCP_y4 -> 2023-24 | F141: =CRCP_y5 -> 2024-25 | G141: =FRCP_y1 -> 2025-26 | H141: =FRCP_y2 -> 2026-27 | I141: =FRCP_y3 -> 2027-28 | J141: =FRCP_y4 -> 2028-29 | K141: =FRCP_y5 -> 2029-30
B142: RESIDENTIAL | C142: Simple connection LV | E142: 569053.8942 | F142: 686428.201 | G142: 751870.1685 | H142: 723900.0656 | I142: 713813.6822 | J142: 706476.4153 | K142: 681767.2425
C143: Complex connection LV | E143: 30831.87745 | F143: 37191.32824 | G143: 40737.03585 | H143: 39221.58926 | I143: 38675.09948 | J143: 38277.55943 | K143: 36938.79311
C144: Complex connection HV | E144: 121083.8174 | F144: 146058.8316 | G144: 159983.6344 | H144: 154032.1299 | I144: 151885.9398 | J144: 150324.7093 | K144: 145067.0685
B145: COMMERCIAL/INDUSTRIAL | C145: Simple connection LV | E145: 206556.4959 | F145: 235057.8232 | G145: 257467.5179 | H145: 247889.5439 | I145: 244435.6017 | J145: 241923.0564 | K145: 233461.7426
C146: Complex connection HV (customer connected at LV, minor HV works) | E146: 2023272.08 | F146: 2131897.821 | G146: 2335146.446 | H146: 2248277.344 | I146: 2216951.215 | J146: 2194163.248 | K146: 2117421.89
C147: Complex connection HV (customer connected at LV, upstream asset works) | E147: 89381.88651 | F147: 94180.63491 | G147: 103159.5289 | H147: 99321.92135 | I147: 97938.03007 | J147: 96931.32836 | K147: 93541.13317
C148: Complex connection HV (customer connected at HV) | E148: 243654.8611 | F148: 256736.2405 | G148: 281212.6893 | H148: 270751.3781 | I148: 266978.893 | J148: 264234.6259 | K148: 254992.9599
C149: Complex connection sub-transmission | E149: 0 | F149: 0 | G149: 0 | H149: 0 | I149: 0 | J149: 0 | K149: 0
B150: SUBDIVISION | C150: Complex connection LV | E150: 0 | F150: 0 | G150: 0 | H150: 0 | I150: 0 | J150: 0 | K150: 0
C151: Complex connection HV (no upstream asset works) | E151: 0 | F151: 0 | G151: 0 | H151: 0 | I151: 0 | J151: 0 | K151: 0
C152: Complex connection HV (with upstream asset works) | E152: 139323.5077 | F152: 159536.749 | G152: 167148.9686 | H152: 157943.893 | I152: 151018.8328 | J152: 143182.8713 | K152: 135045.0143
B153: EMBEDDED GENERATION | C153: Simple connection LV | E153: 0 | F153: 0 | G153: 0 | H153: 0 | I153: 0 | J153: 0 | K153: 0
C154: Complex connection HV (small capacity) | E154: 0 | F154: 0 | G154: 0 | H154: 0 | I154: 0 | J154: 0 | K154: 0
C155: Complex connection HV (large capacity) | E155: 0 | F155: 0 | G155: 0 | H155: 0 | I155: 0 | J155: 0 | K155: 0
B159: 2.5.3 - VOLUMES BY CONNECTION CLASSIFICATION
B160: NEW CONNECTIONS - ALL
E161: VOLUMES
E162: =CRCP_y4 -> 2023-24 | F162: =CRCP_y5 -> 2024-25 | G162: =FRCP_y1 -> 2025-26 | H162: =FRCP_y2 -> 2026-27 | I162: =FRCP_y3 -> 2027-28 | J162: =FRCP_y4 -> 2028-29 | K162: =FRCP_y5 -> 2029-30
B163: RESIDENTIAL | C163: Simple connection LV | E163: 39436 | F163: 39645 | G163: 40528 | H163: 41431 | I163: 42357 | J163: 43302 | K163: 44270
C164: Complex connection LV | E164: 77 | F164: 77 | G164: 79 | H164: 80 | I164: 82 | J164: 84 | K164: 86
C165: Complex connection HV | E165: 438 | F165: 440 | G165: 450 | H165: 460 | I165: 470 | J165: 480 | K165: 491
B166: COMMERCIAL/INDUSTRIAL | C166: Simple connection LV | E166: 1292 | F166: 1195 | G166: 1220 | H166: 1247 | I166: 1274 | J166: 1301 | K166: 1329
C167: Complex connection HV (customer connected at LV, minor HV works) | E167: 1369 | F167: 1267 | G167: 1294 | H167: 1322 | I167: 1350 | J167: 1379 | K167: 1409
C168: Complex connection HV (customer connected at LV, upstream asset works) | E168: 374 | F168: 346 | G168: 353 | H168: 361 | I168: 369 | J168: 377 | K168: 385
C169: Complex connection HV (customer connected at HV) | E169: 107 | F169: 99 | G169: 101 | H169: 103 | I169: 105 | J169: 107 | K169: 110
C170: Complex connection sub-transmission | E170: 0 | F170: 0 | G170: 0 | H170: 0 | I170: 0 | J170: 0 | K170: 0
B171: SUBDIVISION | C171: Complex connection LV | E171: 0 | F171: 0 | G171: 0 | H171: 0 | I171: 0 | J171: 0 | K171: 0
C172: Complex connection HV (no upstream asset works) | E172: 13593 | F172: 13562 | G172: 14064 | H172: 14056 | I172: 14214 | J172: 14437 | K172: 14564
C173: Complex connection HV (with upstream asset works) | E173: 0 | F173: 0 | G173: 0 | H173: 0 | I173: 0 | J173: 0 | K173: 0
B174: EMBEDDED GENERATION | C174: Simple connection LV | E174: 38303 | F174: 38916 | G174: 39539 | H174: 40171 | I174: 40814 | J174: 41467 | K174: 42131
C175: Complex connection HV (small capacity) | E175: 0 | F175: 0 | G175: 0 | H175: 0 | I175: 0 | J175: 0 | K175: 0
C176: Complex connection HV (large capacity) | E176: 10 | F176: 10 | G176: 10 | H176: 11 | I176: 11 | J176: 11 | K176: 11
B178: NEW CONNECTIONS - STANDARD CONTROL SERVICES
E179: VOLUMES
E180: =CRCP_y4 -> 2023-24 | F180: =CRCP_y5 -> 2024-25 | G180: =FRCP_y1 -> 2025-26 | H180: =FRCP_y2 -> 2026-27 | I180: =FRCP_y3 -> 2027-28 | J180: =FRCP_y4 -> 2028-29 | K180: =FRCP_y5 -> 2029-30
B181: RESIDENTIAL | C181: Simple connection LV | E181: 35341 | F181: 35485 | G181: 36302 | H181: 37137 | I181: 37994 | J181: 38869 | K181: 39767
C182: Complex connection LV | E182: 69 | F182: 69 | G182: 70 | H182: 72 | I182: 74 | J182: 75 | K182: 77
C183: Complex connection HV | E183: 392 | F183: 394 | G183: 403 | H183: 412 | I183: 422 | J183: 431 | K183: 441
B184: COMMERCIAL/INDUSTRIAL | C184: Simple connection LV | E184: 1025 | F184: 925 | G184: 946 | H184: 967 | I184: 990 | J184: 1013 | K184: 1036
C185: Complex connection HV (customer connected at LV, minor HV works) | E185: 1087 | F185: 980 | G185: 1003 | H185: 1026 | I185: 1050 | J185: 1074 | K185: 1099
C186: Complex connection HV (customer connected at LV, upstream asset works) | E186: 297 | F186: 268 | G186: 274 | H186: 280 | I186: 287 | J186: 293 | K186: 300
C187: Complex connection HV (customer connected at HV) | E187: 85 | F187: 76 | G187: 78 | H187: 80 | I187: 82 | J187: 84 | K187: 86
C188: Complex connection sub-transmission | E188: 0 | F188: 0 | G188: 0 | H188: 0 | I188: 0 | J188: 0 | K188: 0
B189: SUBDIVISION | C189: Complex connection LV | E189: 0 | F189: 0 | G189: 0 | H189: 0 | I189: 0 | J189: 0 | K189: 0
C190: Complex connection HV (no upstream asset works) | E190: 13593 | F190: 13562 | G190: 14064 | H190: 14056 | I190: 14214 | J190: 14437 | K190: 14564
C191: Complex connection HV (with upstream asset works) | E191: 0 | F191: 0 | G191: 0 | H191: 0 | I191: 0 | J191: 0 | K191: 0
B192: EMBEDDED GENERATION | C192: Simple connection LV | E192: 0 | F192: 0 | G192: 0 | H192: 0 | I192: 0 | J192: 0 | K192: 0
C193: Complex connection HV (small capacity) | E193: 0 | F193: 0 | G193: 0 | H193: 0 | I193: 0 | J193: 0 | K193: 0
C194: Complex connection HV (large capacity) | E194: 0 | F194: 0 | G194: 0 | H194: 0 | I194: 0 | J194: 0 | K194: 0
B196: EXISTING CONNECTIONS
E197: VOLUMES
E198: =CRCP_y4 -> 2023-24 | F198: =CRCP_y5 -> 2024-25 | G198: =FRCP_y1 -> 2025-26 | H198: =FRCP_y2 -> 2026-27 | I198: =FRCP_y3 -> 2027-28 | J198: =FRCP_y4 -> 2028-29 | K198: =FRCP_y5 -> 2029-30
B199: RESIDENTIAL | C199: Simple connection LV | E199: 1442592 | F199: 1463411 | G199: 1482989 | H199: 1502496 | I199: 1523060 | J199: 1543233 | K199: 1579852
C200: Complex connection LV | E200: 0 | F200: 0 | G200: 0 | H200: 0 | I200: 0 | J200: 0 | K200: 0
C201: Complex connection HV | E201: 0 | F201: 0 | G201: 0 | H201: 0 | I201: 0 | J201: 0 | K201: 0
B202: COMMERCIAL/INDUSTRIAL | C202: Simple connection LV | E202: 123625 | F202: 124673 | G202: 126170 | H202: 127996 | I202: 130195 | J202: 132452 | K202: 134444
C203: Complex connection HV (customer connected at LV, minor HV works) | E203: 0 | F203: 0 | G203: 0 | H203: 0 | I203: 0 | J203: 0 | K203: 0
C204: Complex connection HV (customer connected at LV, upstream asset works) | E204: 0 | F204: 0 | G204: 0 | H204: 0 | I204: 0 | J204: 0 | K204: 0
C205: Complex connection HV (customer connected at HV) | E205: 775 | F205: 781 | G205: 781 | H205: 781 | I205: 781 | J205: 781 | K205: 781
C206: Complex connection sub-transmission | E206: 0 | F206: 0 | G206: 0 | H206: 0 | I206: 0 | J206: 0 | K206: 0
B207: SUBDIVISION | C207: Complex connection LV | E207: 0 | F207: 0 | G207: 0 | H207: 0 | I207: 0 | J207: 0 | K207: 0
C208: Complex connection HV (no upstream asset works) | E208: 0 | F208: 0 | G208: 0 | H208: 0 | I208: 0 | J208: 0 | K208: 0
C209: Complex connection HV (with upstream asset works) | E209: 0 | F209: 0 | G209: 0 | H209: 0 | I209: 0 | J209: 0 | K209: 0
B210: EMBEDDED GENERATION | C210: Simple connection LV | E210: 573186 | F210: 626311 | G210: 678186 | H210: 730479 | I210: 787030 | J210: 842682 | K210: 895030
C211: Complex connection HV (small capacity) | E211: 0 | F211: 0 | G211: 0 | H211: 0 | I211: 0 | J211: 0 | K211: 0
C212: Complex connection HV (large capacity) | E212: 15 | F212: 15 | G212: 15 | H212: 15 | I212: 15 | J212: 15 | K212: 15

Sheet 2.6 Non-network
B1: =INDEX(dms_Worksheet_List,MATCH(dms_Model,dms_Model_List)) -> REGULATORY REPORTING STATEMENT
B2: =INDEX(dms_TradingNameFull_List,MATCH(dms_TradingName,dms_TradingName_List)) -> Energex
B3: =CONCATENATE("REGULATORY PERIOD FROM ", FRCP_y1," TO ",dms_MultiYear_FinalYear_Result) -> REGULATORY PERIOD FROM 2025-26 TO 2029-30
B4: 2.6 NON-NETWORK EXPENDITURE
B5: TEMPLATE DATE - OCTOBER 2023 - FINAL RIN
B7: There are THREE tables on this worksheet - each has been 'grouped' (and sub-grouped) for easy navigation. See the Instructions sheet on how to group or ungroup tables.
B9: 2.6.1 - NON-NETWORK EXPENDITURE
E10: =CONCATENATE("EXPENDITURE ($, real ", dms_DollarReal, ")") -> EXPENDITURE ($, real June 2025)
B11: SERVICE SUBCATEGORY | C11: ASSET CATEGORY | E11: =CRCP_y4 -> 2023-24 | F11: =CRCP_y5 -> 2024-25 | G11: =FRCP_y1 -> 2025-26 | H11: =FRCP_y2 -> 2026-27 | I11: =FRCP_y3 -> 2027-28 | J11: =FRCP_y4 -> 2028-29 | K11: =FRCP_y5 -> 2029-30
B12: OPEX
B13: IT & COMMUNICATIONS | C13: Total IT and communications | E13: 90124850.69 | F13: 89662888.58 | G13: 85116470.34 | H13: 85584991.71 | I13: 85990002.2 | J13: 86471451.74 | K13: 86983802.32
B14: MOTOR VEHICLES | C14: Car | E14: 784509.9335 | F14: 780501.1463 | G14: 713884.2848 | H14: 718474.4154 | I14: 722480.7163 | J14: 727061.5784 | K14: 731866.5476
C15: Light commercial vehicle | E15: 6609103.526 | F15: 6575331.5 | G15: 6014117.785 | H15: 6052787.338 | I15: 6086538.418 | J15: 6125129.888 | K15: 6165609.348
C16: Elevated work platform (LCV) | E16: 0 | F16: 0 | G16: 0 | H16: 0 | I16: 0 | J16: 0 | K16: 0
C17: Elevated work platform (HCV) | E17: 7796115.854 | F17: 7756278.285 | G17: 7094269.114 | H17: 7139883.82 | I17: 7179696.682 | J17: 7225219.282 | K17: 7272968.96
C18: Heavy commercial vehicle | E18: 6301037.217 | F18: 6268839.388 | G18: 5733785.202 | H18: 5770652.273 | I18: 5802830.133 | J18: 5839622.762 | K18: 5878215.377
B19: BUILDINGS AND PROPERTY | C19: Total buildings and property expenditure | E19: 31359076.59 | F19: 31198336.18 | G19: 23254582.9 | H19: 23382587.14 | I19: 23493239.64 | J19: 23624775.97 | K19: 23764754.74
B20: OTHER | C20: Other expenditure
B21: OTHER - DNSP nominated | C21: Office furniture and equipment | E21: 0 | F21: 0 | G21: 0 | H21: 0 | I21: 0 | J21: 0 | K21: 0
C22: Plant and equipment | E22: 3496341.927 | F22: 3478475.881 | G22: 3181583.113 | H22: 3202040.044 | I22: 3219895.01 | J22: 3240310.634 | K22: 3261725.041
C23: Crane borer plant HCV | E23: 3466054.712 | F23: 3448343.432 | G23: 3154022.51 | H23: 3174302.232 | I23: 3192002.528 | J23: 3212241.302 | K23: 3233470.206
C24: Other fleet assets | E24: 7681970.591 | F24: 7642716.295 | G24: 6990399.798 | H24: 7035346.646 | I24: 7074576.596 | J24: 7119432.686 | K24: 7166483.246
C25: EWP Hired | E25: 0 | F25: 0 | G25: 0 | H25: 0 | I25: 0 | J25: 0 | K25: 0
C26: Car Hired | E26: 0 | F26: 0 | G26: 0 | H26: 0 | I26: 0 | J26: 0 | K26: 0
C27: LCV Hired | E27: 593710.1384 | F27: 590676.3239 | G27: 540261.2757 | H27: 543735.0457 | I27: 546766.9786 | J27: 550233.7343 | K27: 553870.0922
C28: Other Hire | E28: 0 | F28: 0 | G28: 0 | H28: 0 | I28: 0 | J28: 0 | K28: 0
B32: CAPEX
B33: IT & COMMUNICATIONS | C33: Total IT and communications | E33: 84870001.24 | F33: 75028479.12 | G33: 74885470 | H33: 62816850 | I33: 47127460 | J33: 36949710 | K33: 44254990
B34: MOTOR VEHICLES | C34: Car | E34: 325818.0356 | F34: 300912.7147 | G34: 536110.4637 | H34: 213006.7675 | I34: 313687.9438 | J34: 331242.0113 | K34: 259931.2665
C35: Light commercial vehicle | E35: 6019850.139 | F35: 17532124.67 | G35: 15955464.77 | H35: 13812845 | I35: 7557570.691 | J35: 3537464.284 | K35: 12622255.68
C36: Elevated work platform (LCV) | E36: 0 | F36: 0 | G36: 0 | H36: 0 | I36: 0 | J36: 0 | K36: 0
C37: Elevated work platform (HCV) | E37: 12391641.2 | F37: 16983757.93 | G37: 20145771.4 | H37: 22188843.31 | I37: 13329448.66 | J37: 11553052.6 | K37: 10273525.64
C38: Heavy commercial vehicle | E38: 10509904.31 | F38: 9788624.837 | G38: 4542203.028 | H38: 6606572.939 | I38: 6691793.968 | J38: 7631726.443 | K38: 8581787.619
B39: BUILDINGS AND PROPERTY | C39: Total buildings and property expenditure | E39: 14253036.76 | F39: 53173711.84 | G39: 29968460.88 | H39: 41182046.71 | I39: 28798837.23 | J39: 23593441.07 | K39: 14494223.69
B40: OTHER | C40: Other expenditure
B41: OTHER - DNSP nominated | C41: Plant and equipment | E41: 71548.86763 | F41: 1303451.014 | G41: 1111397.209 | H41: 0 | I41: 3298327.261 | J41: 0 | K41: 1226248.05
C42: Tools and Equipment | E42: 4054756.755 | F42: 4965476.791 | G42: 5347950.646 | H42: 5045359.361 | I42: 5143900.767 | J42: 4931706.772 | K42: 4778761.172
C43: Crane borer plant HCV | E43: 1334931.027 | F43: 3801946.18 | G43: 2427512.66 | H43: 2060799.226 | I43: 1328840.541 | J43: 4749906.565 | K43: 5227990.518
C44: Refurbishment/ Rebuild EWP (HCV) | E44: 0 | F44: 0 | G44: 0 | H44: 0 | I44: 0 | J44: 0 | K44: 0
C45: Other fleet assets | E45: 2620670.19 | F45: 4838657.777 | G45: 2516734.139 | H45: 1364155.359 | I45: 3540026.218 | J45: 1621278.79 | K45: 1378938.985
C46: Property leases | E46: 0 | F46: 0 | G46: 0 | H46: 0 | I46: 0 | J46: 11922845.82 | K46: 1965238.559
B55: 2.6.2 - ANNUAL DESCRIPTOR METRICS
B56: IT & COMMUNICATIONS
E57: VOLUMES
E58: =CRCP_y4 -> 2023-24 | F58: =CRCP_y5 -> 2024-25 | G58: =FRCP_y1 -> 2025-26 | H58: =FRCP_y2 -> 2026-27 | I58: =FRCP_y3 -> 2027-28 | J58: =FRCP_y4 -> 2028-29 | K58: =FRCP_y5 -> 2029-30
B59: Employee numbers | E59: 2676 | F59: 2756 | G59: 2839 | H59: 2867 | I59: 2896 | J59: 2896 | K59: 2896
B60: User numbers | E60: 3329 | F60: 3441 | G60: 3555 | H60: 3595 | I60: 3626 | J60: 3626 | K60: 3626
B61: Number of devices | E61: 9190 | F61: 9465 | G61: 9750 | H61: 9847 | I61: 9946 | J61: 9946 | K61: 9946
B63: MOTOR VEHICLES
E64: VOLUMES or PER CENT
B65: ASSET CATEGORY | C65: DESCRIPTOR METRIC | D65: UNITS | E65: =CRCP_y4 -> 2023-24 | F65: =CRCP_y5 -> 2024-25 | G65: =FRCP_y1 -> 2025-26 | H65: =FRCP_y2 -> 2026-27 | I65: =FRCP_y3 -> 2027-28 | J65: =FRCP_y4 -> 2028-29 | K65: =FRCP_y5 -> 2029-30
B66: CAR | C66: Average kilometres travelled | D66: 0's | E66: 14633.459 | F66: 14869.0943 | G66: 14875.51369 | H66: 14878.39341 | I66: 14881.33313 | J66: 14882.38303 | K66: 14882.38303
C67: Number purchased | D67: 0's | E67: 7 | F67: 8 | G67: 11.22188217 | H67: 5.617215948 | I67: 7.757804705 | J67: 7.74444116 | K67: 6.087961995
C68: Number leased | D68: 0's | E68: 0 | F68: 0 | G68: 0 | H68: 0 | I68: 0 | J68: 0 | K68: 0
C69: Number in fleet | D69: 0's | E69: 68.37 | F69: 69.47092806 | G69: 69.50092052 | H69: 69.51437508 | I69: 69.52810994 | J69: 69.53301525 | K69: 69.53301525
C70: Proportion of total fleet expenditure allocated as regulatory expenditure | D70: % | E70: 0 | F70: 0 | G70: 0 | H70: 0 | I70: 0 | J70: 0 | K70: 0
B71: LIGHT COMMERCIAL VEHICLE | C71: Average kilometres travelled | D71: 0's | E71: 22577.97394 | F71: 24495.71191 | G71: 24816.03456 | H71: 24959.7307 | I71: 25105.04349 | J71: 25157.4327 | K71: 26077.74701
C72: Number purchased | D72: 0's | E72: 144.91 | F72: 224.7762464 | G72: 207.2190634 | H72: 190.3751873 | I72: 101.91 | J72: 45.00064121 | K72: 146.63
C73: Number leased | D73: 0's | E73: 0 | F73: 0 | G73: 0 | H73: 0 | I73: 0 | J73: 0 | K73: 0
C74: Number in fleet | D74: 0's | E74: 801.735 | F74: 869.8331232 | G74: 881.2076549 | H74: 886.3102485 | I74: 891.4702485 | J74: 893.3305691 | K74: 926.0105691
C75: Proportion of total fleet expenditure allocated as regulatory expenditure | D75: % | E75: 0 | F75: 0 | G75: 0 | H75: 0 | I75: 0 | J75: 0 | K75: 0
B76: ELEVATED WORK PLATFORM (LCV) | C76: Average kilometres travelled | D76: 0's | E76: 0 | F76: 0 | G76: 0 | H76: 0 | I76: 0 | J76: 0 | K76: 0
C77: Number purchased | D77: 0's | E77: 0 | F77: 0 | G77: 0 | H77: 0 | I77: 0 | J77: 0 | K77: 0
C78: Number leased | D78: 0's | E78: 0 | F78: 0 | G78: 0 | H78: 0 | I78: 0 | J78: 0 | K78: 0
C79: Number in fleet | D79: 0's | E79: 0 | F79: 0 | G79: 0 | H79: 0 | I79: 0 | J79: 0 | K79: 0
C80: Proportion of total fleet expenditure allocated as regulatory expenditure | D80: % | E80: 0 | F80: 0 | G80: 0 | H80: 0 | I80: 0 | J80: 0 | K80: 0
B81: ELEVATED WORK PLATFORM (HCV) | C81: Average kilometres travelled | D81: 0's | E81: 14729.38483 | F81: 15134.16423 | G81: 15308.92911 | H81: 15387.32831 | I81: 15467.36082 | J81: 15495.94386 | K81: 15495.94386
C82: Number purchased | D82: 0's | E82: 43.43 | F82: 44.77324504 | G82: 39.43564562 | H82: 38.80898121 | I82: 22.94604332 | J82: 18.8835869 | K82: 20.21
C83: Number leased | D83: 0's | E83: 0 | F83: 0 | G83: 0 | H83: 0 | I83: 0 | J83: 0 | K83: 0
C84: Number in fleet | D84: 0's | E84: 212.205 | F84: 218.0366225 | G84: 220.5544453 | H84: 221.6839359 | I84: 222.8369576 | J84: 223.248751 | K84: 223.248751
C85: Proportion of total fleet expenditure allocated as regulatory expenditure | D85: % | E85: 0 | F85: 0 | G85: 0 | H85: 0 | I85: 0 | J85: 0 | K85: 0
B86: HEAVY COMMERCIAL VEHICLE | C86: Average kilometres travelled | D86: 0's | E86: 10805.40591 | F86: 11312.12865 | G86: 11510.79201 | H86: 11593.17972 | I86: 11677.28384 | J86: 11707.32102 | K86: 11707.32102
C87: Number purchased | D87: 0's | E87: 62.78 | F87: 44.66956028 | G87: 18.97375 | H87: 22.68712317 | I87: 27.49560491 | J87: 31.90343032 | K87: 36.55
C88: Number leased | D88: 0's | E88: 0 | F88: 0 | G88: 0 | H88: 0 | I88: 0 | J88: 0 | K88: 0
C89: Number in fleet | D89: 0's | E89: 247.035 | F89: 258.6197801 | G89: 263.1616551 | H89: 265.0452167 | I89: 266.9680192 | J89: 267.6547343 | K89: 267.6547343
C90: Proportion of total fleet expenditure allocated as regulatory expenditure | D90: % | E90: 0 | F90: 0 | G90: 0 | H90: 0 | I90: 0 | J90: 0 | K90: 0
B93: Table 2.6.4 intentionally omitted
B95: 2.6.5 - INFORMATION & COMMUNICATIONS TECHNOLOGY - CAPEX
E96: =CONCATENATE("EXPENDITURE ($, real ", dms_DollarReal, ")") -> EXPENDITURE ($, real June 2025)
E97: =CRCP_y4 -> 2023-24 | F97: =CRCP_y5 -> 2024-25 | G97: =FRCP_y1 -> 2025-26 | H97: =FRCP_y2 -> 2026-27 | I97: =FRCP_y3 -> 2027-28 | J97: =FRCP_y4 -> 2028-29 | K97: =FRCP_y5 -> 2029-30
B98: RECURRENT
B99: Recurrent | E99: 29216899.36 | F99: 12026095.93 | G99: 46517336.99 | H99: 37435870.91 | I99: 25794283.25 | J99: 19693315.16 | K99: 25899927.4
B109: NON-RECURRENT
B110: Maintain | E110: 45117785.61 | F110: 54865323.24 | G110: 17861514.86 | H110: 15682014.61 | I110: 12408912.18 | J110: 10320117.61 | K110: 11701947.64
B111: Comply | E111: 744130.1447 | F111: 1076963.815 | G111: 4660890.049 | H111: 4833166.431 | I111: 5396652.632 | J111: 4624636.389 | K111: 4397872.348
B112: New / Expanded | E112: 9752021.37 | F112: 7060096.121 | G112: 5845728.097 | H112: 4865798.05 | I112: 3527611.937 | J112: 2311640.849 | K112: 2255242.612

Sheet 2.10 Overheads
B1: =INDEX(dms_Worksheet_List,MATCH(dms_Model,dms_Model_List)) -> REGULATORY REPORTING STATEMENT
B2: =INDEX(dms_TradingNameFull_List,MATCH(dms_TradingName,dms_TradingName_List)) -> Energex
B3: =CONCATENATE("REGULATORY PERIOD FROM ", FRCP_y1," TO ",dms_MultiYear_FinalYear_Result) -> REGULATORY PERIOD FROM 2025-26 TO 2029-30
B4: 2.10 OVERHEADS
B5: TEMPLATE DATE - OCTOBER 2023 - FINAL RIN
B7: There are TWO tables on this worksheet. Each table has been 'grouped' (and sub-grouped) for easy navigation. See the Instructions sheet on how to group or ungroup data.
B9: 2.10.1 - NETWORK OVERHEADS EXPENDITURE
D10: =CONCATENATE("EXPENDITURE ($, real ", dms_DollarReal, ")") -> EXPENDITURE ($, real June 2025)
D11: =CRCP_y4 -> 2023-24 | E11: =CRCP_y5 -> 2024-25 | F11: =FRCP_y1 -> 2025-26 | G11: =FRCP_y2 -> 2026-27 | H11: =FRCP_y3 -> 2027-28 | I11: =FRCP_y4 -> 2028-29 | J11: =FRCP_y5 -> 2029-30
B12: OPEX
B13: Standard Control Services | C13: Total | D13: 219926232.8 | E13: 218799625.4 | F13: 220692534.1 | G13: 221907330.3 | H13: 222957453.7 | I13: 224205770.5 | J13: 225534208.4
B14: Alternative Control Services | C14: Total | D14: 45860303.1 | E14: 46137575.05 | F14: 50687239.42 | G14: 51231123.57 | H14: 50835293.62 | I14: 50369671.3 | J14: 49930850.01
B15: CAPEX
B16: Standard Control Services | C16: Total | D16: 124925433.8 | E16: 143839843.7 | F16: 151848673.7 | G16: 158082945.6 | H16: 156009478.5 | I16: 153860326.7 | J16: 152433829.8
B17: Alternative Control Services | C17: Total | D17: 6807726.944 | E17: 6848886.544 | F17: 7524260.9 | G17: 7604997.715 | H17: 7546238.787 | I17: 7477119.541 | J17: 7411978.769
B18: OTHER DISTRIBUTION SERVICES
B19: Negotiated Services | C19: Total
B20: Unregulated Distribution Services | C20: Total | D20: 206125.2751 | E20: 214159.0856 | F20: 220087.5579 | G20: 224158.8598 | H20: 223788.5682 | I20: 223395.5307 | J20: 223313.9457
B24: 2.10.2 - CORPORATE OVERHEADS EXPENDITURE
D25: =CONCATENATE("EXPENDITURE ($, real ", dms_DollarReal, ")") -> EXPENDITURE ($, real June 2025)
D26: =CRCP_y4 -> 2023-24 | E26: =CRCP_y5 -> 2024-25 | F26: =FRCP_y1 -> 2025-26 | G26: =FRCP_y2 -> 2026-27 | H26: =FRCP_y3 -> 2027-28 | I26: =FRCP_y4 -> 2028-29 | J26: =FRCP_y5 -> 2029-30
B27: OPEX
B28: Standard Control Services | C28: Total | D28: 82224275.29 | E28: 81803068.25 | F28: 82510773.95 | G28: 82964952.34 | H28: 83357564.12 | I28: 83824274.89 | J28: 84320940.73
B29: Alternative Control Services | C29: Total | D29: 15420207.38 | E29: 15513438.14 | F29: 17043231.08 | G29: 17226108.34 | H29: 17093013.27 | I29: 16936451.02 | J29: 16788900.41
B30: CAPEX
B31: Standard Control Services | C31: Total | D31: 11227736.32 | E31: 10944192.45 | F31: 12941019.71 | G31: 13694967.62 | H31: 13538313.56 | I31: 13136684.85 | J31: 12564596.18
B32: Alternative Control Services | C32: Total | D32: 402455.7867 | E32: 404889.0393 | F32: 444815.4817 | G32: 449588.4402 | H32: 446114.7594 | I32: 442028.6024 | J32: 438177.643
B33: OTHER DISTRIBUTION SERVICES
B34: Negotiated Services | C34: Total
B35: Unregulated Distribution Services | C35: Total | D35: 26839.03975 | E35: 27885.10148 | F35: 28657.03255 | G35: 29187.14625 | H35: 29138.93154 | I35: 29087.75513 | J35: 29077.13217

Sheet 2.11 Labour
B1: =INDEX(dms_Worksheet_List,MATCH(dms_Model,dms_Model_List)) -> REGULATORY REPORTING STATEMENT
B2: =INDEX(dms_TradingNameFull_List,MATCH(dms_TradingName,dms_TradingName_List)) -> Energex
B3: =CONCATENATE("REGULATORY PERIOD FROM ", FRCP_y1," TO ",dms_MultiYear_FinalYear_Result) -> REGULATORY PERIOD FROM 2025-26 TO 2029-30
B4: 2.11 LABOUR
B5: TEMPLATE DATE - OCTOBER 2023 - FINAL RIN
B7: Table numbering on this worksheet starts at 2.11.3.
B9: 2.11.3 - LABOUR / NON-LABOUR EXPENDITURE SPLIT - STANDARD CONTROL SERVICES
C10: =CONCATENATE("EXPENDITURE ($, real ", dms_DollarReal, ")") -> EXPENDITURE ($, real June 2025)
C11: =CRCP_y4 -> 2023-24 | D11: =CRCP_y5 -> 2024-25 | E11: =FRCP_y1 -> 2025-26 | F11: =FRCP_y2 -> 2026-27 | G11: =FRCP_y3 -> 2027-28 | H11: =FRCP_y4 -> 2028-29 | I11: =FRCP_y5 -> 2029-30
B12: OPEX
B13: In-house labour expenditure | C13: 283836736.9 | D13: 282382737.7 | E13: 268064327.4 | F13: 269539880.4 | G13: 270815413.4 | H13: 272331682.2 | I13: 273945270.1
B14: Labour expenditure outsourced to related parties | C14: 0 | D14: 0 | E14: 0 | F14: 0 | G14: 0 | H14: 0 | I14: 0
B15: Labour expenditure outsourced to unrelated parties | C15: 91580172.82 | D15: 91111038.69 | E15: 86491191 | F15: 86967279.49 | G15: 87378831.32 | H15: 87868056.78 | I15: 88388682.36
B16: Controllable non-labour expenditure | C16: 119383710.6 | D16: 118772148.4 | E16: 96822690.19 | F16: 97773294.77 | G16: 98619285.23 | H16: 99510153.81 | I16: 100414003.3
B17: Uncontrollable non-labour expenditure | C17: 0 | D17: 0 | E17: 0 | F17: 0 | G17: 0 | H17: 0 | I17: 0
B18: Total | C18: =SUM(C13:C17) -> 494800620.4 | D18: 492265924.8 | E18: 451378208.6 | F18: 454280454.7 | G18: 456813529.9 | H18: 459709892.7 | I18: 462747955.8
B19: CAPEX
B20: In-house labour expenditure | C20: 207496707.1 | D20: 215845429.8 | E20: 226905231.8 | F20: 234680945.1 | G20: 233106040.7 | H20: 226734222.2 | I20: 232801146.3
B21: Labour expenditure outsourced to related parties | C21: 0 | D21: 0 | E21: 0 | F21: 0 | G21: 0 | H21: 0 | I21: 0
B22: Labour expenditure outsourced to unrelated parties | C22: 173188563.3 | D22: 190301665.5 | E22: 186376005.5 | F22: 192611949.7 | G22: 184822091.5 | H22: 183804343.5 | I22: 186317766.2
B23: Controllable non-labour expenditure | C23: 197454452.1 | D23: 266662093.5 | E23: 281462408.8 | F23: 291746835.9 | G23: 262421518.6 | H23: 259647253.8 | I23: 258297655.4
B24: Uncontrollable non-labour expenditure | C24: 0 | D24: 0 | E24: 0 | F24: 0 | G24: 0 | H24: 0 | I24: 0
B25: Total | C25: =SUM(C20:C24) -> 578139722.4 | D25: 672809188.9 | E25: 694743646 | F25: 719039730.7 | G25: 680349650.8 | H25: 670185819.5 | I25: 677416567.9

Sheet 2.14 Forecast price changes
B1: =INDEX(dms_Worksheet_List,MATCH(dms_Model,dms_Model_List)) -> REGULATORY REPORTING STATEMENT
B2: =INDEX(dms_TradingNameFull_List,MATCH(dms_TradingName,dms_TradingName_List)) -> Energex
B3: =CONCATENATE("REGULATORY PERIOD FROM ", FRCP_y1," TO ",dms_MultiYear_FinalYear_Result) -> REGULATORY PERIOD FROM 2025-26 TO 2029-30
B4: 2.14 FORECAST PRICE CHANGES
B5: TEMPLATE DATE - OCTOBER 2023 - FINAL RIN
B7: There is ONE table on this worksheet.
B9: Instructions
B10: =CONCATENATE(dms_TradingName, " must provide all forecast price changes used to forecast opex and capex, including forecast changes in CPI. FORECAST price changes must be expressed in real terms, except for CPI. "&"If the same escalators are not used for capex and opex, report capex and opex escalators separately. Add additional rows as required. If price changes for a given year were not used to forecast either opex or capex enter '0' for that year.") -> Energex must provide all forecast price changes used to forecast opex and capex, including forecast changes in CPI. FORECAST price changes must be expressed in real terms, except for CPI. If the same escalators are not used for capex and opex, report capex and opex escalators separately. Add additional rows as required. If price changes for a given year were not used to forecast either opex or capex enter '0' for that year.
B12: 2.14.2 - FORECAST CAPEX AND OPEX PRICE CHANGES
C13: Price changes (% YoY real) Current regulatory period | E13: Price changes (%YoY real) Forthcoming regulatory period
C14: FORECAST
B15: DESCRIPTION | C15: =CRCP_y4 -> 2023-24 | D15: =CRCP_y5 -> 2024-25 | E15: =FRCP_y1 -> 2025-26 | F15: =FRCP_y2 -> 2026-27 | G15: =FRCP_y3 -> 2027-28 | H15: =FRCP_y4 -> 2028-29 | I15: =FRCP_y5 -> 2029-30
B16: OPEX
B17: Labour - internal | C17: 0 | D17: 0 | E17: 0.01602056012 | F17: 0.01141720607 | G17: 0.01010527351 | H17: 0.01159945788 | I17: 0.0123991872
B18: Contractors | C18: 0 | D18: 0 | E18: 0 | F18: 0 | G18: 0 | H18: 0 | I18: 0
B19: CPI | C19: 0.036 | D19: 0.031 | E19: 0.02799781128 | F19: 0.02799781128 | G19: 0.02799781128 | H19: 0.02799781128 | I19: 0.02799781128
B20: CAPEX
B21: Labour - internal | C21: 0.01333487872 | D21: 0.01314242883 | E21: 0.01602056012 | F21: 0.01141720607 | G21: 0.01010527351 | H21: 0.01159945788 | I21: 0.0123991872
B22: Contractors | C22: 0 | D22: 0 | E22: 0 | F22: 0 | G22: 0 | H22: 0 | I22: 0
B23: Materials | C23: 0 | D23: 0 | E23: 0 | F23: 0 | G23: 0 | H23: 0 | I23: 0
B24: Other | C24: 0 | D24: 0 | E24: 0 | F24: 0 | G24: 0 | H24: 0 | I24: 0
B25: CPI | C25: 0.041 | D25: 0.033 | E25: 0.02799781128 | F25: 0.02799781128 | G25: 0.02799781128 | H25: 0.02799781128 | I25: 0.02799781128

Sheet 2.16 Opex Summary
B1: =INDEX(dms_Worksheet_List,MATCH(dms_Model,dms_Model_List)) -> REGULATORY REPORTING STATEMENT
B2: =INDEX(dms_TradingNameFull_List,MATCH(dms_TradingName,dms_TradingName_List)) -> Energex
B3: =CONCATENATE("REGULATORY PERIOD FROM ", FRCP_y1," TO ",dms_MultiYear_FinalYear_Result) -> REGULATORY PERIOD FROM 2025-26 TO 2029-30
B4: 2.16 OPEX SUMMARY
B5: TEMPLATE DATE - OCTOBER 2023 - FINAL RIN
B7: Instructions | J7: IMPORTANT!
B8: =CONCATENATE("Complete the tables below in accordance with the regulatory information notice. ",dms_TradingName,"'s total forecast opex must reconcile to Table 2.16.1 (and if ",dms_TradingName," owns any dual function assets Table 2.16.3). If ",dms_TradingName," did not forecast its total opex using a Base Year approach, total forecast opex must reconcile to Table 2.16.2 (and if ",dms_TradingName," owns any dual function assets Table 2.16.4).") -> Complete the tables below in accordance with the regulatory information notice. Energex's total forecast opex must reconcile to Table 2.16.1 (and if Energex owns any dual function assets Table 2.16.3). If Energex did not forecast its total opex using a Base Year approach, total forecast opex must reconcile to Table 2.16.2 (and if Energex owns any dual function assets Table 2.16.4). | J8: =CONCATENATE("Has ",dms_TradingName," used a base-step-trend model to derive its opex forecast? ") -> Has Energex used a base-step-trend model to derive its opex forecast? | L8: Yes
B9: =CONCATENATE("If ",dms_TradingName," does not own any dual function assets,Table 2.16.3 and 2.16.4 may be left blank.") -> If Energex does not own any dual function assets,Table 2.16.3 and 2.16.4 may be left blank. | J9: Yes / No
B10: The total step changes in Table 2.16.1 and Table 2.16.3 must "&"reconcile (in each year) to the total step changes for each year in Table 2.17.1 and Table 2.17.3 of worksheet '2.17 Step Changes', respectively.") | J10: Please nominate the base year. | L10: 2023-24
B13: 2.16.1 - STANDARD CONTROL SERVICES - OPEX BY DRIVER
C14: =CONCATENATE("EXPENDITURE ($, real ", dms_DollarReal, ")") -> EXPENDITURE ($, real June 2025)
C15: =CRCP_y1 -> 2020-21 | D15: =CRCP_y2 -> 2021-22 | E15: =CRCP_y3 -> 2022-23 | F15: =CRCP_y4 -> 2023-24 | G15: =CRCP_y5 -> 2024-25 | H15: =FRCP_y1 -> 2025-26 | I15: =FRCP_y2 -> 2026-27 | J15: =FRCP_y3 -> 2027-28 | K15: =FRCP_y4 -> 2028-29 | L15: =FRCP_y5 -> 2029-30
B16: Base year total opex, excluding category specific | F16: 488295128.5 | G16: 488326920.2 | H16: 485792224.6 | I16: 485792224.6 | J16: 485792224.6 | K16: 485792224.6 | L16: 485792224.6
B17: Increment from base year to final year | G17: -2534695.57 | H17: -48119471.35 | I17: -48119471.35 | J17: -48119471.35 | K17: -48119471.35 | L17: -48119471.35
B18: Price growth | H18: 4103296.141 | I18: 7040203.186 | J18: 9654995.932 | K18: 12684446.53 | L18: 15950729.05
B19: Output growth | H19: 4009624.866 | I19: 7853862.801 | J19: 11730098.11 | K19: 15643391.58 | L19: 19532631.84
B20: Productivity growth | H20: -4326467.634 | I20: -8677612.038 | J20: -13068040.66 | K20: -17513731.8 | L20: -22011932.46
B21: Step changes | H21: 2105606.978 | I21: 2541965.476 | J21: 2938655.213 | K21: 3335344.951 | L21: 3724141.311
B22: Category specific | F22: 6505491.83 | G22: 6473700.207 | H22: 7813394.969 | I22: 7849281.979 | J22: 7885068.077 | K22: 7887688.229 | L22: 7879632.763
B23: Total opex | C23: =SUM(C16:C22) -> 0 | D23: 0 | E23: 0 | F23: 494800620.4 | G23: 492265924.8 | H23: 451378208.6 | I23: 454280454.7 | J23: 456813529.9 | K23: 459709892.7 | L23: 462747955.8
B26: 2.16.2 - STANDARD CONTROL SERVICES - OPEX BY CATEGORY
C27: =CONCATENATE("EXPENDITURE ($, real ", dms_DollarReal, ")") -> EXPENDITURE ($, real June 2025)
C28: =CRCP_y1 -> 2020-21 | D28: =CRCP_y2 -> 2021-22 | E28: =CRCP_y3 -> 2022-23 | F28: =CRCP_y4 -> 2023-24 | G28: =CRCP_y5 -> 2024-25 | H28: =FRCP_y1 -> 2025-26 | I28: =FRCP_y2 -> 2026-27 | J28: =FRCP_y3 -> 2027-28 | K28: =FRCP_y4 -> 2028-29 | L28: =FRCP_y5 -> 2029-30
B29: Vegetation management
B30: Maintenance
B31: Emergency response
B32: Non-network
B33: Metering
B34: Network overheads
B35: Corporate overheads
B36: Total opex | C36: =SUM(C29:C35) -> 0 | D36: 0 | E36: 0 | F36: 0 | G36: 0 | H36: 0 | I36: 0 | J36: 0 | K36: 0 | L36: 0
B39: 2.16.3 - DUAL FUNCTION ASSETS - OPEX BY DRIVER
C40: =CONCATENATE("EXPENDITURE ($, real ", dms_DollarReal, ")") -> EXPENDITURE ($, real June 2025)
C41: =CRCP_y1 -> 2020-21 | D41: =CRCP_y2 -> 2021-22 | E41: =CRCP_y3 -> 2022-23 | F41: =CRCP_y4 -> 2023-24 | G41: =CRCP_y5 -> 2024-25 | H41: =FRCP_y1 -> 2025-26 | I41: =FRCP_y2 -> 2026-27 | J41: =FRCP_y3 -> 2027-28 | K41: =FRCP_y4 -> 2028-29 | L41: =FRCP_y5 -> 2029-30
B42: Base year total opex, excluding category specific
B43: Increment from base year to final year
B44: Price growth
B45: Output growth
B46: Productivity growth
B47: Step changes
B48: Category specific
B49: Total opex | C49: =SUM(C42:C48) -> 0 | D49: 0 | E49: 0 | F49: 0 | G49: 0 | H49: 0 | I49: 0 | J49: 0 | K49: 0 | L49: 0
B52: 2.16.4 - DUAL FUNCTION ASSETS - OPEX BY CATEGORY
C53: =CONCATENATE("EXPENDITURE ($, real ", dms_DollarReal, ")") -> EXPENDITURE ($, real June 2025)
C54: =CRCP_y1 -> 2020-21 | D54: =CRCP_y2 -> 2021-22 | E54: =CRCP_y3 -> 2022-23 | F54: =CRCP_y4 -> 2023-24 | G54: =CRCP_y5 -> 2024-25 | H54: =FRCP_y1 -> 2025-26 | I54: =FRCP_y2 -> 2026-27 | J54: =FRCP_y3 -> 2027-28 | K54: =FRCP_y4 -> 2028-29 | L54: =FRCP_y5 -> 2029-30
B55: Vegetation management
B56: Maintenance
B57: Emergency response
B58: Non-network
B59: Metering
B60: Network overheads
B61: Corporate overheads
B62: Total opex | C62: =SUM(C55:C61) -> 0 | D62: 0 | E62: 0 | F62: 0 | G62: 0 | H62: 0 | I62: 0 | J62: 0 | K62: 0 | L62: 0

Sheet 2.17 Step Changes
B1: =INDEX(dms_Worksheet_List,MATCH(dms_Model,dms_Model_List)) -> REGULATORY REPORTING STATEMENT
B2: =INDEX(dms_TradingNameFull_List,MATCH(dms_TradingName,dms_TradingName_List)) -> Energex
B3: =CONCATENATE("REGULATORY PERIOD FROM ", FRCP_y1," TO ",dms_MultiYear_FinalYear_Result) -> REGULATORY PERIOD FROM 2025-26 TO 2029-30
B4: 2.17 STEP CHANGES
B5: TEMPLATE DATE - OCTOBER 2023 - FINAL RIN
B7: 2.17.1 - STEP CHANGES FOR STANDARD CONTROL SERVICES - FORECAST OPEX
E8: =CONCATENATE("EXPENDITURE ($, real ", dms_DollarReal, ")") -> EXPENDITURE ($, real June 2025)
B9: STEP CHANGE | C9: DESCRIPTION | E9: =CRCP_y4 -> 2023-24 | F9: =CRCP_y5 -> 2024-25 | G9: =FRCP_y1 -> 2025-26 | H9: =FRCP_y2 -> 2026-27 | I9: =FRCP_y3 -> 2027-28 | J9: =FRCP_y4 -> 2028-29 | K9: =FRCP_y5 -> 2029-30
B10: Smart meter data | C10: The acquisition, processing, and use of smart meter data. | E10: 0 | F10: 0 | G10: 2105606.978 | H10: 2541965.476 | I10: 2938655.213 | J10: 3335344.951 | K10: 3724141.311
B30: Total | E30: =SUM(E10:E29) -> 0 | F30: 0 | G30: 2105606.978 | H30: 2541965.476 | I30: 2938655.213 | J30: 3335344.951 | K30: 3724141.311
B31: Check | G31: =IF(ROUND(G$30,0)-ROUND('2.16 Opex Summary'!H$21,0)=0,"OK","Error") -> OK | H31: =IF(ROUND(H$30,0)-ROUND('2.16 Opex Summary'!I$21,0)=0,"OK","Error") -> OK | I31: =IF(ROUND(I$30,0)-ROUND('2.16 Opex Summary'!J$21,0)=0,"OK","Error") -> OK | J31: =IF(ROUND(J$30,0)-ROUND('2.16 Opex Summary'!K$21,0)=0,"OK","Error") -> OK | K31: =IF(ROUND(K$30,0)-ROUND('2.16 Opex Summary'!L$21,0)=0,"OK","Error") -> OK
B33: 2.17.2 - STEP CHANGES FOR STANDARD CONTROL SERVICES - FORECAST CAPEX
E34: =CONCATENATE("EXPENDITURE ($, real ", dms_DollarReal, ")") -> EXPENDITURE ($, real June 2025)
B35: STEP CHANGE | C35: DESCRIPTION | E35: =CRCP_y4 -> 2023-24 | F35: =CRCP_y5 -> 2024-25 | G35: =FRCP_y1 -> 2025-26 | H35: =FRCP_y2 -> 2026-27 | I35: =FRCP_y3 -> 2027-28 | J35: =FRCP_y4 -> 2028-29 | K35: =FRCP_y5 -> 2029-30
B56: Total | E56: =SUM(E36:E55) -> 0 | F56: 0 | G56: 0 | H56: 0 | I56: 0 | J56: 0 | K56: 0
B58: 2.17.3 - STEP CHANGES FOR DUAL FUNCTION ASSETS - FORECAST OPEX
E59: =CONCATENATE("EXPENDITURE ($, real ", dms_DollarReal, ")") -> EXPENDITURE ($, real June 2025)
B60: STEP CHANGE | C60: DESCRIPTION | E60: =CRCP_y4 -> 2023-24 | F60: =CRCP_y5 -> 2024-25 | G60: =FRCP_y1 -> 2025-26 | H60: =FRCP_y2 -> 2026-27 | I60: =FRCP_y3 -> 2027-28 | J60: =FRCP_y4 -> 2028-29 | K60: =FRCP_y5 -> 2029-30
B81: Total | E81: =SUM(E61:E80) -> 0 | F81: 0 | G81: 0 | H81: 0 | I81: 0 | J81: 0 | K81: 0
B82: Check | G82: =IF(ROUND(G$30,0)-ROUND('2.16 Opex Summary'!H$47,0)=0,"OK","Error") -> Error | H82: =IF(ROUND(H$30,0)-ROUND('2.16 Opex Summary'!I$47,0)=0,"OK","Error") -> Error | I82: =IF(ROUND(I$30,0)-ROUND('2.16 Opex Summary'!J$47,0)=0,"OK","Error") -> Error | J82: =IF(ROUND(J$30,0)-ROUND('2.16 Opex Summary'!K$47,0)=0,"OK","Error") -> Error | K82: =IF(ROUND(K$30,0)-ROUND('2.16 Opex Summary'!L$47,0)=0,"OK","Error") -> Error
B84: 2.17.4 - STEP CHANGES FOR DUAL FUNCTION ASSETS - FORECAST CAPEX
E85: =CONCATENATE("EXPENDITURE ($, real ", dms_DollarReal, ")") -> EXPENDITURE ($, real June 2025)
B86: STEP CHANGE | C86: DESCRIPTION | E86: =CRCP_y4 -> 2023-24 | F86: =CRCP_y5 -> 2024-25 | G86: =FRCP_y1 -> 2025-26 | H86: =FRCP_y2 -> 2026-27 | I86: =FRCP_y3 -> 2027-28 | J86: =FRCP_y4 -> 2028-29 | K86: =FRCP_y5 -> 2029-30
B107: Total | E107: =SUM(E87:E106) -> 0 | F107: 0 | G107: 0 | H107: 0 | I107: 0 | J107: 0 | K107: 0
B110: 2.17.5 - FORECAST CATEGORY SPECIFIC OPEX
D111: EXPENDITURE ($, real June 2024)
B112: CATEGORY | C112: DESCRIPTION | D112: =CRCP_y3 -> 2022-23 | E112: =CRCP_y4 -> 2023-24 | F112: =CRCP_y5 -> 2024-25 | G112: =FRCP_y1 -> 2025-26 | H112: =FRCP_y2 -> 2026-27 | I112: =FRCP_y3 -> 2027-28 | J112: =FRCP_y4 -> 2028-29 | K112: =FRCP_y5 -> 2029-30
B133: Total | D133: =SUM(D113:D132) -> 0 | E133: =SUM(E113:E132) -> 0 | F133: =SUM(F113:F132) -> 0 | G133: 0 | H133: 0 | I133: 0 | J133: 0 | K133: 0

Sheet 3.1 Revenue
B1: =INDEX(dms_Worksheet_List,MATCH(dms_Model,dms_Model_List)) -> REGULATORY REPORTING STATEMENT
B2: =INDEX(dms_TradingNameFull_List,MATCH(dms_TradingName,dms_TradingName_List)) -> Energex
B3: =CONCATENATE("REGULATORY PERIOD FROM ", FRCP_y1," TO ",dms_MultiYear_FinalYear_Result) -> REGULATORY PERIOD FROM 2025-26 TO 2029-30
B4: 3.1 REVENUE
B5: TEMPLATE DATE - OCTOBER 2023 - FINAL RIN
B7: There are THREE tables on this worksheet. Each table has been 'grouped' (and 'sub-grouped') for easy navigation. See the Instructions sheet on how to group or ungroup data.
B9: 3.1.1 - REVENUE GROUPING BY CHARGEABLE QUANTITY
C10: Standard control services | K10: Alternative control services
C11: =CONCATENATE("REVENUE FORECAST ($, real ", dms_DollarReal,")") -> REVENUE FORECAST ($, real June 2025) | K11: =CONCATENATE("REVENUE FORECAST ($, real ", dms_DollarReal,")") -> REVENUE FORECAST ($, real June 2025)
C12: =CRCP_y4 -> 2023-24 | D12: =CRCP_y5 -> 2024-25 | E12: =FRCP_y1 -> 2025-26 | F12: =FRCP_y2 -> 2026-27 | G12: =FRCP_y3 -> 2027-28 | H12: =FRCP_y4 -> 2028-29 | I12: =FRCP_y5 -> 2029-30 | K12: =CRCP_y4 -> 2023-24 | L12: =CRCP_y5 -> 2024-25 | M12: =FRCP_y1 -> 2025-26 | N12: =FRCP_y2 -> 2026-27 | O12: =FRCP_y3 -> 2027-28 | P12: =FRCP_y4 -> 2028-29 | Q12: =FRCP_y5 -> 2029-30
A13: DREV0101 | B13: Revenue from Fixed Customer Charges | C13: 350272955.7 | D13: 350677894 | E13: 345188534.4 | F13: 346143081 | G13: 346160490.4 | H13: 344488210.2 | I13: 340973118.3 | K13: 1583545.392 | L13: 1587380.577 | M13: 1689208.862 | N13: 1662586.444 | O13: 1632211.157 | P13: 1607120.119 | Q13: 1584923.333
A14: DREV0102 | B14: Revenue from Energy Delivery charges where time of use is not a determinant | C14: 497165062.1 | D14: 497900983.8 | E14: 318689779.5 | F14: 279107863.7 | G14: 234622844.6 | H14: 187768246.7 | I14: 139378759.8
A15: DREV0103 | B15: Revenue from On–Peak Energy Delivery charges | C15: 19851184.42 | D15: 21946711.76 | E15: 6651576.201 | F15: 4082974.408 | G15: 4810961.956 | H15: -7478738.567 | I15: -7076715.34
A16: DREV0104 | B16: Revenue from Shoulder period Energy Delivery Charges | C16: 662805.4323 | D16: 509364.288 | E16: 115381208.3 | F16: 144994398.9 | G16: 169379907.9 | H16: 198360848 | I16: 211101015
A17: DREV0105 | B17: Revenue from Off–Peak Energy Delivery charges | C17: 13639433.03 | D17: 14871887.2 | E17: 3309876.381 | F17: 1709351.55 | G17: 2397418.777 | H17: 3106646.446 | I17: 3833739.949
A18: DREV0106 | B18: Revenue from controlled load customer charges | C18: 36405112.61 | D18: 34560040.65 | E18: 28816228.81 | F18: 29084052.29 | G18: 29435590.94 | H18: 29550736.83 | I18: 29500953.82
A19: DREV0107 | B19: Revenue from unmetered supplies | C19: 3276338.879 | D19: 3290295.324 | E19: 3413256.105 | F19: 3266179.73 | G19: 3119490.055 | H19: 2930969.113 | I19: 2736039.714
A20: DREV0108 | B20: Revenue from Contracted Maximum Demand charges | C20: 5697281.379 | D20: 5760975.263 | E20: 5963187.606 | F20: 6274463.37 | G20: 6601314.708 | H20: 6944833.943 | I20: 7307562.647
A21: DREV0109 | B21: Revenue from Measured Maximum Demand charges | C21: 407286920.3 | D21: 481102593.2 | E21: 632535385.3 | F21: 721914121.8 | G21: 820632380.9 | H21: 936344771.6 | I21: 1063513887
A22: DREV0110 | B22: Revenue from metering charges | C22: 60523776.18 | D22: 57526924.31 | E22: 61307233.48 | F22: 66340939.15 | G22: 71787943.4 | H22: 77682180.61 | I22: 84060371.42
A23: DREV0111 | B23: Revenue from connection charges | C23: 0 | D23: 0 | E23: 0 | F23: 0 | G23: 0 | H23: 0 | I23: 0 | K23: 78681414.91 | L23: 78923286.1 | M23: 80164172.59 | N23: 81019778.17 | O23: 81957966.8 | P23: 82926059.48 | Q23: 83008377.21
A24: DREV0112 | B24: Revenue from public lighting charges | C24: 8562587.294 | D24: 8599061.934 | E24: 8920415.268 | F24: 8536036.744 | G24: 8152668.848 | H24: 7659976.522 | I24: 7150535.937 | K24: 55105103.83 | L24: 54955336.52 | M24: 47514913.86 | N24: 49563250.18 | O24: 51709401.43 | P24: 53958038.62 | Q24: 56314055.79
A25: DREV0113 | B25: Revenue from other Sources | C25: 0 | D25: 0 | E25: 0 | F25: 0 | G25: 0 | H25: 0 | I25: 0 | K25: 30369958.99 | L25: 30443511.91 | M25: 31157596.33 | N25: 31571688.52 | O25: 31908364 | P25: 32342482.2 | Q25: 32833169.58
A26: DREV01 | B26: Total revenue by chargeable quantity | C26: =SUM(C13:C25) -> 1403343457 | D26: 1476746732 | E26: 1530176681 | F26: 1611453463 | G26: 1697101013 | H26: 1787358681 | I26: 1882479269 | K26: =SUM(K13:K25) -> 165740023.1 | L26: 165909515.1 | M26: 160525891.6 | N26: 163817303.3 | O26: 167207943.4 | P26: 170833700.4 | Q26: 173740525.9
B29: 3.1.2 - REVENUE GROUPING BY CUSTOMER TYPE OR CLASS
C30: Standard control services | K30: Alternative control services
C31: =CONCATENATE("REVENUE FORECAST ($, real ", dms_DollarReal,")") -> REVENUE FORECAST ($, real June 2025) | K31: =CONCATENATE("REVENUE FORECAST ($, real ", dms_DollarReal,")") -> REVENUE FORECAST ($, real June 2025)
C32: =CRCP_y4 -> 2023-24 | D32: =CRCP_y5 -> 2024-25 | E32: =FRCP_y1 -> 2025-26 | F32: =FRCP_y2 -> 2026-27 | G32: =FRCP_y3 -> 2027-28 | H32: =FRCP_y4 -> 2028-29 | I32: =FRCP_y5 -> 2029-30 | K32: =CRCP_y4 -> 2023-24 | L32: =CRCP_y5 -> 2024-25 | M32: =FRCP_y1 -> 2025-26 | N32: =FRCP_y2 -> 2026-27 | O32: =FRCP_y3 -> 2027-28 | P32: =FRCP_y4 -> 2028-29 | Q32: =FRCP_y5 -> 2029-30
A33: DREV0201 | B33: Revenue from residential Customers | C33: 778479913 | D33: 814577002 | E33: 893620510.2 | F33: 940553832 | G33: 985785498.6 | H33: 1038812184 | I33: 1089755843
A34: DREV0202 | B34: Revenue from Non residential customers not on demand tariffs | C34: 103395025.8 | D34: 93091174.23 | E34: 77544590.52 | F34: 63501114.35 | G34: 50042051.85 | H34: 36731748.99 | I34: 24252515.57
A35: DREV0203 | B35: Revenue from Non-residential low voltage demand tariff customers | C35: 351740552.5 | D35: 389941749.1 | E35: 391308729.4 | F35: 432180078.2 | G35: 478090403.4 | H35: 520395411 | I35: 568364785
A36: DREV0204 | B36: Revenue from Non-residential high voltage demand tariff customers | C36: 157355434 | D36: 166765523.7 | E36: 155369179.9 | F36: 163416221.7 | G36: 171910899.8 | H36: 180828391.7 | I36: 190219549.3
A37: DREV0205 | B37: Revenue from unmetered supplies | C37: 3424010.531 | D37: 3423664.778 | E37: 3413256.105 | F37: 3266179.73 | G37: 3119490.055 | H37: 2930969.113 | I37: 2736039.714
A38: DREV0206 | B38: Revenue from Other Customers | C38: 8948521.552 | D38: 8947617.938 | E38: 8920415.268 | F38: 8536036.744 | G38: 8152668.848 | H38: 7659976.522 | I38: 7150535.937 | K38: 165740023.1 | L38: 165909515.1 | M38: 160525891.6 | N38: 163817303.3 | O38: 167207943.4 | P38: 170833700.4 | Q38: 173740525.9
A39: DREV02 | B39: Total revenue by customer class | C39: =SUM(C33:C38) -> 1403343457 | D39: 1476746732 | E39: 1530176681 | F39: 1611453463 | G39: 1697101013 | H39: 1787358681 | I39: 1882479269 | K39: =SUM(K33:K38) -> 165740023.1 | L39: 165909515.1 | M39: 160525891.6 | N39: 163817303.3 | O39: 167207943.4 | P39: 170833700.4 | Q39: 173740525.9
B42: 3.1.3 - REVENUE (penalties) ALLOWED (deducted) THROUGH INCENTIVE SCHEMES
C43: Standard control services | K43: Alternative control services
C44: =CONCATENATE("REVENUE FORECAST ($, real ", dms_DollarReal,")") -> REVENUE FORECAST ($, real June 2025) | K44: =CONCATENATE("REVENUE FORECAST ($, real ", dms_DollarReal,")") -> REVENUE FORECAST ($, real June 2025)
C45: =CRCP_y4 -> 2023-24 | D45: =CRCP_y5 -> 2024-25 | E45: =FRCP_y1 -> 2025-26 | F45: =FRCP_y2 -> 2026-27 | G45: =FRCP_y3 -> 2027-28 | H45: =FRCP_y4 -> 2028-29 | I45: =FRCP_y5 -> 2029-30 | K45: =CRCP_y4 -> 2023-24 | L45: =CRCP_y5 -> 2024-25 | M45: =FRCP_y1 -> 2025-26 | N45: =FRCP_y2 -> 2026-27 | O45: =FRCP_y3 -> 2027-28 | P45: =FRCP_y4 -> 2028-29 | Q45: =FRCP_y5 -> 2029-30
A46: DREV0301 | B46: EBSS | C46: 37703978.31 | D46: 0 | E46: -68837391.6 | F46: -32085590.47 | G46: -23985317.07 | H46: 3065125.678 | I46: 0
A47: DREV0302 | B47: STPIS | C47: 4221141.913 | D47: 23094478.07
A48: DREV0303 | B48: F-Factor
A49: DREV0304 | B49: S-Factor True up
A50: DREV0305 | B50: Other | C50: 23188318.58 | D50: 23986644.51 | E50: -8204626.275 | F50: -8175646.092 | G50: -8145454.63 | H50: -8114518.352 | I50: -8101284.902
A51: DREV03 | B51: Total revenue of incentive schemes | C51: =SUM(C46:C50) -> 65113438.81 | D51: 47081122.58 | E51: -77042017.88 | F51: -40261236.56 | G51: -32130771.7 | H51: -5049392.674 | I51: -8101284.902 | K51: =SUM(K46:K50) -> 0 | L51: 0 | M51: 0 | N51: 0 | O51: 0 | P51: 0 | Q51: 0

Sheet 3.2 Operating expenditure
B1: =INDEX(dms_Worksheet_List,MATCH(dms_Model,dms_Model_List)) -> REGULATORY REPORTING STATEMENT
B2: =INDEX(dms_TradingNameFull_List,MATCH(dms_TradingName,dms_TradingName_List)) -> Energex
B3: =CONCATENATE("REGULATORY PERIOD FROM ", FRCP_y1," TO ",dms_MultiYear_FinalYear_Result) -> REGULATORY PERIOD FROM 2025-26 TO 2029-30
B4: 3.2 OPERATING EXPENDITURE
B5: TEMPLATE DATE - OCTOBER 2023 - FINAL RIN
B7: There are TWO tables on this worksheet. Both ROWS and COLUMNS have been grouped for ease of navigation. see the Instructions sheet on how to group or ungroup tables.
B9: 3.2.1 - OPEX CATEGORIES
B10: CURRENT OPEX CATEGORIES AND COST ALLOCATIONS
C11: Standard control services | K11: Alternative control services
C12: =CONCATENATE("EXPENDITURE ($, real ", dms_DollarReal, ")") -> EXPENDITURE ($, real June 2025) | K12: =CONCATENATE("EXPENDITURE ($, real ", dms_DollarReal, ")") -> EXPENDITURE ($, real June 2025)
C13: =CRCP_y4 -> 2023-24 | D13: =CRCP_y5 -> 2024-25 | E13: =FRCP_y1 -> 2025-26 | F13: =FRCP_y2 -> 2026-27 | G13: =FRCP_y3 -> 2027-28 | H13: =FRCP_y4 -> 2028-29 | I13: =FRCP_y5 -> 2029-30 | K13: =CRCP_y4 -> 2023-24 | L13: =CRCP_y5 -> 2024-25 | M13: =FRCP_y1 -> 2025-26 | N13: =FRCP_y2 -> 2026-27 | O13: =FRCP_y3 -> 2027-28 | P13: =FRCP_y4 -> 2028-29 | Q13: =FRCP_y5 -> 2029-30
A14: DOPEX0101 | B14: Inspection | C14: 0 | D14: 0 | E14: 0 | F14: 0 | G14: 0 | H14: 0 | I14: 0
A15: DOPEX0102 | B15: Preventative maintenance | C15: 146630138.4 | D15: 145878541.4 | E15: 133198072.6 | F15: 134058811.6 | G15: 134808722.5 | H15: 135677684.5 | I15: 136592403.3
A16: DOPEX0103 | B16: Corrective repair | C16: 96855814.21 | D16: 96359350.52 | E16: 87983329.47 | F16: 88551886.33 | G16: 89047236.3 | H16: 89621224.82 | I16: 90225437.87
A17: DOPEX0104 | B17: Vegetation | C17: 54106759.6 | D17: 53829419.08 | E17: 49150305.49 | F17: 49467919.55 | G17: 49744637.91 | H17: 50065286.28 | I17: 50402819.04
A18: DOPEX0105 | B18: Emergency response / storms | C18: 2607939.847 | D18: 2594572.065 | E18: 2369039.305 | F18: 2384348.268 | G18: 2397686.062 | H18: 2413141.279 | I18: 2429410.32
A19: DOPEX0106 | B19: Other network maintenane costs | C19: 0 | D19: 0 | E19: 0 | F19: 0 | G19: 0 | H19: 0 | I19: 0 | K19: 15596469.87 | L19: 14679306.47 | M19: 11760739.43 | N19: 11357074.94 | O19: 10957260.83 | P19: 10595878 | Q19: 10259254.23
A20: DOPEX0107 | B20: Network operating costs | C20: 54942103.2 | D20: 54660480.88 | E20: 58030777.27 | F20: 58405777.81 | G20: 58732493.6 | H20: 59111076.69 | I20: 59509594.83
A21: DOPEX0108 | B21: Network billing and other energy market services (incl meter reading) | C21: 4093985.827 | D21: 4073000.868 | E21: 3718955.923 | F21: 3742988.178 | G21: 3763926.062 | H21: 3788187.908 | I21: 3813727.311 | K21: 165811.487 | L21: 156060.8044 | M21: 88617.68154 | N21: 85576.05211 | O21: 82563.43542 | P21: 79840.40017 | Q21: 77303.92549
A22: DOPEX0109 | B22: Customer services (incl call centre) | C22: 19400112.45 | D22: 19300671.32 | E22: 17622963.57 | F22: 17736844.88 | G22: 17836062.93 | H22: 17951032.2 | I22: 18072055.4 | K22: 1395237.548 | L22: 1313189.442 | M22: 741913.2165 | N22: 716448.4894 | O22: 691226.6589 | P22: 668429.2238 | Q22: 647193.6865
A23: DOPEX0110 | B23: DSM initiatives | C23: 5355369.264 | D23: 5327918.704 | E23: 4864790.227 | F23: 4896226.976 | G23: 4923615.956 | H23: 4955353.034 | I23: 4988761.292
A24: DOPEX0111 | B24: Levies | C24: 13589571.55 | D24: 13519914.1 | E24: 0 | F24: 0 | G24: 0 | H24: 0 | I24: 0
A25: DOPEX0112 | B25: Debt raising costs | C25: 6505491.83 | D25: 6473700.207 | E25: 7813394.969 | F25: 7849281.979 | G25: 7885068.077 | H25: 7887688.229 | I25: 7879632.763 | K25: 112699.9153 | L25: 106072.5029 | M25: 56990.07984 | N25: 63807.61437 | O25: 69899.28753 | P25: 75458.22563 | Q25: 80434.91454
A26: DOPEX0113 | B26: Other operating costs (incl self insurance) | C26: 28568472.36 | D26: 28422036.04 | E26: 30174502.98 | F26: 30369493.56 | G26: 30539377.32 | H26: 30736230.73 | I26: 30943449.85 | K26: 82016125.17 | L26: 80617100.04 | M26: 79034560.16 | N26: 78194267.06 | O26: 77362127.56 | P26: 76546635.54 | Q26: 75744335.75
A27: DOPEX0114 | B27: Corporate allocations | C27: 62144861.86 | D27: 61826319.62 | E27: 56452076.73 | F27: 56816875.56 | G27: 57134703.2 | H27: 57502987.11 | I27: 57890663.74 | K27: 2997809.377 | L27: 2821520.699 | M27: 2434045.81 | N27: 2350501.926 | O27: 2267754.928 | P27: 2192961.812 | Q27: 2123292.922
A28: DOPEX0115
A29: DOPEX0116
A30: DOPEX0117
A31: DOPEX0118
A32: DOPEX0119
A33: DOPEX0120
A34: DOPEX0121
A35: DOPEX0122
A36: DOPEX0123
A37: DOPEX0124
A38: DOPEX0125
A39: DOPEX0126
A40: DOPEX0127
A41: DOPEX0128
A42: DOPEX0129
A43: DOPEX0130
A44: DOPEX0131
A45: DOPEX0132
A46: DOPEX0133
A47: DOPEX0134
A48: DOPEX0135
A49: DOPEX0136
A50: DOPEX0137
A51: DOPEX0138
A52: DOPEX0139
A53: DOPEX0140
A54: DOPEX0141
A55: DOPEX0142
A56: DOPEX0143
A57: DOPEX0144
A58: DOPEX0145
A59: DOPEX0146
A60: DOPEX0147
A61: DOPEX0148
A62: DOPEX0149
A63: DOPEX01 | B63: Total opex | C63: =SUM(C14:C62) -> 494800620.4 | D63: 492265924.8 | E63: 451378208.6 | F63: 454280454.7 | G63: 456813529.9 | H63: 459709892.7 | I63: 462747955.8 | K63: =SUM(K14:K62) -> 102284153.4 | L63: 99693249.95 | M63: 94116866.38 | N63: 92767676.09 | O63: 91430832.7 | P63: 90159203.2 | Q63: 88931815.44
B66: 3.2.2 - OPEX CONSISTENCY
B67: OPEX CONSISTENCY - CURRENT COST ALLOCATION APPROACH
C68: Standard control services | K68: Alternative control services
C69: =CONCATENATE("EXPENDITURE ($, real ", dms_DollarReal, ")") -> EXPENDITURE ($, real June 2025) | K69: =CONCATENATE("EXPENDITURE ($, real ", dms_DollarReal, ")") -> EXPENDITURE ($, real June 2025)
C70: =CRCP_y4 -> 2023-24 | D70: =CRCP_y5 -> 2024-25 | E70: =FRCP_y1 -> 2025-26 | F70: =FRCP_y2 -> 2026-27 | G70: =FRCP_y3 -> 2027-28 | H70: =FRCP_y4 -> 2028-29 | I70: =FRCP_y5 -> 2029-30 | K70: =CRCP_y4 -> 2023-24 | L70: =CRCP_y5 -> 2024-25 | M70: =FRCP_y1 -> 2025-26 | N70: =FRCP_y2 -> 2026-27 | O70: =FRCP_y3 -> 2027-28 | P70: =FRCP_y4 -> 2028-29 | Q70: =FRCP_y5 -> 2029-30
A71: DOPEX0201 | B71: Opex for network services | C71: 494211524.6 | D71: 491679846.8 | E71: 450825765.2 | F71: 453724441.4 | G71: 456254406.4 | H71: 459147165.2 | I71: 462181434.3
A72: DOPEX0202 | B72: Opex for metering | C72: 529434.7231 | D72: 526722.6088 | E72: 496494.2763 | F72: 499702.6707 | G72: 502497.9551 | H72: 505737.0007 | I72: 509146.6048
A73: DOPEX0203 | B73: Opex for connection services | C73: 59661.04406 | D73: 59355.42079 | E73: 55949.04453 | F73: 56310.59271 | G73: 56625.58826 | H73: 56990.59047 | I73: 57374.8126 | K73: 78153682.32 | L73: 76981791.36 | M73: 76122030.32 | N73: 75381704.14 | O73: 74648578.02 | P73: 73922581.92 | Q73: 73203646.52
A74: DOPEX0204 | B74: Opex for public lighting | K74: 24130471.04 | L74: 22711458.59 | M74: 17994836.05 | N74: 17385971.94 | O74: 16782254.68 | P74: 16236621.28 | Q74: 15728168.92
A75: DOPEX0205 | B75: Opex for amounts payable for easement levy or similar direct charges on DNSP
A76: DOPEX0207 | B76: Opex for transmission connection point planning

Sheet 3.3 Assets (RAB)
B1: =INDEX(dms_Worksheet_List,MATCH(dms_Model,dms_Model_List)) -> REGULATORY REPORTING STATEMENT
B2: =INDEX(dms_TradingNameFull_List,MATCH(dms_TradingName,dms_TradingName_List)) -> Energex
B3: =CONCATENATE("REGULATORY PERIOD FROM ", FRCP_y1," TO ",dms_MultiYear_FinalYear_Result) -> REGULATORY PERIOD FROM 2025-26 TO 2029-30
B4: 3.3 ASSETS
B5: TEMPLATE DATE - OCTOBER 2023 - FINAL RIN
B7: There are FOUR tables on this worksheet. Both ROWS and COLUMNS in each have been grouped (and sub-grouped) for ease of navigation. see the Instructions sheet on how to group or ungroup tables.
B9: 3.3.1 - BENCHMARKING ASSET BASE VALUES
C10: Network services | K10: Standard control services | S10: Alternative control services
C11: =CONCATENATE(" VALUE FORECAST ($, real ", dms_DollarReal, ")") -> VALUE FORECAST ($, real June 2025) | K11: =CONCATENATE(" VALUE FORECAST ($, real ", dms_DollarReal, ")") -> VALUE FORECAST ($, real June 2025) | S11: =CONCATENATE(" VALUE FORECAST ($, real ", dms_DollarReal, ")") -> VALUE FORECAST ($, real June 2025)
C12: =CRCP_y4 -> 2023-24 | D12: =CRCP_y5 -> 2024-25 | E12: =FRCP_y1 -> 2025-26 | F12: =FRCP_y2 -> 2026-27 | G12: =FRCP_y3 -> 2027-28 | H12: =FRCP_y4 -> 2028-29 | I12: =FRCP_y5 -> 2029-30 | K12: =CRCP_y4 -> 2023-24 | L12: =CRCP_y5 -> 2024-25 | M12: =FRCP_y1 -> 2025-26 | N12: =FRCP_y2 -> 2026-27 | O12: =FRCP_y3 -> 2027-28 | P12: =FRCP_y4 -> 2028-29 | Q12: =FRCP_y5 -> 2029-30 | S12: =CRCP_y4 -> 2023-24 | T12: =CRCP_y5 -> 2024-25 | U12: =FRCP_y1 -> 2025-26 | V12: =FRCP_y2 -> 2026-27 | W12: =FRCP_y3 -> 2027-28 | X12: =FRCP_y4 -> 2028-29 | Y12: =FRCP_y5 -> 2029-30
B13: For total asset base:
A14: DRAB0101 | B14: Opening value | C14: 1.256464126e+10 | D14: 1.271354434e+10 | E14: 1.299834077e+10 | F14: 1.309987461e+10 | G14: 1.320395059e+10 | H14: 1.324427627e+10 | I14: 1.326593638e+10 | K14: 1.519542103e+10 | L14: 1.532704314e+10 | M14: 1.559072315e+10 | N14: 1.566233151e+10 | O14: 1.573373852e+10 | P14: 1.573896673e+10 | Q14: 1.572289298e+10 | S14: 157455595.8 | T14: 159971124.6 | U14: 166925372.2 | V14: 186894101.7 | W14: 204736765 | X14: 221019034 | Y14: 235595880.6
A15: DRAB0102 | B15: Inflation addition | C15: 0 | D15: 0 | E15: 0 | F15: 0 | G15: 0 | H15: 0 | I15: 0 | K15: 0 | L15: 0 | M15: 0 | N15: 0 | O15: 0 | P15: 0 | Q15: 0 | S15: 0 | T15: 0 | U15: 0 | V15: 0 | W15: 0 | X15: 0 | Y15: 0
A16: DRAB0103 | B16: Straight line depreciation | C16: -372981824.5 | D16: -387325002.8 | E16: -530396473.8 | F16: -550420768 | G16: -567221362.1 | H16: -578076158.9 | I16: -569646871.8 | K16: -460169354.7 | L16: -475879364.4 | M16: -628486435.9 | N16: -653928571.9 | O16: -675911733.6 | P16: -692360718.4 | Q16: -690338971.7 | S16: -13363546.84 | T16: -13363546.84 | U16: -19634553.81 | V16: -21799592.64 | W16: -23587100.53 | X16: -25580569 | Y16: -27588439.78
A17: DRAB0105 | B17: Actual additions (recognised in RAB) | C17: 523054676.5 | D17: 618292826.2 | E17: 633289104.1 | F17: 655612273.6 | G17: 613850261.7 | H17: 600957271.6 | I17: 606511446.5 | K17: 592961244.7 | L17: 686437244.2 | M17: 701453587.4 | N17: 726451103.2 | O17: 687443162.4 | P17: 677507974.8 | Q17: 685357145.6 | S17: 15879075.63 | T17: 15797308.43 | U17: 39603283.3 | V17: 39642256 | W17: 39869369.54 | X17: 40157415.54 | Y17: 40469905.77
A18: DRAB0106 | B18: Disposals | C18: -1169776.656 | D18: -1093332.869 | E18: -1358787.189 | F18: -1115523.999 | G18: -6303219.689 | H18: -1221004.789 | I18: -4221653.107 | K18: -1169776.656 | L18: -1093332.869 | M18: -1358787.189 | N18: -1115523.999 | O18: -6303219.689 | P18: -1221004.789 | Q18: -4221653.107 | S18: 0 | T18: 0 | U18: 0 | V18: 0 | W18: 0 | X18: 0 | Y18: 0
A19: DRAB0107 | B19: Closing value | C19: =SUM(C14+C15+C16+C17+C18) -> 1.271354434e+10 | D19: 1.294341883e+10 | E19: 1.309987461e+10 | F19: 1.320395059e+10 | G19: 1.324427627e+10 | H19: 1.326593638e+10 | I19: 1.32985793e+10 | K19: =SUM(K14+K15+K16+K17+K18) -> 1.532704314e+10 | L19: 1.553650769e+10 | M19: 1.566233151e+10 | N19: 1.573373852e+10 | O19: 1.573896673e+10 | P19: 1.572289298e+10 | Q19: 1.57136895e+10 | S19: =SUM(S14+S15+S16+S17+S18) -> 159971124.6 | T19: 162404886.1 | U19: 186894101.7 | V19: 204736765 | W19: 221019034 | X19: 235595880.6 | Y19: 248477346.5
B22: 3.3.2 - ASSET VALUE ROLL FORWARD
C23: Network services | K23: Standard control services | S23: Alternative control services
C24: =CONCATENATE(" VALUE FORECAST ($, real ", dms_DollarReal, ")") -> VALUE FORECAST ($, real June 2025) | K24: =CONCATENATE(" VALUE FORECAST ($, real ", dms_DollarReal, ")") -> VALUE FORECAST ($, real June 2025) | S24: =CONCATENATE(" VALUE FORECAST ($, real ", dms_DollarReal, ")") -> VALUE FORECAST ($, real June 2025)
C25: =CRCP_y4 -> 2023-24 | D25: =CRCP_y5 -> 2024-25 | E25: =FRCP_y1 -> 2025-26 | F25: =FRCP_y2 -> 2026-27 | G25: =FRCP_y3 -> 2027-28 | H25: =FRCP_y4 -> 2028-29 | I25: =FRCP_y5 -> 2029-30 | K25: =CRCP_y4 -> 2023-24 | L25: =CRCP_y5 -> 2024-25 | M25: =FRCP_y1 -> 2025-26 | N25: =FRCP_y2 -> 2026-27 | O25: =FRCP_y3 -> 2027-28 | P25: =FRCP_y4 -> 2028-29 | Q25: =FRCP_y5 -> 2029-30 | S25: =CRCP_y4 -> 2023-24 | T25: =CRCP_y5 -> 2024-25 | U25: =FRCP_y1 -> 2025-26 | V25: =FRCP_y2 -> 2026-27 | W25: =FRCP_y3 -> 2027-28 | X25: =FRCP_y4 -> 2028-29 | Y25: =FRCP_y5 -> 2029-30
B26: For overhead network assets less than 33kV:
A27: DRAB0201 | B27: Opening value | C27: 2679805560 | D27: 2772468786 | E27: 2868820432 | F27: 2947185267 | G27: 3037712351 | H27: 3127300304 | I27: 3216552022 | K27: 3512085945 | L27: 3612539299 | M27: 3713581479 | N27: 3792793551 | O27: 3883704756 | P27: 3973231681 | Q27: 4061975063 | T27: =S32 -> 0 | U27: 0 | V27: 0 | W27: 0 | X27: 0 | Y27: 0
A28: DRAB0202 | B28: Inflation addition | C28: 0 | D28: 0 | E28: 0 | F28: 0 | G28: 0 | H28: 0 | I28: 0 | K28: 0 | L28: 0 | M28: 0 | N28: 0 | O28: 0 | P28: 0 | Q28: 0
A29: DRAB0203 | B29: Straight line depreciation | C29: -73216887.91 | D29: -75474372.57 | E29: -102735629.1 | F29: -105883968.1 | G29: -109417518.1 | H29: -112940382.8 | I29: -116463144.1 | K29: -102273230.1 | L29: -104911715.4 | M29: -135525383.1 | N29: -140481525 | O29: -145822459.3 | P29: -151256935.2 | Q29: -156801095.6
A30: DRAB0205 | B30: Actual additions (recognised in RAB) | C30: 165880113.5 | D30: 174921888.4 | E30: 181100464.1 | F30: 196411052.2 | G30: 199005471.5 | H30: 202192100.6 | I30: 195341795.8 | K30: 202726583.9 | L30: 211191592 | M30: 214737455 | N30: 231392730 | O30: 235349384.3 | P30: 240000317.1 | Q30: 234288356.9
A31: DRAB0206 | B31: Disposals | C31: 0 | D31: 0 | E31: 0 | F31: 0 | G31: 0 | H31: 0 | I31: 0 | K31: 0 | L31: 0 | M31: 0 | N31: 0 | O31: 0 | P31: 0 | Q31: 0
A32: DRAB0207 | B32: Closing value | C32: =SUM(C27+C28+C29+C30+C31) -> 2772468786 | D32: 2871916301 | E32: 2947185267 | F32: 3037712351 | G32: 3127300304 | H32: 3216552022 | I32: 3295430674 | K32: =SUM(K27+K28+K29+K30+K31) -> 3612539299 | L32: 3718819176 | M32: 3792793551 | N32: 3883704756 | O32: 3973231681 | P32: 4061975063 | Q32: 4139462324 | S32: =SUM(S27+S28+S29+S30+S31) -> 0 | T32: 0 | U32: 0 | V32: 0 | W32: 0 | X32: 0 | Y32: 0
B33: For underground network assets less than 33kV:
A34: DRAB0301 | B34: Opening value | C34: 2119039242 | D34: 2082878601 | E34: 2048187746 | F34: 2007781303 | G34: 1967927840 | H34: 1928087490 | I34: 1888290339 | K34: 2747718239 | L34: 2706203138 | M34: 2666705408 | N34: 2616754611 | O34: 2566881534 | P34: 2516507911 | Q34: 2465638048 | T34: =S39 -> 0 | U34: 0 | V34: 0 | W34: 0 | X34: 0 | Y34: 0
A35: DRAB0302 | B35: Inflation addition | C35: 0 | D35: 0 | E35: 0 | F35: 0 | G35: 0 | H35: 0 | I35: 0 | K35: 0 | L35: 0 | M35: 0 | N35: 0 | O35: 0 | P35: 0 | Q35: 0
A36: DRAB0303 | B36: Straight line depreciation | C36: -45188562.19 | D36: -45646229.29 | E36: -53825166.96 | F36: -53415213.5 | G36: -52970227.54 | H36: -52476235.21 | I36: -51928625.68 | K36: -59912247.6 | L36: -60689084.79 | M36: -70162326.35 | N36: -70499185.18 | O36: -70842953.64 | P36: -71184109.15 | Q36: -71522679.92
A37: DRAB0305 | B37: Actual additions (recognised in RAB) | C37: 9027921.904 | D37: 10955373.86 | E37: 13418724 | F37: 13561750.53 | G37: 13129877.38 | H37: 12679084.61 | I37: 13771407.28 | K37: 18397146.65 | L37: 20455822.61 | M37: 20211529.34 | N37: 20626107.99 | O37: 20469330.71 | P37: 20314246.02 | Q37: 21636451.11
A38: DRAB0306 | B38: Disposals | C38: 0 | D38: 0 | E38: 0 | F38: 0 | G38: 0 | H38: 0 | I38: 0 | K38: 0 | L38: 0 | M38: 0 | N38: 0 | O38: 0 | P38: 0 | Q38: 0
A39: DRAB0307 | B39: Closing value | C39: =SUM(C34+C35+C36+C37+C38) -> 2082878601 | D39: 2048187746 | E39: 2007781303 | F39: 1967927840 | G39: 1928087490 | H39: 1888290339 | I39: 1850133121 | K39: =SUM(K34+K35+K36+K37+K38) -> 2706203138 | L39: 2665969876 | M39: 2616754611 | N39: 2566881534 | O39: 2516507911 | P39: 2465638048 | Q39: 2415751819 | S39: =SUM(S34+S35+S36+S37+S38) -> 0 | T39: 0 | U39: 0 | V39: 0 | W39: 0 | X39: 0 | Y39: 0
B40: For distribution substations and transformers:
A41: DRAB0401 | B41: Opening value | C41: 1564330624 | D41: 1558583937 | E41: 1565967337 | F41: 1566038934 | G41: 1567521489 | H41: 1567333348 | I41: 1565612793 | K41: 2261241872 | L41: 2263597258 | M41: 2278090108 | N41: 2271556022 | O41: 2264912181 | P41: 2254963493 | Q41: 2241753037 | T41: =S46 -> 0 | U41: 0 | V41: 0 | W41: 0 | X41: 0 | Y41: 0
A42: DRAB0402 | B42: Inflation addition | C42: 0 | D42: 0 | E42: 0 | F42: 0 | G42: 0 | H42: 0 | I42: 0 | K42: 0 | L42: 0 | M42: 0 | N42: 0 | O42: 0 | P42: 0 | Q42: 0
A43: DRAB0403 | B43: Straight line depreciation | C43: -53732418.58 | D43: -54944736.59 | E43: -68320344.98 | F43: -68237707.33 | G43: -68084548.79 | H43: -67734643.17 | I43: -67165860.32 | K43: -78716733.54 | L43: -80590141.63 | M43: -99828438.7 | N43: -102262024.5 | O43: -104751516.2 | P43: -107215030.5 | Q43: -109652631.9
A44: DRAB0405 | B44: Actual additions (recognised in RAB) | C44: 47985731.61 | D44: 57049277.58 | E44: 68391942.38 | F44: 69720262.6 | G44: 67896407.35 | H44: 66014088.2 | I44: 70614190.67 | K44: 81072119.87 | L44: 90455808.96 | M44: 93294353.1 | N44: 95618182.87 | O44: 94802828.56 | P44: 94004574.6 | Q44: 99447425.59
A45: DRAB0406 | B45: Disposals | C45: 0 | D45: 0 | E45: 0 | F45: 0 | G45: 0 | H45: 0 | I45: 0 | K45: 0 | L45: 0 | M45: 0 | N45: 0 | O45: 0 | P45: 0 | Q45: 0
A46: DRAB0407 | B46: Closing value | C46: =SUM(C41+C42+C43+C44+C45) -> 1558583937 | D46: 1560688478 | E46: 1566038934 | F46: 1567521489 | G46: 1567333348 | H46: 1565612793 | I46: 1569061123 | K46: =SUM(K41+K42+K43+K44+K45) -> 2263597258 | L46: 2273462925 | M46: 2271556022 | N46: 2264912181 | O46: 2254963493 | P46: 2241753037 | Q46: 2231547831 | S46: =SUM(S41+S42+S43+S44+S45) -> 0 | T46: 0 | U46: 0 | V46: 0 | W46: 0 | X46: 0 | Y46: 0
B47: For overhead network assets 33kV and above:
A48: DRAB0501 | B48: Opening value | C48: 615604076.1 | D48: 630601855.3 | E48: 655086114.9 | F48: 673602909.4 | G48: 692811461.9 | H48: 710698131 | I48: 727312580.7 | K48: 757495335.7 | L48: 768757619.1 | M48: 791386265.5 | N48: 807186869.3 | O48: 823927266 | P48: 839425128.1 | Q48: 853718115.8 | T48: =S53 -> 0 | U48: 0 | V48: 0 | W48: 0 | X48: 0 | Y48: 0
A49: DRAB0502 | B49: Inflation addition | C49: 0 | D49: 0 | E49: 0 | F49: 0 | G49: 0 | H49: 0 | I49: 0 | K49: 0 | L49: 0 | M49: 0 | N49: 0 | O49: 0 | P49: 0 | Q49: 0
A50: DRAB0503 | B50: Straight line depreciation | C50: -15545764.87 | D50: -15799391.58 | E50: -20692383.14 | F50: -21683758.82 | G50: -22540184.24 | H50: -23371805.53 | I50: -24179932.81 | K50: -19103183.61 | L50: -19361137.11 | M50: -25016499.79 | N50: -25824119.56 | O50: -26666314.19 | P50: -27500587.56 | Q50: -28327528.11
A51: DRAB0505 | B51: Actual additions (recognised in RAB) | C51: 30543544.09 | D51: 34570736.76 | E51: 39209177.69 | F51: 40892311.34 | G51: 40426853.26 | H51: 39986255.29 | I51: 41136259.78 | K51: 30365467 | L51: 34117894.79 | M51: 40817103.52 | N51: 42564516.31 | O51: 42164176.22 | P51: 41793575.34 | Q51: 42997995.33
A52: DRAB0506 | B52: Disposals | C52: 0 | D52: 0 | E52: 0 | F52: 0 | G52: 0 | H52: 0 | I52: 0 | K52: 0 | L52: 0 | M52: 0 | N52: 0 | O52: 0 | P52: 0 | Q52: 0
A53: DRAB0507 | B53: Closing value | C53: =SUM(C48+C49+C50+C51+C52) -> 630601855.3 | D53: 649373200.5 | E53: 673602909.4 | F53: 692811461.9 | G53: 710698131 | H53: 727312580.7 | I53: 744268907.7 | K53: =SUM(K48+K49+K50+K51+K52) -> 768757619.1 | L53: 783514376.8 | M53: 807186869.3 | N53: 823927266 | O53: 839425128.1 | P53: 853718115.8 | Q53: 868388583.1 | S53: =SUM(S48+S49+S50+S51+S52) -> 0 | T53: 0 | U53: 0 | V53: 0 | W53: 0 | X53: 0 | Y53: 0
B54: For underground network assets 33kV and above:
A55: DRAB0601 | B55: Opening value | C55: 689805908.2 | D55: 673558336.4 | E55: 659612584.6 | F55: 642390800.4 | G55: 625195040.4 | H55: 607683997.2 | I55: 589889826.7 | K55: 920730485.2 | L55: 896261130.6 | M55: 874432589.6 | N55: 848210107.1 | O55: 821665523.9 | P55: 794419860.5 | Q55: 766455996.5 | T55: =S60 -> 0 | U55: 0 | V55: 0 | W55: 0 | X55: 0 | Y55: 0
A56: DRAB0602 | B56: Inflation addition | C56: 0 | D56: 0 | E56: 0 | F56: 0 | G56: 0 | H56: 0 | I56: 0 | K56: 0 | L56: 0 | M56: 0 | N56: 0 | O56: 0 | P56: 0 | Q56: 0
A57: DRAB0603 | B57: Straight line depreciation | C57: -22735688.45 | D57: -22917920.7 | E57: -27846646.65 | F57: -27733299.24 | G57: -27580366.55 | H57: -27367592.93 | I57: -27085551.4 | K57: -30481212.29 | L57: -30663444.54 | M57: -36922290.63 | N57: -37160064.15 | O57: -37395963.72 | P57: -37621525.95 | Q57: -37836140.66
A58: DRAB0605 | B58: Actual additions (recognised in RAB) | C58: 6488116.637 | D58: 8268661.466 | E58: 10624862.45 | F58: 10537539.18 | G58: 10069323.4 | H58: 9573422.393 | I58: 10761987.26 | K58: 6011857.667 | L58: 7720330.645 | M58: 10699808.14 | N58: 10615480.94 | O58: 10150300.32 | P58: 9657661.887 | Q58: 10848763.07
A59: DRAB0606 | B59: Disposals | C59: 0 | D59: 0 | E59: 0 | F59: 0 | G59: 0 | H59: 0 | I59: 0 | K59: 0 | L59: 0 | M59: 0 | N59: 0 | O59: 0 | P59: 0 | Q59: 0
A60: DRAB0607 | B60: Closing value | C60: =SUM(C55+C56+C57+C58+C59) -> 673558336.4 | D60: 658909077.2 | E60: 642390800.4 | F60: 625195040.4 | G60: 607683997.2 | H60: 589889826.7 | I60: 573566262.5 | K60: =SUM(K55+K56+K57+K58+K59) -> 896261130.6 | L60: 873318016.7 | M60: 848210107.1 | N60: 821665523.9 | O60: 794419860.5 | P60: 766455996.5 | Q60: 739468618.9 | S60: =SUM(S55+S56+S57+S58+S59) -> 0 | T60: 0 | U60: 0 | V60: 0 | W60: 0 | X60: 0 | Y60: 0
B61: Zone substations and transformers
A62: DRAB0701 | B62: Opening value | C62: 3359181049 | D62: 3332530747 | E62: 3322059767 | F62: 3301040271 | G62: 3280269154 | H62: 3255875975 | I62: 3227858150 | K62: 3432559914 | L62: 3400077978 | M62: 3383839663 | N62: 3361426671 | O62: 3339333727 | P62: 3313688446 | Q62: 3284478420 | T62: =S67 -> 0 | U62: 0 | V62: 0 | W62: 0 | X62: 0 | Y62: 0
A63: DRAB0702 | B63: Inflation addition | C63: 0 | D63: 0 | E63: 0 | F63: 0 | G63: 0 | H63: 0 | I63: 0 | K63: 0 | L63: 0 | M63: 0 | N63: 0 | O63: 0 | P63: 0 | Q63: 0
A64: DRAB0703 | B64: Straight line depreciation | C64: -83115384.89 | D64: -84221200.68 | E64: -101206457.7 | F64: -102827976.6 | G64: -104487280.7 | H64: -106098921.7 | I64: -107661523.2 | K64: -85015216.2 | L64: -86122275.95 | M64: -103308531.7 | N64: -104886708 | O64: -106504981.7 | P64: -108087568.7 | Q64: -109633731.8
A65: DRAB0705 | B65: Actual additions (recognised in RAB) | C65: 57634859.63 | D65: 67950454.18 | E65: 80728535.87 | F65: 82598293.87 | G65: 80635457.83 | H65: 78622731.28 | I65: 83565519.64 | K65: 53703057.18 | L65: 63407165.49 | M65: 81437113.35 | N65: 83335197.75 | O65: 81401057.77 | P65: 79419177.4 | Q65: 84385945.47
A66: DRAB0706 | B66: Disposals | C66: -1169776.656 | D66: -1093332.869 | E66: -541574.0074 | F66: -541433.5588 | G66: -541357.0508 | H66: -541634.1498 | I66: -541917.0419 | K66: -1169776.656 | L66: -1093332.869 | M66: -541574.0074 | N66: -541433.5588 | O66: -541357.0508 | P66: -541634.1498 | Q66: -541917.0419
A67: DRAB0707 | B67: Closing value | C67: =SUM(C62+C63+C64+C65+C66) -> 3332530747 | D67: 3315166668 | E67: 3301040271 | F67: 3280269154 | G67: 3255875975 | H67: 3227858150 | I67: 3203220229 | K67: =SUM(K62+K63+K64+K65+K66) -> 3400077978 | L67: 3376269535 | M67: 3361426671 | N67: 3339333727 | O67: 3313688446 | P67: 3284478420 | Q67: 3258688717 | S67: =SUM(S62+S63+S64+S65+S66) -> 0 | T67: 0 | U67: 0 | V67: 0 | W67: 0 | X67: 0 | Y67: 0
B68: For easements:
A69: DRAB0801 | B69: Opening value | C69: 212144657.4 | D69: 214462345.5 | E69: 217506043.2 | F69: 221524741.4 | G69: 225468984.2 | H69: 229210052.8 | I69: 232734851.7 | K69: 212158293.3 | L69: 214261951.6 | M69: 219576518.5 | N69: 223595216.6 | O69: 227539459.4 | P69: 231280528.1 | Q69: 234805326.9 | T69: =S73 -> 0 | U69: 0 | V69: 0 | W69: 0 | X69: 0 | Y69: 0
A70: DRAB0802 | B70: Inflation addition | C70: 0 | D70: 0 | E70: 0 | F70: 0 | G70: 0 | H70: 0 | I70: 0 | K70: 0 | L70: 0 | M70: 0 | N70: 0 | O70: 0 | P70: 0 | Q70: 0
A71: DRAB0803 | B71: Actual additions (recognised in RAB) | C71: 2317688.058 | D71: 3043697.706 | E71: 4018698.15 | F71: 3944242.825 | G71: 3741068.643 | H71: 3524798.832 | I71: 4041208.069 | K71: 2103658.234 | L71: 2802560.592 | M71: 4018698.15 | N71: 3944242.825 | O71: 3741068.643 | P71: 3524798.832 | Q71: 4041208.069
A72: DRAB0804 | B72: Disposals | C72: 0 | D72: 0 | E72: 0 | F72: 0 | G72: 0 | H72: 0 | I72: 0 | K72: 0 | L72: 0 | M72: 0 | N72: 0 | O72: 0 | P72: 0 | Q72: 0
A73: DRAB0805 | B73: Closing value | C73: =SUM(C69+C70+C71+C72) -> 214462345.5 | D73: 217506043.2 | E73: 221524741.4 | F73: 225468984.2 | G73: 229210052.8 | H73: 232734851.7 | I73: 236776059.7 | K73: =SUM(K69+K70+K71+K72) -> 214261951.6 | L73: 217064512.2 | M73: 223595216.6 | N73: 227539459.4 | O73: 231280528.1 | P73: 234805326.9 | Q73: 238846535 | S73: =SUM(S69+S70+S71+S72) -> 0 | T73: 0 | U73: 0 | V73: 0 | W73: 0 | X73: 0 | Y73: 0
B74: For meters:
A75: DRAB0901 | B75: Opening value | C75: 45857134.3 | D75: 45665155.16 | E75: 43257346.3 | F75: 42831202.48 | G75: 41972629.6 | H75: 42552366.11 | I75: 43902873.89 | K75: 71287559.66 | L75: 65501544.64 | M75: 55317838.67 | N75: 52854921.64 | O75: 49851698.3 | P75: 48794985.73 | Q75: 48962868.38 | T75: =S80 -> 0 | U75: 0 | V75: 0 | W75: 0 | X75: 0 | Y75: 0
A76: DRAB0902 | B76: Inflation addition | C76: 0 | D76: 0 | E76: 0 | F76: 0 | G76: 0 | H76: 0 | I76: 0 | K76: 0 | L76: 0 | M76: 0 | N76: 0 | O76: 0 | P76: 0 | Q76: 0
A77: DRAB0903 | B77: Straight line depreciation | C77: -4283712.623 | D77: -4776912.066 | E77: -7274673.462 | F77: -7623364.871 | G77: -5865974.107 | H77: -4756537.373 | I77: -5157072.728 | K77: -9504126.505 | L77: -9997325.948 | M77: -9311446.68 | N77: -9768015.324 | O77: -7502423.181 | P77: -5939162.513 | Q77: -6346298.857
A78: DRAB0905 | B78: Actual additions (recognised in RAB) | C78: 4091733.489 | D78: 5274248.266 | E78: 6848529.651 | F78: 6764791.988 | G78: 6445710.612 | H78: 6107045.154 | I78: 6917464.645 | K78: 3718111.486 | L78: 4853261.887 | M78: 6848529.651 | N78: 6764791.988 | O78: 6445710.612 | P78: 6107045.154 | Q78: 6917464.645
A79: DRAB0906 | B79: Disposals | C79: 0 | D79: 0 | E79: 0 | F79: 0 | G79: 0 | H79: 0 | I79: 0 | K79: 0 | L79: 0 | M79: 0 | N79: 0 | O79: 0 | P79: 0 | Q79: 0
A80: DRAB0907 | B80: Closing value | C80: =SUM(C75+C76+C77+C78+C79) -> 45665155.16 | D80: 46162491.36 | E80: 42831202.48 | F80: 41972629.6 | G80: 42552366.11 | H80: 43902873.89 | I80: 45663265.8 | K80: =SUM(K75+K76+K77+K78+K79) -> 65501544.64 | L80: 60357480.57 | M80: 52854921.64 | N80: 49851698.3 | O80: 48794985.73 | P80: 48962868.38 | Q80: 49534034.16 | S80: =SUM(S75+S76+S77+S78+S79) -> 0 | T80: 0 | U80: 0 | V80: 0 | W80: 0 | X80: 0 | Y80: 0
B81: For “other” asset items with long lives:
A82: DRAB1001 | B82: Opening value | C82: 986838735.7 | D82: 1037447397 | E82: 1143547813 | F82: 1202769196 | G82: 1273605416 | H82: 1323912345 | I82: 1371295271 | K82: 988081669.1 | L82: 1034468606 | M82: 1136650683 | N82: 1196528051 | O82: 1268190147 | P82: 1319476833 | Q82: 1367975665 | S82: 157455595.8 | T82: 159971124.6 | U82: 166925372.2 | V82: 186894101.7 | W82: 204736765 | X82: 221019034 | Y82: 235595880.6
A83: DRAB1002 | B83: Inflation addition | C83: 0 | D83: 0 | E83: 0 | F83: 0 | G83: 0 | H83: 0 | I83: 0 | K83: 0 | L83: 0 | M83: 0 | N83: 0 | O83: 0 | P83: 0 | Q83: 0 | S83: 0 | T83: 0 | U83: 0 | V83: 0 | W83: 0 | X83: 0 | Y83: 0
A84: DRAB1003 | B84: Straight line depreciation | C84: -21544992.27 | D84: -22194446.06 | E84: -38530318.25 | F84: -41982030.14 | G84: -45626244.89 | H84: -48830276.07 | I84: -52029339.46 | K84: -21544992.27 | L84: -22194446.06 | M84: -38283126.76 | N84: -41581291.87 | O84: -45088179.8 | P84: -48173858.4 | Q84: -51268689.34 | S84: -13363546.84 | T84: -13363546.84 | U84: -19634553.81 | V84: -21799592.64 | W84: -23587100.53 | X84: -25580569 | Y84: -27588439.78
A85: DRAB1005 | B85: Actual additions (recognised in RAB) | C85: 72153653.77 | D85: 115056871.5 | E85: 97751700.55 | F85: 112818250.7 | G85: 101016012.9 | H85: 96213202.34 | I85: 87330718.29 | K85: 67931928.91 | L85: 110231190.7 | M85: 98160495.25 | N85: 113243387.6 | O85: 101457705.1 | P85: 96672690.49 | Q85: 87804040.89 | S85: 15879075.63 | T85: 15797308.43 | U85: 39603283.3 | V85: 39642256 | W85: 39869369.54 | X85: 40157415.54 | Y85: 40469905.77
A86: DRAB1006 | B86: Disposals | C86: 0 | D86: 0 | E86: 0 | F86: 0 | G86: -5082839.564 | H86: 0 | I86: -3000010.596 | K86: 0 | L86: 0 | M86: 0 | N86: 0 | O86: -5082839.564 | P86: 0 | Q86: -3000010.596 | S86: 0 | T86: 0 | U86: 0 | V86: 0 | W86: 0 | X86: 0 | Y86: 0
A87: DRAB1007 | B87: Closing value | C87: =SUM(C82+C83+C84+C85+C86) -> 1037447397 | D87: 1130309823 | E87: 1202769196 | F87: 1273605416 | G87: 1323912345 | H87: 1371295271 | I87: 1403596639 | K87: =SUM(K82+K83+K84+K85+K86) -> 1034468606 | L87: 1122505350 | M87: 1196528051 | N87: 1268190147 | O87: 1319476833 | P87: 1367975665 | Q87: 1401511006 | S87: =SUM(S82+S83+S84+S85+S86) -> 159971124.6 | T87: 162404886.1 | U87: 186894101.7 | V87: 204736765 | W87: 221019034 | X87: 235595880.6 | Y87: 248477346.5
B88: For “other” asset items with short lives:
A89: DRAB1101 | B89: Opening value | C89: 292034276.3 | D89: 365347177.4 | E89: 470707687.9 | F89: 491122090.4 | G89: 487878328.8 | H89: 448034367.4 | I89: 398899775.6 | K89: 292061714 | L89: 365374615.2 | M89: 471142592.8 | N89: 491425489.4 | O89: 487732225.6 | P89: 447177860.7 | Q89: 397130437.7 | T89: =S94 -> 0 | U89: 0 | V89: 0 | W89: 0 | X89: 0 | Y89: 0
A90: DRAB1102 | B90: Inflation addition | C90: 0 | D90: 0 | E90: 0 | F90: 0 | G90: 0 | H90: 0 | I90: 0 | K90: 0 | L90: 0 | M90: 0 | N90: 0 | O90: 0 | P90: 0 | Q90: 0
A91: DRAB1103 | B91: Straight line depreciation | C91: -53618412.74 | D91: -61349793.28 | E91: -109964853.6 | F91: -121033449.5 | G91: -130649017.2 | H91: -134499764.1 | I91: -117975822.1 | K91: -53618412.55 | L91: -61349793.03 | M91: -110128392.1 | N91: -121465638.4 | O91: -131336941.9 | P91: -135381940.4 | Q91: -118950175.4
A92: DRAB1105 | B92: Actual additions (recognised in RAB) | C92: 126931313.8 | D92: 141201616.6 | E92: 131196469.2 | F92: 118363778.4 | G92: 91484078.87 | H92: 86044542.93 | I92: 93030895.09 | K92: 126931313.8 | L92: 141201616.6 | M92: 131228501.9 | N92: 118346465 | O92: 91461600.11 | P92: 86013887.99 | Q92: 92989494.56
A93: DRAB1106 | B93: Disposals | C93: 0 | D93: 0 | E93: -817213.1813 | F93: -574090.4397 | G93: -679023.0743 | H93: -679370.6391 | I93: -679725.4701 | K93: 0 | L93: 0 | M93: -817213.1813 | N93: -574090.4397 | O93: -679023.0743 | P93: -679370.6391 | Q93: -679725.4701
A94: DRAB1107 | B94: Closing value | C94: =SUM(C89+C90+C91+C92+C93) -> 365347177.4 | D94: 445199000.6 | E94: 491122090.4 | F94: 487878328.8 | G94: 448034367.4 | H94: 398899775.6 | I94: 373275123.1 | K94: =SUM(K89+K90+K91+K92+K93) -> 365374615.2 | L94: 445226438.8 | M94: 491425489.4 | N94: 487732225.6 | O94: 447177860.7 | P94: 397130437.7 | Q94: 370490031.3 | S94: =SUM(S89+S90+S91+S92+S93) -> 0 | T94: 0 | U94: 0 | V94: 0 | W94: 0 | X94: 0 | Y94: 0
B98: 3.3.3 - TOTAL DISAGGREGATED BENCHMARKING ASSET BASE VALUES
C99: Network services | K99: Standard control services | S99: Alternative control services
C100: =CONCATENATE(" VALUE FORECAST ($, real ", dms_DollarReal, ")") -> VALUE FORECAST ($, real June 2025) | K100: =CONCATENATE(" VALUE FORECAST ($, real ", dms_DollarReal, ")") -> VALUE FORECAST ($, real June 2025) | S100: =CONCATENATE(" VALUE FORECAST ($, real ", dms_DollarReal, ")") -> VALUE FORECAST ($, real June 2025)
C101: =CRCP_y4 -> 2023-24 | D101: =CRCP_y5 -> 2024-25 | E101: =FRCP_y1 -> 2025-26 | F101: =FRCP_y2 -> 2026-27 | G101: =FRCP_y3 -> 2027-28 | H101: =FRCP_y4 -> 2028-29 | I101: =FRCP_y5 -> 2029-30 | K101: =CRCP_y4 -> 2023-24 | L101: =CRCP_y5 -> 2024-25 | M101: =FRCP_y1 -> 2025-26 | N101: =FRCP_y2 -> 2026-27 | O101: =FRCP_y3 -> 2027-28 | P101: =FRCP_y4 -> 2028-29 | Q101: =FRCP_y5 -> 2029-30 | S101: =CRCP_y4 -> 2023-24 | T101: =CRCP_y5 -> 2024-25 | U101: =FRCP_y1 -> 2025-26 | V101: =FRCP_y2 -> 2026-27 | W101: =FRCP_y3 -> 2027-28 | X101: =FRCP_y4 -> 2028-29 | Y101: =FRCP_y5 -> 2029-30
A102: DRAB1201 | B102: Overhead network assets less than 33kV (wires and poles) | C102: =IFERROR(AVERAGE(C27,C32),"") -> 2726137173 | D102: =IFERROR(AVERAGE(D27,D32),"") -> 2822192543 | E102: 2908002849 | F102: 2992448809 | G102: 3082506328 | H102: 3171926163 | I102: 3255991348 | K102: =IFERROR(AVERAGE(K27,K32),"") -> 3562312622 | L102: =IFERROR(AVERAGE(L27,L32),"") -> 3665679238 | M102: 3753187515 | N102: 3838249153 | O102: 3928468218 | P102: 4017603372 | Q102: 4100718693 | S102: =IFERROR(AVERAGE(S27,S32),"") -> 0 | T102: =IFERROR(AVERAGE(T27,T32),"") -> 0 | U102: 0 | V102: 0 | W102: 0 | X102: 0 | Y102: 0
A103: DRAB1202 | B103: Underground network assets less than 33kV (cables) | C103: =IFERROR(AVERAGE(C34,C39),"") -> 2100958921 | D103: =IFERROR(AVERAGE(D34,D39),"") -> 2065533174 | E103: 2027984524 | F103: 1987854571 | G103: 1948007665 | H103: 1908188915 | I103: 1869211730 | K103: =IFERROR(AVERAGE(K34,K39),"") -> 2726960689 | L103: =IFERROR(AVERAGE(L34,L39),"") -> 2686086507 | M103: 2641730010 | N103: 2591818073 | O103: 2541694723 | P103: 2491072980 | Q103: 2440694934 | S103: =IFERROR(AVERAGE(S34,S39),"") -> 0 | T103: =IFERROR(AVERAGE(T34,T39),"") -> 0 | U103: 0 | V103: 0 | W103: 0 | X103: 0 | Y103: 0
A104: DRAB1203 | B104: Distribution substations including transformers | C104: =IFERROR(AVERAGE(C41,C46),"") -> 1561457281 | D104: =IFERROR(AVERAGE(D41,D46),"") -> 1559636208 | E104: 1566003135 | F104: 1566780212 | G104: 1567427419 | H104: 1566473071 | I104: 1567336958 | K104: =IFERROR(AVERAGE(K41,K46),"") -> 2262419565 | L104: =IFERROR(AVERAGE(L41,L46),"") -> 2268530092 | M104: 2274823065 | N104: 2268234101 | O104: 2259937837 | P104: 2248358265 | Q104: 2236650434 | S104: =IFERROR(AVERAGE(S41,S46),"") -> 0 | T104: =IFERROR(AVERAGE(T41,T46),"") -> 0 | U104: 0 | V104: 0 | W104: 0 | X104: 0 | Y104: 0
A105: DRAB1204 | B105: Overhead network assets 33kV and above (wires and towers / poles etc) | C105: =IFERROR(AVERAGE(C48,C53),"") -> 623102965.7 | D105: =IFERROR(AVERAGE(D48,D53),"") -> 639987527.9 | E105: 664344512.1 | F105: 683207185.7 | G105: 701754796.4 | H105: 719005355.8 | I105: 735790744.2 | K105: =IFERROR(AVERAGE(K48,K53),"") -> 763126477.4 | L105: =IFERROR(AVERAGE(L48,L53),"") -> 776135997.9 | M105: 799286567.4 | N105: 815557067.6 | O105: 831676197 | P105: 846571621.9 | Q105: 861053349.4 | S105: =IFERROR(AVERAGE(S48,S53),"") -> 0 | T105: =IFERROR(AVERAGE(T48,T53),"") -> 0 | U105: 0 | V105: 0 | W105: 0 | X105: 0 | Y105: 0
A106: DRAB1205 | B106: Underground network assets 33kV and above(cables, ducts etc) | C106: =IFERROR(AVERAGE(C55,C60),"") -> 681682122.3 | D106: =IFERROR(AVERAGE(D55,D60),"") -> 666233706.8 | E106: 651001692.5 | F106: 633792920.4 | G106: 616439518.8 | H106: 598786911.9 | I106: 581728044.6 | K106: =IFERROR(AVERAGE(K55,K60),"") -> 908495807.9 | L106: =IFERROR(AVERAGE(L55,L60),"") -> 884789573.6 | M106: 861321348.4 | N106: 834937815.5 | O106: 808042692.2 | P106: 780437928.5 | Q106: 752962307.7 | S106: =IFERROR(AVERAGE(S55,S60),"") -> 0 | T106: =IFERROR(AVERAGE(T55,T60),"") -> 0 | U106: 0 | V106: 0 | W106: 0 | X106: 0 | Y106: 0
A107: DRAB1206 | B107: Zone substations and transformers | C107: =IFERROR(AVERAGE(C62,C67),"") -> 3345855898 | D107: =IFERROR(AVERAGE(D62,D67),"") -> 3323848708 | E107: 3311550019 | F107: 3290654713 | G107: 3268072565 | H107: 3241867062 | I107: 3215539190 | K107: =IFERROR(AVERAGE(K62,K67),"") -> 3416318946 | L107: =IFERROR(AVERAGE(L62,L67),"") -> 3388173757 | M107: 3372633167 | N107: 3350380199 | O107: 3326511086 | P107: 3299083433 | Q107: 3271583569 | S107: =IFERROR(AVERAGE(S62,S67),"") -> 0 | T107: =IFERROR(AVERAGE(T62,T67),"") -> 0 | U107: 0 | V107: 0 | W107: 0 | X107: 0 | Y107: 0
A108: DRAB1207 | B108: Easements | C108: =IFERROR(AVERAGE(C69,C73),"") -> 213303501.5 | D108: =IFERROR(AVERAGE(D69,D73),"") -> 215984194.3 | E108: 219515392.3 | F108: 223496862.8 | G108: 227339518.5 | H108: 230972452.2 | I108: 234755455.7 | K108: =IFERROR(AVERAGE(K69,K73),"") -> 213210122.4 | L108: =IFERROR(AVERAGE(L69,L73),"") -> 215663231.9 | M108: 221585867.5 | N108: 225567338 | O108: 229409993.8 | P108: 233042927.5 | Q108: 236825931 | S108: =IFERROR(AVERAGE(S69,S73),"") -> 0 | T108: =IFERROR(AVERAGE(T69,T73),"") -> 0 | U108: 0 | V108: 0 | W108: 0 | X108: 0 | Y108: 0
A109: DRAB1208 | B109: Meters | C109: =IFERROR(AVERAGE(C75,C80),"") -> 45761144.73 | D109: =IFERROR(AVERAGE(D75,D80),"") -> 45913823.26 | E109: 43044274.39 | F109: 42401916.04 | G109: 42262497.85 | H109: 43227620 | I109: 44783069.85 | K109: =IFERROR(AVERAGE(K75,K80),"") -> 68394552.15 | L109: =IFERROR(AVERAGE(L75,L80),"") -> 62929512.61 | M109: 54086380.15 | N109: 51353309.97 | O109: 49323342.02 | P109: 48878927.06 | Q109: 49248451.27 | S109: =IFERROR(AVERAGE(S75,S80),"") -> 0 | T109: =IFERROR(AVERAGE(T75,T80),"") -> 0 | U109: 0 | V109: 0 | W109: 0 | X109: 0 | Y109: 0
A110: DRAB1209 | B110: “Other” assets with long lives | C110: =IFERROR(AVERAGE(C82,C87),"") -> 1012143066 | D110: =IFERROR(AVERAGE(D82,D87),"") -> 1083878610 | E110: 1173158504 | F110: 1238187306 | G110: 1298758880 | H110: 1347603808 | I110: 1387445955 | K110: =IFERROR(AVERAGE(K82,K87),"") -> 1011275137 | L110: =IFERROR(AVERAGE(L82,L87),"") -> 1078486978 | M110: 1166589367 | N110: 1232359099 | O110: 1293833490 | P110: 1343726249 | Q110: 1384743335 | S110: =IFERROR(AVERAGE(S82,S87),"") -> 158713360.2 | T110: =IFERROR(AVERAGE(T82,T87),"") -> 161188005.3 | U110: 176909736.9 | V110: 195815433.3 | W110: 212877899.5 | X110: 228307457.3 | Y110: 242036613.6
A111: DRAB1210 | B111: “Other” assets with short lives | C111: =IFERROR(AVERAGE(C89,C94),"") -> 328690726.8 | D111: =IFERROR(AVERAGE(D89,D94),"") -> 405273089 | E111: 480914889.1 | F111: 489500209.6 | G111: 467956348.1 | H111: 423467071.5 | I111: 386087449.4 | K111: =IFERROR(AVERAGE(K89,K94),"") -> 328718164.6 | L111: =IFERROR(AVERAGE(L89,L94),"") -> 405300527 | M111: 481284041.1 | N111: 489578857.5 | O111: 467455043.1 | P111: 422154149.2 | Q111: 383810234.5 | S111: =IFERROR(AVERAGE(S89,S94),"") -> 0 | T111: =IFERROR(AVERAGE(T89,T94),"") -> 0 | U111: 0 | V111: 0 | W111: 0 | X111: 0 | Y111: 0
A112: DRAB13 | B112: Value of Capital Contributions or Contributed Assets (included in the above)
B115: 3.3.4 - ASSET LIVES
C116: Network services | K116: Standard control services | S116: Alternative control services
C117: FORECAST ( years ) | K117: FORECAST ( years ) | S117: FORECAST ( years )
C118: =CRCP_y4 -> 2023-24 | D118: =CRCP_y5 -> 2024-25 | E118: =FRCP_y1 -> 2025-26 | F118: =FRCP_y2 -> 2026-27 | G118: =FRCP_y3 -> 2027-28 | H118: =FRCP_y4 -> 2028-29 | I118: =FRCP_y5 -> 2029-30 | K118: =CRCP_y4 -> 2023-24 | L118: =CRCP_y5 -> 2024-25 | M118: =FRCP_y1 -> 2025-26 | N118: =FRCP_y2 -> 2026-27 | O118: =FRCP_y3 -> 2027-28 | P118: =FRCP_y4 -> 2028-29 | Q118: =FRCP_y5 -> 2029-30 | S118: =CRCP_y4 -> 2023-24 | T118: =CRCP_y5 -> 2024-25 | U118: =FRCP_y1 -> 2025-26 | V118: =FRCP_y2 -> 2026-27 | W118: =FRCP_y3 -> 2027-28 | X118: =FRCP_y4 -> 2028-29 | Y118: =FRCP_y5 -> 2029-30
B119: Estimated service life of new assets
A120: DRAB1401 | B120: Overhead network assets less than 33kV (wires and poles) | C120: 43.5037724 | D120: 43.37233456 | E120: 43.27331137 | F120: 43.16701171 | G120: 43.06409571 | H120: 42.96269912 | I120: 42.87892178 | K120: 43.48453834 | L120: 43.48772869 | M120: 43.50612188 | N120: 43.52454906 | O120: 43.54195477 | P120: 43.55854276 | Q120: 43.57540128
A121: DRAB1402 | B121: Underground network assets less than 33kV (cables) | C121: 60 | D121: 60 | E121: 60 | F121: 60 | G121: 60 | H121: 60 | I121: 60 | K121: 60 | L121: 60 | M121: 60 | N121: 60 | O121: 60 | P121: 60 | Q121: 60
A122: DRAB1403 | B122: Distribution substations including transformers | C122: 38.84126917 | D122: 38.81005841 | E122: 39.09552716 | F122: 39.39965917 | G122: 39.71862414 | H122: 40.04824467 | I122: 40.38295838 | K122: 39.36871261 | L122: 39.35050362 | M122: 39.54322118 | N122: 39.75014502 | O122: 39.96983514 | P122: 40.20005428 | Q122: 40.43763984
A123: DRAB1404 | B123: Overhead network assets 33kV and above (wires and towers / poles etc) | C123: 50.54 | D123: 50.54 | E123: 50.54 | F123: 50.54 | G123: 50.54 | H123: 50.54 | I123: 50.54 | K123: 50.54 | L123: 50.54 | M123: 50.54 | N123: 50.54 | O123: 50.54 | P123: 50.54 | Q123: 50.54
A124: DRAB1405 | B124: Underground network assets 33kV and above(cables, ducts etc) | C124: 45 | D124: 45 | E124: 45 | F124: 45 | G124: 45 | H124: 45 | I124: 45 | K124: 45 | L124: 45 | M124: 45 | N124: 45 | O124: 45 | P124: 45 | Q124: 45
A125: DRAB1406 | B125: Zone substations and transformers | C125: 50.86664363 | D125: 50.91216381 | E125: 51.4501912 | F125: 51.98511114 | G125: 52.51649758 | H125: 53.04385458 | I125: 53.5756306 | K125: 54.35318182 | L125: 54.32834882 | M125: 54.80225523 | N125: 55.27176984 | O125: 55.74028494 | P125: 56.20694678 | Q125: 56.67386077
A126: DRAB1407 | B126: Meters | C126: 15 | D126: 15 | E126: 15 | F126: 15 | G126: 15 | H126: 15 | I126: 15 | K126: 15 | L126: 15 | M126: 15 | N126: 15 | O126: 15 | P126: 15 | Q126: 15
A127: DRAB1408 | B127: “Other” assets with long lives | C127: 33.91731311 | D127: 33.96543174 | E127: 34.36576323 | F127: 34.86270758 | G127: 35.32612408 | H127: 35.83789978 | I127: 36.38271662 | K127: 33.91731311 | L127: 33.96543174 | M127: 34.36576323 | N127: 34.86270758 | O127: 35.32612408 | P127: 35.83789978 | Q127: 36.38271662 | S127: 20 | T127: 20 | U127: 20 | V127: 20 | W127: 20 | X127: 20 | Y127: 20
A128: DRAB1409 | B128: “Other” assets with short lives | C128: 6.438643171 | D128: 6.417537058 | E128: 6.039739302 | F128: 6.011333898 | G128: 5.937653436 | H128: 5.845353009 | I128: 5.806469015 | K128: 6.438643171 | L128: 6.417537058 | M128: 6.039739302 | N128: 6.011333898 | O128: 5.937653436 | P128: 5.845353009 | Q128: 5.806469015
B129: Estimated residual service life
A130: DRAB1501 | B130: Overhead network assets less than 33kV (wires and poles) | C130: 31.49967214 | D130: 31.42480626 | E130: 31.35744812 | F130: 31.34257337 | G130: 31.31698871 | H130: 31.28589904 | I130: 31.21314562 | K130: 30.05464657 | L130: 29.98438241 | M130: 29.92341036 | N130: 29.91822756 | O130: 29.91362326 | P130: 29.91332687 | Q130: 29.88332175
A131: DRAB1502 | B131: Underground network assets less than 33kV (cables) | C131: 39.04080014 | D131: 38.17474992 | E131: 37.34732183 | F131: 36.53327191 | G131: 35.72548344 | H131: 34.92373671 | I131: 34.15179467 | K131: 39.4179434 | L131: 38.60592607 | M131: 37.80202066 | N131: 37.01480838 | O131: 36.23943819 | P131: 35.47646248 | Q131: 34.74332093
A132: DRAB1503 | B132: Distribution substations including transformers | C132: 24.87544849 | D132: 24.47533241 | E132: 24.19819974 | F132: 23.96136957 | G132: 23.73301256 | H132: 23.51511937 | I132: 23.36602394 | K132: 25.18508253 | L132: 24.86216373 | M132: 24.57136554 | N132: 24.34033096 | O132: 24.1455223 | P132: 23.98711197 | Q132: 23.91336521
A133: DRAB1504 | B133: Overhead network assets 33kV and above (wires and towers / poles etc) | C133: 34.6813861 | D133: 34.67916343 | E133: 34.76899965 | F133: 34.87036084 | G133: 34.93043304 | H133: 34.95703461 | I133: 34.99133338 | K133: 33.62026021 | L133: 33.49432529 | M133: 33.51697893 | N133: 33.56485341 | O133: 33.58819686 | P133: 33.59212038 | Q133: 33.61341199
A134: DRAB1505 | B134: Underground network assets 33kV and above (cables, ducts etc) | C134: 25.51498316 | D134: 24.80807258 | E134: 24.20612362 | F134: 23.63032784 | G134: 23.0677454 | H134: 22.51822031 | I134: 22.05639068 | K134: 25.04725692 | L134: 24.25940191 | M134: 23.57185029 | N134: 22.90799188 | O134: 22.25802671 | P134: 21.62210196 | Q134: 21.06096491
A135: DRAB1506 | B135: Zone substations and transformers | C135: 32.88102541 | D135: 32.42830283 | E135: 32.10113014 | F135: 31.80833171 | G135: 31.52271969 | H135: 31.24481428 | I135: 31.03776203 | K135: 32.83586813 | L135: 32.33896294 | M135: 32.02100173 | N135: 31.75477404 | O135: 31.5120121 | P135: 31.29259145 | Q135: 31.1650034
A136: DRAB1507 | B136: Meters | C136: 10.81436454 | D136: 10.48493057 | E136: 10.36535778 | F136: 10.2572783 | G136: 10.15336589 | H136: 10.07287524 | I136: 10.15143554 | K136: 8.224852497 | L136: 7.968636358 | M136: 8.099829937 | N136: 8.383096793 | O136: 8.842393043 | P136: 9.562921308 | Q136: 10.80171736
A137: DRAB1508 | B137: “Other” assets with long lives | C137: 26.16091177 | D137: 26.38862551 | E137: 26.2655372 | F137: 26.35370001 | G137: 26.22246716 | H137: 26.14216919 | I137: 25.96216171 | K137: 26.16091177 | L137: 26.38862551 | M137: 26.2655372 | N137: 26.35370001 | O137: 26.22246716 | P137: 26.14216919 | Q137: 25.96216171 | S137: 12.15429094 | T137: 12.34543008 | U137: 13.63458396 | V137: 14.5565338 | W137: 15.25576236 | X137: 15.8129084 | Y137: 16.27838847
A138: DRAB1509 | B138: “Other” assets with short lives | C138: 5.218864805 | D138: 5.272514818 | E138: 5.179028835 | F138: 5.099925371 | G138: 4.929031922 | H138: 4.868889237 | I138: 5.078652188 | K138: 5.218864805 | L138: 5.272514818 | M138: 5.179028835 | N138: 5.099925371 | O138: 4.929031922 | P138: 4.868889237 | Q138: 5.078652188

Sheet 3.4 Operational data
B1: =INDEX(dms_Worksheet_List,MATCH(dms_Model,dms_Model_List)) -> REGULATORY REPORTING STATEMENT
B2: =INDEX(dms_TradingNameFull_List,MATCH(dms_TradingName,dms_TradingName_List)) -> Energex
B3: =CONCATENATE("REGULATORY PERIOD FROM ", FRCP_y1," TO ",dms_MultiYear_FinalYear_Result) -> REGULATORY PERIOD FROM 2025-26 TO 2029-30
B4: 3.4 OPERATIONAL DATA
B5: TEMPLATE DATE - OCTOBER 2023 - FINAL RIN
B7: There are THREE tables on this worksheet. Each table has been grouped for ease of navigation.
B9: 3.4.1 - ENERGY DELIVERY
D10: Standard control services
D11: FORECAST
C12: Units | D12: =CRCP_y4 -> 2023-24 | E12: =CRCP_y5 -> 2024-25 | F12: =FRCP_y1 -> 2025-26 | G12: =FRCP_y2 -> 2026-27 | H12: =FRCP_y3 -> 2027-28 | I12: =FRCP_y4 -> 2028-29 | J12: =FRCP_y5 -> 2029-30
A13: DOPED01 | B13: TOTAL ENERGY DELIVERED
B14: 3.4.1.1 - Energy grouping - delivery by chargeable quantity
A15: DOPED0201 | B15: Energy Delivery where time of use is not a determinant | C15: GWh | D15: 16440.85125 | E15: 16867.72383 | F15: 8353.692997 | G15: 7632.860778 | H15: 6950.063932 | I15: 6285.510198 | J15: 5640.046067
A16: DOPED0202 | B16: Energy Delivery at On-peak times | C16: GWh | D16: 1838.02695 | E16: 1701.714135 | F16: 2830.216203 | G16: 3064.536689 | H16: 3310.437611 | I16: 3552.446285 | J16: 3826.33364
A17: DOPED0203 | B17: Energy Delivery at Shoulder times | C17: GWh | D17: 17.13412266 | E17: 12.29124776 | F17: 7080.182889 | G17: 7526.794168 | H17: 7998.17564 | I17: 8404.687213 | J17: 8884.029315
A18: DOPED0204 | B18: Energy Delivery at Off-peak times | C18: GWh | D18: 1538.310099 | E18: 1431.38001 | F18: 1818.404461 | G18: 1937.248292 | H18: 2062.000345 | I18: 2180.420725 | J18: 2315.685852
A19: DOPED0205 | B19: Controlled load energy deliveries | C19: GWh | D19: 1239.551461 | E19: 1213.134753 | F19: 1184.920806 | G19: 1156.771932 | H19: 1129.560403 | I19: 1097.497769 | J19: 1070.097362
A20: DOPED0206 | B20: Energy Delivery to unmetered supplies | C20: GWh | D20: 225.738822 | E20: 215.312137 | F20: 203.613091 | G20: 188.432398 | H20: 173.697895 | I20: 157.8933 | J20: 143.984359
B21: 3.4.1.2 - Energy - received from TNSP and other DNSPs by time of receipt
A22: DOPED0301 | B22: Energy into DNSP network at On-peak times | C22: GWh | D22: 8465 | E22: 8269 | F22: 8064 | G22: 7877 | H22: 7724 | I22: 7552 | J22: 7469
A23: DOPED0302 | B23: Energy into DNSP network at Shoulder times | C23: GWh | D23: 0 | E23: 0 | F23: 0 | G23: 0 | H23: 0 | I23: 0 | J23: 0
A24: DOPED0303 | B24: Energy into DNSP network at Off-peak times | C24: GWh | D24: 10666 | E24: 10504 | F24: 10328 | G24: 10140 | H24: 9995 | I24: 9772 | J24: 9664
A25: DOPED0304 | B25: Energy received from TNSP and other DNSPs not included in the above categories | C25: GWh | D25: -1.8 | E25: -1.8 | F25: -1.8 | G25: -1.8 | H25: -1.8 | I25: -1.8 | J25: -1.8
B26: 3.4.1.3 - Energy - received into DNSP system from embedded generation by time of receipt
A27: DOPED0401 | B27: Energy into DNSP network at On-peak times from non-residential embedded generation | C27: GWh | D27: 126 | E27: 126 | F27: 126 | G27: 126 | H27: 126 | I27: 126 | J27: 126
A28: DOPED0402 | B28: Energy into DNSP network at Shoulder times from non-residential embedded generation | C28: GWh
A29: DOPED0403 | B29: Energy into DNSP network at Off-peak times from non-residential embedded generation | C29: GWh | D29: 157 | E29: 157 | F29: 157 | G29: 157 | H29: 157 | I29: 157 | J29: 157
A30: DOPED0404 | B30: Energy received from embedded generation not included in above categories from non-residential embedded generation | C30: GWh
A31: DOPED0405 | B31: Energy into DNSP network at On-peak times from residential embedded generation | C31: GWh | D31: 3070 | E31: 3481 | F31: 3889 | G31: 4305 | H31: 4746 | I31: 5184 | J31: 5589
A32: DOPED0406 | B32: Energy into DNSP network at Shoulder times from residential embedded generation | C32: GWh
A33: DOPED0407 | B33: Energy into DNSP network at Off-peak times from residential embedded generation | C33: GWh
A34: DOPED0408 | B34: Energy received from embedded generation not included in above categories from residential embedded generation | C34: GWh
B35: 3.4.1.4 - Energy grouping - customer type or class
A36: DOPED0501 | B36: Residential customers energy deliveries | C36: GWh | D36: 8228.794237 | E36: 8350.352167 | F36: 8365.644241 | G36: 8387.378638 | H36: 8456.881912 | I36: 8558.546406 | J36: 8742.86685
A37: DOPED0502 | B37: Non residential customers not on demand tariffs energy deliveries | C37: GWh | D37: 1004.49161 | E37: 886.4444585 | F37: 695.3086674 | G37: 544.3014249 | H37: 412.8373153 | I37: 292.5206103 | J37: 188.6196975
A38: DOPED0503 | B38: Non-residential low voltage demand tariff customers energy deliveries | C38: GWh | D38: 6308.089457 | E38: 6464.898563 | F38: 6681.915664 | G38: 6861.983012 | H38: 7055.969919 | I38: 7144.94639 | J38: 7280.156904
A39: DOPED0504 | B39: Non-residential high voltage demand tariff customers energy deliveries | C39: GWh | D39: 5532.498583 | E39: 5524.548784 | F39: 5524.548784 | G39: 5524.548784 | H39: 5524.548784 | I39: 5524.548784 | J39: 5524.548784
A40: DOPED0505 | B40: Other Customer Class Energy Deliveries | C40: GWh | D40: 225.738822 | E40: 215.312137 | F40: 203.613091 | G40: 188.432398 | H40: 173.697895 | I40: 157.8933 | J40: 143.984359
B44: 3.4.2 - CUSTOMER NUMBERS (Benchmarking)
D45: FORECAST
C46: Units | D46: 2023-24 | E46: 2024-25 | F46: 2025-26 | G46: 2026-27 | H46: 2027-28 | I46: 2028-29 | J46: 2029-30
B47: 3.4.2.1 - Distribution customer numbers by customer type or class
A48: DOPCN0101 | B48: Residential customer numbers | C48: number | D48: 1458606.361 | E48: 1477831.898 | F48: 1497354.22 | G48: 1518545.681 | H48: 1539456.748 | I48: 1558267.756 | J48: 1576530.906
A49: DOPCN0102 | B49: Non residential customers not on demand tariff customer numbers | C49: number | D49: 90848.578 | E49: 92120.45809 | F49: 93373.29632 | G49: 94512.45054 | H49: 95618.24621 | I49: 96784.78881 | J49: 97936.5278
A50: DOPCN0103 | B50: Low voltage demand tariff customer numbers | C50: number | D50: 40839.0524 | E50: 41410.79913 | F50: 41973.986 | G50: 42486.06863 | H50: 42983.15563 | I50: 43507.55013 | J50: 44025.28998
A51: DOPCN0104 | B51: High voltage demand tariff customer numbers | C51: number | D51: 783.7102 | E51: 794.6821428 | F51: 805.4898199 | G51: 815.3167957 | H51: 824.8560023 | I51: 834.9192455 | J51: 844.8547845
A52: DOPCN0105 | B52: Unmetered Customer Numbers | C52: number | D52: 32600.7232 | E52: 33057.13332 | F52: 33506.71034 | G52: 33915.4922 | H52: 34312.30346 | I52: 34730.91357 | J52: 35144.21144
A53: DOPCN0106 | B53: Other Customer Numbers | C53: number | D53: 0 | E53: 0 | F53: 0 | G53: 0 | H53: 0 | I53: 0 | J53: 0
B54: Total customer numbers | D54: =SUM(D48:D53) -> 1623678.424 | E54: =SUM(E48:E53) -> 1645214.971 | F54: 1667013.702 | G54: 1690275.009 | H54: 1713195.31 | I54: 1734125.928 | J54: 1754481.79
B57: Table 3.4.2.2 Distribution customer numbers by location on the network
A58: DOPCN0201 | B58: =INDEX(dms_FeederName_1,MATCH(dms_TradingName,dms_TradingName_List)) -> CBD | C58: number | D58: 4065.551086 | E58: 4122.468801 | F58: 4178.534377 | G58: 4229.512496 | H58: 4278.997792 | I58: 4331.201565 | J58: 4382.742864
A59: DOPCN0202 | B59: =INDEX(dms_FeederName_2,MATCH(dms_TradingName,dms_TradingName_List)) -> Urban | C59: number | D59: 1051394.163 | E59: 1064918.73 | F59: 1078825.432 | G59: 1094910.843 | H59: 1110865.382 | I59: 1124447.575 | J59: 1137548.265
A60: DOPCN0203 | B60: =INDEX(dms_FeederName_3,MATCH(dms_TradingName,dms_TradingName_List)) -> Short rural | C60: number | D60: 535617.9871 | E60: 543116.6389 | F60: 550503.0252 | G60: 557219.1621 | H60: 563738.6263 | I60: 570616.2376 | J60: 577406.5708
A61: DOPCN0204 | B61: =INDEX(dms_FeederName_4,MATCH(dms_TradingName,dms_TradingName_List)) -> Long rural | C61: number | D61: 0 | E61: 0 | F61: 0 | G61: 0 | H61: 0 | I61: 0 | J61: 0
A62: DOPCN0205 | B62: =IF((INDEX(dms_FeederName_5,MATCH(dms_TradingName,dms_TradingName_List))=0),"",(INDEX(dms_FeederName_5,MATCH(dms_TradingName,dms_TradingName_List)))) ->  | C62: number
B63: Total customer numbers | D63: =SUM(D58:D62) -> 1591077.701 | E63: =SUM(E58:E62) -> 1612157.837 | F63: 1633506.992 | G63: 1656359.517 | H63: 1678883.006 | I63: 1699395.015 | J63: 1719337.579
B66: 3.4.2.4 - Unmetered Supply
A67: DOPCN0301 | B67: Number of unmetered connections reported in customer numbers in the economic benchmarking RIN | D67: =D52 -> 32600.7232 | E67: =E52 -> 33057.13332 | F67: 33506.71034 | G67: 33915.4922 | H67: 34312.30346 | I67: 34730.91357 | J67: 35144.21144
A68: DOPCN0302 | B68: Unmetered connections not reported in customer numbers in the economic benchmarking RIN
A69: DOPCN0303 | B69: Total unmetered connections | D69: =SUM(D67:D68) -> 32600.7232 | E69: =SUM(E67:E68) -> 33057.13332 | F69: 33506.71034 | G69: 33915.4922 | H69: 34312.30346 | I69: 34730.91357 | J69: 35144.21144
B72: 3.4.3 - SYSTEM DEMAND
D73: Standard control services
D74: FORECAST
C75: Units | D75: =CRCP_y4 -> 2023-24 | E75: =CRCP_y5 -> 2024-25 | F75: =FRCP_y1 -> 2025-26 | G75: =FRCP_y2 -> 2026-27 | H75: =FRCP_y3 -> 2027-28 | I75: =FRCP_y4 -> 2028-29 | J75: =FRCP_y5 -> 2029-30
B76: 3.4.3.1 - Annual system maximum demand characteristics at the zone substation level – MW measure
A77: DOPSD0102 | B77: Non–coincident Summated Weather Adjusted System Annual Maximum Demand 10% POE | C77: MW | D77: 5852.80582 | E77: 5860.919611 | F77: 5862.468423 | G77: 5835.672057 | H77: 5841.200068 | I77: 5873.588972 | J77: 5907.238539
A78: DOPSD0103 | B78: Non–coincident Summated Weather Adjusted System Annual Maximum Demand 50% POE | C78: MW | D78: 5493.009896 | E78: 5508.635521 | F78: 5512.170742 | G78: 5489.079884 | H78: 5494.862391 | I78: 5525.131865 | J78: 5556.918912
A79: DOPSD0105 | B79: Coincident Weather Adjusted System Annual Maximum Demand 10% POE | C79: MW | D79: 5414.837187 | E79: 5418.738558 | F79: 5413.751719 | G79: 5386.857785 | H79: 5393.304206 | I79: 5423.984476 | J79: 5455.1144
A80: DOPSD0106 | B80: Coincident Weather Adjusted System Annual Maximum Demand 50% POE | C80: MW | D80: 5076.805924 | E80: 5085.580225 | F80: 5082.707433 | G80: 5059.35722 | H80: 5065.997316 | I80: 5094.669404 | J80: 5123.63952
B81: 3.4.3.2 - Annual system maximum demand characteristics at the transmission connection point – MW measure
A82: DOPSD0108 | B82: Non–coincident Summated Weather Adjusted System Annual Maximum Demand 10% POE | C82: MW | D82: 6019.995163 | E82: 6080.117935 | F82: 6108.684196 | G82: 6125.781521 | H82: 6145.966354 | I82: 6177.312477 | J82: 6210.419376
A83: DOPSD0109 | B83: Non–coincident Summated Weather Adjusted System Annual Maximum Demand 50% POE | C83: MW | D83: 5665.241055 | E83: 5729.510927 | F83: 5760.140627 | G83: 5780.738361 | H83: 5801.329807 | I83: 5830.62232 | J83: 5861.428595
A84: DOPSD0111 | B84: Coincident Weather Adjusted System Annual Maximum Demand 10% POE | C84: MW | D84: 5641.665258 | E84: 5689.216322 | F84: 5720.003376 | G84: 5739.976318 | H84: 5762.823105 | I84: 5793.92367 | J84: 5825.58605
A85: DOPSD0112 | B85: Coincident Weather Adjusted System Annual Maximum Demand 50% POE | C85: MW | D85: 5294.606659 | E85: 5346.49874 | F85: 5379.407719 | G85: 5402.979504 | H85: 5426.02236 | I85: 5455.086442 | J85: 5484.547335
B86: 3.4.3.3 - Annual system maximum demand characteristics at the zone substation level – MVA measure
A87: DOPSD0202 | B87: Non–coincident Summated Weather Adjusted System Annual Maximum Demand 10% POE | C87: MVA | D87: 5888.943527 | E87: 5897.87251 | F87: 5900.225774 | G87: 5873.449954 | H87: 5878.863323 | I87: 5910.232055 | J87: 5943.809879
A88: DOPSD0203 | B88: Non–coincident Summated Weather Adjusted System Annual Maximum Demand 50% POE | C88: MVA | D88: 5527.441517 | E88: 5545.032135 | F88: 5548.965679 | G88: 5525.951703 | H88: 5531.621932 | I88: 5562.049133 | J88: 5592.598359
A89: DOPSD0205 | B89: Coincident Weather Adjusted System Annual Maximum Demand 10% POE | C89: MVA | D89: 5462.948081 | E89: 5467.169755 | F89: 5461.734072 | G89: 5435.096281 | H89: 5442.542821 | I89: 5473.477563 | J89: 5504.908972
A90: DOPSD0206 | B90: Coincident Weather Adjusted System Annual Maximum Demand 50% POE | C90: MVA | D90: 5121.926436 | E90: 5132.122804 | F90: 5129.105447 | G90: 5105.543082 | H90: 5112.112091 | I90: 5141.335383 | J90: 5170.576686
B91: 3.4.3.4 - Annual system maximum demand characteristics at the transmission connection point – MVA measure
A92: DOPSD0208 | B92: Non–coincident Summated Weather Adjusted System Annual Maximum Demand 10% POE | C92: MVA | D92: 6084.461311 | E92: 6145.372335 | F92: 6173.942776 | G92: 6190.70525 | H92: 6211.19969 | I92: 6242.864952 | J92: 6276.271292
A93: DOPSD0209 | B93: Non–coincident Summated Weather Adjusted System Annual Maximum Demand 50% POE | C93: MVA | D93: 5724.945395 | E93: 5790.073794 | F93: 5820.719464 | G93: 5841.033648 | H93: 5861.923648 | I93: 5891.493424 | J93: 5922.559943
A94: DOPSD0211 | B94: Coincident Weather Adjusted System Annual Maximum Demand 10% POE | C94: MVA | D94: 5677.031713 | E94: 5720.743975 | F94: 5748.991516 | G94: 5769.735451 | H94: 5793.622814 | I94: 5824.907562 | J94: 5856.754059
A95: DOPSD0212 | B95: Coincident Weather Adjusted System Annual Maximum Demand 50% POE | C95: MVA | D95: 5326.804123 | E95: 5375.441563 | F95: 5410.684176 | G95: 5435.177048 | H95: 5458.702908 | I95: 5485.426474 | J95: 5515.031477
B96: 3.4.3.5 - Power factor conversion between MVA and MW
A97: DOPSD0301 | B97: Average overall network power factor conversion between MVA and MW | C97: Factor | D97: 0.99 | E97: 0.99 | F97: 0.99 | G97: 0.99 | H97: 0.99 | I97: 0.99 | J97: 0.99
A98: DOPSD0302 | B98: Average power factor conversion for low voltage distribution lines | C98: Factor | D98: 0.96 | E98: 0.96 | F98: 0.96 | G98: 0.96 | H98: 0.96 | I98: 0.96 | J98: 0.96
A99: DOPSD0303 | B99: Average power factor conversion for 3.3 kV lines | C99: Factor | D99: 0 | E99: 0 | F99: 0 | G99: 0 | H99: 0 | I99: 0 | J99: 0
A100: DOPSD0304 | B100: Average power factor conversion for 6.6 kV lines | C100: Factor | D100: 0 | E100: 0 | F100: 0 | G100: 0 | H100: 0 | I100: 0 | J100: 0
A101: DOPSD0305 | B101: Average power factor conversion for 7.6 kV lines | C101: Factor | D101: 0 | E101: 0 | F101: 0 | G101: 0 | H101: 0 | I101: 0 | J101: 0
A102: DOPSD0306 | B102: Average power factor conversion for 11 kV lines | C102: Factor | D102: 0.99 | E102: 0.99 | F102: 0.99 | G102: 0.99 | H102: 0.99 | I102: 0.99 | J102: 0.99
A103: DOPSD0307 | B103: Average power factor conversion for SWER lines | C103: Factor | D103: 1 | E103: 1 | F103: 1 | G103: 1 | H103: 1 | I103: 1 | J103: 1
A104: DOPSD0308 | B104: Average power factor conversion for 22 kV lines | C104: Factor | D104: 0 | E104: 0 | F104: 0 | G104: 0 | H104: 0 | I104: 0 | J104: 0
A105: DOPSD0309 | B105: Average power factor conversion for 33 kV lines | C105: Factor | D105: 0.99 | E105: 0.99 | F105: 0.99 | G105: 0.99 | H105: 0.99 | I105: 0.99 | J105: 0.99
A106: DOPSD0310 | B106: Average power factor conversion for 44 kV lines | C106: Factor | D106: 0 | E106: 0 | F106: 0 | G106: 0 | H106: 0 | I106: 0 | J106: 0
A107: DOPSD0311 | B107: Average power factor conversion for 66 kV lines | C107: Factor | D107: 0 | E107: 0 | F107: 0 | G107: 0 | H107: 0 | I107: 0 | J107: 0
A108: DOPSD0312 | B108: Average power factor conversion for 110 kV lines | C108: Factor | D108: 0.97 | E108: 0.97 | F108: 0.97 | G108: 0.97 | H108: 0.97 | I108: 0.97 | J108: 0.97
A109: DOPSD0313 | B109: Average power factor conversion for 132 kV lines | C109: Factor | D109: 0.99 | E109: 0.99 | F109: 0.99 | G109: 0.99 | H109: 0.99 | I109: 0.99 | J109: 0.99
A110: DOPSD0314 | B110: Average power factor conversion for 220 kV lines | C110: Factor | D110: 0 | E110: 0 | F110: 0 | G110: 0 | H110: 0 | I110: 0 | J110: 0

Sheet 3.5 Physical assets
B1: =INDEX(dms_Worksheet_List,MATCH(dms_Model,dms_Model_List)) -> REGULATORY REPORTING STATEMENT
B2: =INDEX(dms_TradingNameFull_List,MATCH(dms_TradingName,dms_TradingName_List)) -> Energex
B3: =CONCATENATE("REGULATORY PERIOD FROM ", FRCP_y1," TO ",dms_MultiYear_FinalYear_Result) -> REGULATORY PERIOD FROM 2025-26 TO 2029-30
B4: 3.5 PHYSICAL ASSETS DATA
B5: TEMPLATE DATE - OCTOBER 2023 - FINAL RIN
B7: There are THREE tables on this worksheet. Each table has been grouped (and sub-grouped) for ease of navigation. See the Instructions sheet on how to group or ungroup tables.
B9: 3.5.1 - NETWORK CAPACITIES VARIABLES
D10: FORECAST
C11: Units | D11: =CRCP_y4 -> 2023-24 | E11: =CRCP_y5 -> 2024-25 | F11: =FRCP_y1 -> 2025-26 | G11: =FRCP_y2 -> 2026-27 | H11: =FRCP_y3 -> 2027-28 | I11: =FRCP_y4 -> 2028-29 | J11: =FRCP_y5 -> 2029-30
B12: CIRCUIT LENGTH
B13: 3.5.1.1 - Overhead network length of circuit at each voltage
A14: DPA0101 | B14: Overhead low voltage distribution | C14: km | D14: 14153.4 | E14: 14150.4 | F14: 14150.4 | G14: 14147.4 | H14: 14145.4 | I14: 14143.4 | J14: 14143.4
A15: DPA0102 | B15: Overhead 2.2 kV | C15: km
A16: DPA0103 | B16: Overhead 7.6 kV | C16: km
A17: DPA0104 | B17: Overhead 11 kV | C17: km | D17: 17534.204 | E17: 17535.80807 | F17: 17542.41222 | G17: 17548.01676 | H17: 17553.62196 | I17: 17559.22733 | J17: 17564.22733
A18: DPA0105 | B18: Overhead SWER | C18: km | D18: 41 | E18: 41 | F18: 41 | G18: 41 | H18: 41 | I18: 41 | J18: 41
A19: DPA0106 | B19: Overhead 22 kV | C19: km
A20: DPA0107 | B20: Overhead 33 kV | C20: km | D20: 2183 | E20: 2186 | F20: 2188 | G20: 2191 | H20: 2191 | I20: 2191 | J20: 2215.605536
A21: DPA0108 | B21: Overhead 44 kV | C21: km
A22: DPA0109 | B22: Overhead 66 kV | C22: km
A23: DPA0110 | B23: Overhead 132 kV | C23: km | D23: 822 | E23: 822 | F23: 822 | G23: 822 | H23: 822 | I23: 822 | J23: 826
A24: DPA0111 | B24: Overhead 6.6kv | C24: km
A25: DPA0112 | B25: Overhead 110kV | C25: km | D25: 366 | E25: 366 | F25: 366 | G25: 375 | H25: 375 | I25: 375 | J25: 375
A26: DPA0113 | B26: Overhead 220kV | C26: km
A27: DPA0114 | B27: Other | C27: km
A28: DPA01 | B28: Total overhead circuit km | D28: =SUM(D14:D27) -> 35099.604 | E28: 35101.20807 | F28: 35109.81222 | G28: 35124.41676 | H28: 35128.02196 | I28: 35131.62733 | J28: 35165.23287
B29: 3.5.1.2 - Underground network circuit length at each voltage
A30: DPA0201 | B30: Underground low voltage distribution | C30: km | D30: 13784.92089 | E30: 14077.73106 | F30: 14377.50077 | G30: 14687.56966 | H30: 15001.74442 | I30: 15323.30744 | J30: 15648.55146
A31: DPA0202 | B31: Underground 5 kV | C31: km
A32: DPA0203 | B32: Underground 6.6 Kv | C32: km
A33: DPA0204 | B33: Underground 7.6 kV | C33: km
A34: DPA0205 | B34: Underground 11 kV | C34: km | D34: 6838.063556 | E34: 6978.766099 | F34: 7121.208526 | G34: 7266.225749 | H34: 7412.269439 | I34: 7560.160193 | J34: 7708.971199
A35: DPA0206 | B35: Underground SWER | C35: km
A36: DPA0207 | B36: Underground 22 kV | C36: km
A37: DPA0208 | B37: Underground 33 kV | C37: km | D37: 815 | E37: 815 | F37: 815 | G37: 815 | H37: 815 | I37: 819 | J37: 829
A38: DPA0209 | B38: Underground 66 kV | C38: km
A39: DPA0210 | B39: Underground 110 kV | C39: km | D39: 165 | E39: 165 | F39: 165 | G39: 165 | H39: 165 | I39: 170 | J39: 170
A40: DPA0211 | B40: Underground 132 kV | C40: km
A41: DPA0212 | B41: Other | C41: km
A42: DPA02 | B42: Total underground circuit km | D42: =SUM(D30:D41) -> 21602.98444 | E42: 22036.49716 | F42: 22478.70929 | G42: 22933.79541 | H42: 23394.01386 | I42: 23872.46763 | J42: 24356.52266
B44: CIRCUIT CAPACITY MVA
B45: 3.5.1.3 - Estimated overhead network weighted average MVA capacity by voltage class
A46: DPA0301 | B46: Overhead low voltage distribution | C46: MVA | D46: 0.135 | E46: 0.135 | F46: 0.135 | G46: 0.135 | H46: 0.135 | I46: 0.135 | J46: 0.135
A47: DPA0302 | B47: Overhead 6.6 kV | C47: MVA
A48: DPA0303 | B48: Overhead 7.6 kV | C48: MVA
A49: DPA0304 | B49: Overhead 11 kV | C49: MVA | D49: 1.013833333 | E49: 1.024333333 | F49: 1.034833333 | G49: 1.045333333 | H49: 1.055833333 | I49: 1.066333333 | J49: 1.076833333
A50: DPA0305 | B50: Overhead SWER | C50: MVA | D50: 0.09 | E50: 0.09 | F50: 0.09 | G50: 0.09 | H50: 0.09 | I50: 0.09 | J50: 0.09
A51: DPA0306 | B51: Overhead 22 kV | C51: MVA
A52: DPA0307 | B52: Overhead 33 kV | C52: MVA | D52: 24.817 | E52: 24.817 | F52: 24.817 | G52: 24.817 | H52: 24.817 | I52: 24.817 | J52: 24.817
A53: DPA0308 | B53: Overhead 44 kV | C53: MVA
A54: DPA0309 | B54: Overhead 66 kV | C54: MVA
A55: DPA0310 | B55: Overhead 110 kV | C55: MVA | D55: 150.735 | E55: 150.735 | F55: 150.735 | G55: 150.735 | H55: 150.735 | I55: 150.735 | J55: 150.735
A56: DPA0311 | B56: Overhead 132 kV | C56: MVA | D56: 184.206 | E56: 184.206 | F56: 184.206 | G56: 183 | H56: 183 | I56: 183 | J56: 183
A57: DPA0312 | B57: Overhead 220 kV | C57: MVA
A58: DPA0313 | B58: Other | C58: MVA
B59: 3.5.1.4 - Estimated underground network weighted average MVA capacity by voltage class
A60: DPA0401 | B60: Underground low voltage distribution | C60: MVA | D60: 0.15 | E60: 0.15 | F60: 0.15 | G60: 0.15 | H60: 0.15 | I60: 0.15 | J60: 0.15
A61: DPA0402 | B61: Underground 5 kV | C61: MVA
A62: DPA0403 | B62: Underground 6.6 kV | C62: MVA
A63: DPA0404 | B63: Underground 7.6 kV | C63: MVA
A64: DPA0405 | B64: Underground 11 kV | C64: MVA | D64: 2.862 | E64: 2.862 | F64: 2.862 | G64: 2.862 | H64: 2.862 | I64: 2.862 | J64: 2.862
A65: DPA0406 | B65: Underground SWER | C65: MVA
A66: DPA0407 | B66: Underground 12.7 kV | C66: MVA
A67: DPA0408 | B67: Underground 22 kV | C67: MVA
A68: DPA0409 | B68: Underground 33 kV | C68: MVA | D68: 34.812 | E68: 34.812 | F68: 34.812 | G68: 34.812 | H68: 34.812 | I68: 34.812 | J68: 34.812
A69: DPA0410 | B69: Underground 66 kV | C69: MVA
A70: DPA0411 | B70: Underground 110 kV | C70: MVA | D70: 167.288 | E70: 167.288 | F70: 167.288 | G70: 167.288 | H70: 167.288 | I70: 167.288 | J70: 167.288
A71: DPA0412 | B71: Underground 132 kV | C71: MVA | D71: 0 | E71: 0 | F71: 0 | G71: 180 | H71: 180 | I71: 180 | J71: 180
A72: DPA0413 | B72: Other | C72: MVA
B76: 3.5.2 - TRANSFORMER CAPACITIES VARIABLES
D77: VOLUMES
C78: Units | D78: =CRCP_y4 -> 2023-24 | E78: =CRCP_y5 -> 2024-25 | F78: =FRCP_y1 -> 2025-26 | G78: =FRCP_y2 -> 2026-27 | H78: =FRCP_y3 -> 2027-28 | I78: =FRCP_y4 -> 2028-29 | J78: =FRCP_y5 -> 2029-30
B79: Distribution transformer total installed capacity
A80: DPA0501 | B80: Distribution transformer capacity owned by utility | C80: MVA | D80: 16880.4 | E80: 17159 | F80: 17437.6 | G80: 17716.2 | H80: 17994.8 | I80: 18273.4 | J80: 18552
A81: DPA0502 | B81: Distribution transformer capacity owned by High Voltage Customers | C81: MVA | D81: 2456 | E81: 2456 | F81: 2456 | G81: 2456 | H81: 2456 | I81: 2456 | J81: 2456
A82: DPA0503 | B82: Cold spare capacity included in DPA0501 | C82: MVA | D82: 133 | E82: 133 | F82: 133 | G82: 133 | H82: 133 | I82: 133 | J82: 133
B83: Zone substation transformer capacity
A84: DPA0601 | B84: Total installed capacity for first step transformation where there are two steps to reach distribution voltage | C84: MVA | D84: 8324 | E84: 8324 | F84: 8324 | G84: 8324 | H84: 8324 | I84: 8354 | J84: 8369
A85: DPA0602 | B85: Total installed capacity for second step transformation where there are two steps to reach distribution voltage | C85: MVA | D85: 8610 | E85: 8610 | F85: 8610 | G85: 8610 | H85: 8610 | I85: 8640 | J85: 8655
A86: DPA0603 | B86: Total zone substation transformer capacity where there is only a single step transformation to reach distribution voltage | C86: MVA | D86: 3915 | E86: 3967.0094 | F86: 4058.0188 | G86: 4093.0282 | H86: 4128.0376 | I86: 4196.046999 | J86: 4280.056399
A87: DPA0604 | B87: Total zone substation transformer capacity | C87: MVA | D87: 21430 | E87: 21482.0094 | F87: 21573.0188 | G87: 21608.0282 | H87: 21643.0376 | I87: 21771.047 | J87: 21885.0564
A88: DPA0605 | B88: Cold spare capacity of zone substation transformers included in DPA0604 | C88: MVA | D88: 581 | E88: 581 | F88: 581 | G88: 581 | H88: 581 | I88: 581 | J88: 581
B92: 3.5.3 - PUBLIC LIGHTING
D93: VOLUMES
C94: Units | D94: =CRCP_y4 -> 2023-24 | E94: =CRCP_y5 -> 2024-25 | F94: =FRCP_y1 -> 2025-26 | G94: =FRCP_y2 -> 2026-27 | H94: =FRCP_y3 -> 2027-28 | I94: =FRCP_y4 -> 2028-29 | J94: =FRCP_y5 -> 2029-30
A95: DPA0701 | B95: Public lighting luminaires | C95: 0's | D95: 352045 | E95: 355732.4 | F95: 359419.8 | G95: 363107.2 | H95: 366794.6 | I95: 370482 | J95: 374169.4
A96: DPA0702 | B96: Public lighting poles | C96: 0's | D96: 188986.4 | E96: 191853 | F96: 194719.6 | G96: 197586.2 | H96: 200452.8 | I96: 203319.4 | J96: 206186

Sheet 3.6 Quality of service
B1: =INDEX(dms_Worksheet_List,MATCH(dms_Model,dms_Model_List)) -> REGULATORY REPORTING STATEMENT
B2: =INDEX(dms_TradingNameFull_List,MATCH(dms_TradingName,dms_TradingName_List)) -> Energex
B3: =CONCATENATE("REGULATORY PERIOD FROM ", FRCP_y1," TO ",dms_MultiYear_FinalYear_Result) -> REGULATORY PERIOD FROM 2025-26 TO 2029-30
B4: 3.6 QUALITY OF SERVICE DATA
B5: TEMPLATE DATE - OCTOBER 2023 - FINAL RIN
B7: 3.6.2 - ENERGY NOT SUPPLIED
D8: FORECAST
C9: Units | D9: =CRCP_y4 -> 2023-24 | E9: =CRCP_y5 -> 2024-25 | F9: =FRCP_y1 -> 2025-26 | G9: =FRCP_y2 -> 2026-27 | H9: =FRCP_y3 -> 2027-28 | I9: =FRCP_y4 -> 2028-29 | J9: =FRCP_y5 -> 2029-30
A10: DQS0201 | B10: Energy Not Supplied (planned) | C10: GWh | D10: 2.026 | E10: 2.053 | F10: 2.08 | G10: 2.109 | H10: 2.138 | I10: 2.164 | J10: 2.189
A11: DQS0202 | B11: Energy Not Supplied (unplanned) | C11: GWh | D11: 3.613 | E11: 3.661 | F11: 3.709 | G11: 3.761 | H11: 3.812 | I11: 3.859 | J11: 3.904
A12: DQS02 | B12: Total | D12: =SUM(D10:D11) -> 5.639 | E12: 5.714 | F12: 5.789 | G12: 5.87 | H12: 5.95 | I12: 6.023 | J12: 6.093
B14: 3.6.3 - SYSTEM LOSSES
D15: FORECAST
C16: Units | D16: =CRCP_y4 -> 2023-24 | E16: =CRCP_y5 -> 2024-25 | F16: =FRCP_y1 -> 2025-26 | G16: =FRCP_y2 -> 2026-27 | H16: =FRCP_y3 -> 2027-28 | I16: =FRCP_y4 -> 2028-29 | J16: =FRCP_y5 -> 2029-30
A17: DQS03 | B17: System losses | C17: % | D17: =(('3.4 Operational data'!D22+'3.4 Operational data'!D24+'3.4 Operational data'!D25+'3.4 Operational data'!D27+'3.4 Operational data'!D29+'3.4 Operational data'!D31)-SUM('3.4 Operational data'!D15:D20))/('3.4 Operational data'!D22+'3.4 Operational data'!D24+'3.4 Operational data'!D25+'3.4 Operational data'!D27+'3.4 Operational data'!D29+'3.4 Operational data'!D31) -> 0.05260104846 | E17: =(('3.4 Operational data'!E22+'3.4 Operational data'!E24+'3.4 Operational data'!E25+'3.4 Operational data'!E27+'3.4 Operational data'!E29+'3.4 Operational data'!E31)-SUM('3.4 Operational data'!E15:E20))/('3.4 Operational data'!E22+'3.4 Operational data'!E24+'3.4 Operational data'!E25+'3.4 Operational data'!E27+'3.4 Operational data'!E29+'3.4 Operational data'!E31) -> 0.04853047192 | F17: =(('3.4 Operational data'!F22+'3.4 Operational data'!F24+'3.4 Operational data'!F25+'3.4 Operational data'!F27+'3.4 Operational data'!F29+'3.4 Operational data'!F31)-SUM('3.4 Operational data'!F15:F20))/('3.4 Operational data'!F22+'3.4 Operational data'!F24+'3.4 Operational data'!F25+'3.4 Operational data'!F27+'3.4 Operational data'!F29+'3.4 Operational data'!F31) -> 0.04836272848 | G17: =(('3.4 Operational data'!G22+'3.4 Operational data'!G24+'3.4 Operational data'!G25+'3.4 Operational data'!G27+'3.4 Operational data'!G29+'3.4 Operational data'!G31)-SUM('3.4 Operational data'!G15:G20))/('3.4 Operational data'!G22+'3.4 Operational data'!G24+'3.4 Operational data'!G25+'3.4 Operational data'!G27+'3.4 Operational data'!G29+'3.4 Operational data'!G31) -> 0.04851329647 | H17: =(('3.4 Operational data'!H22+'3.4 Operational data'!H24+'3.4 Operational data'!H25+'3.4 Operational data'!H27+'3.4 Operational data'!H29+'3.4 Operational data'!H31)-SUM('3.4 Operational data'!H15:H20))/('3.4 Operational data'!H22+'3.4 Operational data'!H24+'3.4 Operational data'!H25+'3.4 Operational data'!H27+'3.4 Operational data'!H29+'3.4 Operational data'!H31) -> 0.04933853451 | I17: =(('3.4 Operational data'!I22+'3.4 Operational data'!I24+'3.4 Operational data'!I25+'3.4 Operational data'!I27+'3.4 Operational data'!I29+'3.4 Operational data'!I31)-SUM('3.4 Operational data'!I15:I20))/('3.4 Operational data'!I22+'3.4 Operational data'!I24+'3.4 Operational data'!I25+'3.4 Operational data'!I27+'3.4 Operational data'!I29+'3.4 Operational data'!I31) -> 0.04873995181 | J17: =(('3.4 Operational data'!J22+'3.4 Operational data'!J24+'3.4 Operational data'!J25+'3.4 Operational data'!J27+'3.4 Operational data'!J29+'3.4 Operational data'!J31)-SUM('3.4 Operational data'!J15:J20))/('3.4 Operational data'!J22+'3.4 Operational data'!J24+'3.4 Operational data'!J25+'3.4 Operational data'!J27+'3.4 Operational data'!J29+'3.4 Operational data'!J31) -> 0.04882031216
B19: 3.6.4 - CAPACITY UTILISATION
D20: FORECAST
C21: Units | D21: =CRCP_y4 -> 2023-24 | E21: =CRCP_y5 -> 2024-25 | F21: =FRCP_y1 -> 2025-26 | G21: =FRCP_y2 -> 2026-27 | H21: =FRCP_y3 -> 2027-28 | I21: =FRCP_y4 -> 2028-29 | J21: =FRCP_y5 -> 2029-30
A22: DQS04 | B22: Overall utilisation | C22: % | D22: ='3.4 Operational data'!D88/('3.5 Physical assets'!D87-'3.5 Physical assets'!D88) -> 0.2651178242 | E22: ='3.4 Operational data'!E88/('3.5 Physical assets'!E87-'3.5 Physical assets'!E88) -> 0.2652997292 | F22: ='3.4 Operational data'!F88/('3.5 Physical assets'!F87-'3.5 Physical assets'!F88) -> 0.2643369241 | G22: ='3.4 Operational data'!G88/('3.5 Physical assets'!G87-'3.5 Physical assets'!G88) -> 0.2628023157 | H22: ='3.4 Operational data'!H88/('3.5 Physical assets'!H87-'3.5 Physical assets'!H88) -> 0.2626347003 | I22: ='3.4 Operational data'!I88/('3.5 Physical assets'!I87-'3.5 Physical assets'!I88) -> 0.2624840395 | J22: ='3.4 Operational data'!J88/('3.5 Physical assets'!J87-'3.5 Physical assets'!J88) -> 0.2625133099

Sheet 3.7 Operating Environment
B1: =INDEX(dms_Worksheet_List,MATCH(dms_Model,dms_Model_List)) -> REGULATORY REPORTING STATEMENT
B2: =INDEX(dms_TradingNameFull_List,MATCH(dms_TradingName,dms_TradingName_List)) -> Energex
B3: =CONCATENATE("REGULATORY PERIOD FROM ", FRCP_y1," TO ",dms_MultiYear_FinalYear_Result) -> REGULATORY PERIOD FROM 2025-26 TO 2029-30
B4: 3.7 OPERATING ENVIRONMENT FACTORS
B5: TEMPLATE DATE - OCTOBER 2023 - FINAL RIN
B7: There are THREE tables on this worksheet. Each table has been grouped (and sub-grouped) for ease of navigation. See the Instructions sheet on how to group or ungroup tables.
A9: DOEF01 | B9: 3.7.1 - DENSITY FACTORS
D10: FORECAST
C11: Units | D11: =CRCP_y4 -> 2023-24 | E11: =CRCP_y5 -> 2024-25 | F11: =FRCP_y1 -> 2025-26 | G11: =FRCP_y2 -> 2026-27 | H11: =FRCP_y3 -> 2027-28 | I11: =FRCP_y4 -> 2028-29 | J11: =FRCP_y5 -> 2029-30
A12: DOEF0101 | B12: Customer density | C12: Customer / km | D12: 34.40288212
A13: DOEF0102 | B13: Energy density | C13: MWh/customer | D13: 13.11812265
A14: DOEF0103 | B14: Demand density | C14: kVA / customer | D14: 3.440952294
A16: DOEF02 | B16: 3.7.2 - TERRAIN FACTORS
D17: FORECAST
C18: Units | D18: =CRCP_y4 -> 2023-24 | E18: =CRCP_y5 -> 2024-25 | F18: =FRCP_y1 -> 2025-26 | G18: =FRCP_y2 -> 2026-27 | H18: =FRCP_y3 -> 2027-28 | I18: =FRCP_y4 -> 2028-29 | J18: =FRCP_y5 -> 2029-30
A19: DOEF0201 | B19: Rural proportion | C19: % | D19: 0.3718
A20: DOEF0202 | B20: Urban and CBD vegetation maintenance spans | C20: 0's | D20: 87609
A21: DOEF0203 | B21: Rural vegetation maintenance spans | C21: 0's | D21: 41247
A22: DOEF0204 | B22: Total vegetation maintenance spans | C22: 0's | D22: 128853
A23: DOEF0205 | B23: Total number of spans | C23: 0's | D23: 287860.3692
A24: DOEF0206 | B24: Average urban and CBD vegetation maintenance span cycle | C24: Years | D24: 1.38
A25: DOEF0207 | B25: Average rural vegetation maintenance span cycle | C25: Years | D25: 1.77
A26: DOEF0208 | B26: Average number of trees per urban and CBD vegetation maintenance span | C26: Trees | D26: 2.52
A27: DOEF0209 | B27: Average number of trees per rural vegetation maintenance span | C27: Trees | D27: 3.05
A28: DOEF0210 | B28: Average number of defects per urban and CBD vegetation maintenance span | C28: Defects | D28: 2.52
A29: DOEF0211 | B29: Average number of defects per rural vegetation maintenance span | C29: Defects | D29: 3.05
A30: DOEF0212 | B30: Tropical proportion | C30: Spans | D30: 92981
A31: DOEF0213 | B31: Standard vehicle access | C31: km | D31: 5206 | E31: 5211 | F31: 5216 | G31: 5221 | H31: 5226 | I31: 5231 | J31: 5236
A32: DOEF0214 | B32: Bushfire risk | C32: Spans | D32: 11270
A34: DOEF03 | B34: 3.7.3 - SERVICE AREA FACTORS
D35: FORECAST
C36: Units | D36: =CRCP_y4 -> 2023-24 | E36: =CRCP_y5 -> 2024-25 | F36: =FRCP_y1 -> 2025-26 | G36: =FRCP_y2 -> 2026-27 | H36: =FRCP_y3 -> 2027-28 | I36: =FRCP_y4 -> 2028-29 | J36: =FRCP_y5 -> 2029-30
A37: DOEF0301 | B37: Route Line length | C37: km | D37: 47196 | E37: 47509 | F37: 47824 | G37: 48141 | H37: 48460 | I37: 48781 | J37: 49104

Sheet 4.1 Public lighting
B1: =INDEX(dms_Worksheet_List,MATCH(dms_Model,dms_Model_List)) -> REGULATORY REPORTING STATEMENT
B2: =INDEX(dms_TradingNameFull_List,MATCH(dms_TradingName,dms_TradingName_List)) -> Energex
B3: =CONCATENATE("REGULATORY PERIOD FROM ", FRCP_y1," TO ",dms_MultiYear_FinalYear_Result) -> REGULATORY PERIOD FROM 2025-26 TO 2029-30
B4: 4.1 PUBLIC LIGHTING
B5: TEMPLATE DATE - OCTOBER 2023 - FINAL RIN
B7: There are TWO tables on this worksheet. Each table has been grouped (and sub-grouped) for ease of navigation. There are no further instructions.
B9: 4.1.2 - DESCRIPTOR METRICS ANNUALLY
D10: VOLUMES & EXPENDITURE
C11: Units | D11: =CRCP_y4 -> 2023-24 | E11: =CRCP_y5 -> 2024-25 | F11: =FRCP_y1 -> 2025-26 | G11: =FRCP_y2 -> 2026-27 | H11: =FRCP_y3 -> 2027-28 | I11: =FRCP_y4 -> 2028-29 | J11: =FRCP_y5 -> 2029-30
B12: LIGHT INSTALLATION
B13: Number of lights installed | C13: number | D13: 591 | E13: 603 | F13: 615 | G13: 627 | H13: 639 | I13: 652 | J13: 665
B14: Number of poles installed | C14: number | D14: 402 | E14: 412 | F14: 422 | G14: 433 | H14: 444 | I14: 455 | J14: 466
B15: Total expenditure | C15: $ | D15: 4760051.313 | E15: 4893428.595 | F15: 5008562.351 | G15: 5141419.371 | H15: 5271049.756 | I15: 5425198.703 | J15: 5587962.138
B16: LIGHT REPLACEMENT
B17: Number of lights replaced | C17: number | D17: 41228 | E17: 34139 | F17: 48246 | G17: 48246 | H17: 48246 | I17: 48246 | J17: 48246
B18: Number of poles replaced | C18: number | D18: 421 | E18: 432 | F18: 443 | G18: 454 | H18: 465 | I18: 477 | J18: 489
B19: Total expenditure | C19: $ | D19: 17443564.46 | E19: 14479078.2 | F19: 25204067.08 | G19: 25243588.63 | H19: 25277784.86 | I19: 25329674.09 | J19: 25391717.14
B20: LIGHT MAINTENANCE
B21: Number of lights maintained | C21: number | D21: 46534 | E21: 44207 | F21: 41997 | G21: 39897 | H21: 37902 | I21: 36007 | J21: 34207
B22: Number of poles maintained | C22: number | D22: 43136 | E22: 44214 | F22: 45234 | G22: 46277 | H22: 47344 | I22: 48436 | J22: 49553
B23: Total expenditure | C23: $ | D23: 9344116.419 | E23: 9429640.19 | F23: 9189812.328 | G23: 8874389.908 | H23: 8561976.159 | I23: 8279592.526 | J23: 8016555.557
B24: QUALITY OF SUPPLY
B25: Mean days to rectify/replace public lighting assets | C25: number of days | D25: 14 | E25: 14 | F25: 14 | G25: 14 | H25: 14 | I25: 14 | J25: 14
B26: GSO breaches | C26: number | D26: 0 | E26: 0 | F26: 0 | G26: 0 | H26: 0 | I26: 0 | J26: 0
B27: GSL payments | C27: $ | D27: 0 | E27: 0 | F27: 0 | G27: 0 | H27: 0 | I27: 0 | J27: 0
B28: Customer complaints | C28: number | D28: 41 | E28: 41 | F28: 41 | G28: 41 | H28: 41 | I28: 41 | J28: 41
B32: 4.1.3 - COST METRICS
D33: =CONCATENATE("AVERAGE UNIT COST ($, real ",dms_DollarReal, ")") -> AVERAGE UNIT COST ($, real June 2025)
D34: =CRCP_y4 -> 2023-24 | E34: =CRCP_y5 -> 2024-25 | F34: =FRCP_y1 -> 2025-26 | G34: =FRCP_y2 -> 2026-27 | H34: =FRCP_y3 -> 2027-28 | I34: =FRCP_y4 -> 2028-29 | J34: =FRCP_y5 -> 2029-30
B35: LIGHT INSTALLATION
B36: Minor LED | C36: 0 | D36: 4857.394227 | E36: 5324.440138 | F36: 5359.889055 | G36: 5371.466839 | H36: 5403.899912 | I36: 5431.239359 | J36: 5472.61022
B37: Major LED | C37: 0 | D37: 10228.82697 | E37: 11212.42259 | F37: 11272.39971 | G37: 11291.98852 | H37: 11346.86305 | I37: 11393.11951 | J37: 11463.11616
B96: LIGHT REPLACEMENT
B97: LED Major | C97: 0 | D97: 722.3155017 | E97: 722.96441 | F97: 723.2527445 | G97: 723.842595 | H97: 724.352966 | I97: 725.1274013 | J97: 726.0533802
B98: LED Minor | C98: 0 | D98: 298.0898046 | E98: 298.7387129 | F98: 299.0270474 | G98: 299.6168979 | H98: 300.1272689 | I98: 300.9017043 | J98: 301.8276831
B99: Nostalgia LED | C99: 0 | D99: 980.8487264 | E99: 982.9684935 | F99: 983.9103863 | G99: 985.8372312 | H99: 987.5044432 | I99: 990.0342653 | J99: 993.0591296
B157: LIGHT MAINTENANCE
B158: Major Road | C158: 0 | D158: 29.88902456 | E158: 30.16258944 | F158: 29.39545208 | G158: 28.3865104 | H158: 27.38719257 | I158: 26.48393206 | J158: 25.64255572
B159: Minor Road | C159: 0 | D159: 21.65528175 | E159: 21.85348576 | F159: 21.2976772 | G159: 20.56667588 | H159: 19.84264726 | I159: 19.18821437 | J159: 18.57861798

Sheet 5.4 MD & utilisation-Spatial
B1: =INDEX(dms_Worksheet_List,MATCH(dms_Model,dms_Model_List)) -> REGULATORY REPORTING STATEMENT
B2: =INDEX(dms_TradingNameFull_List,MATCH(dms_TradingName,dms_TradingName_List)) -> Energex
B3: =CONCATENATE("REGULATORY PERIOD FROM ", FRCP_y1," TO ",dms_MultiYear_FinalYear_Result) -> REGULATORY PERIOD FROM 2025-26 TO 2029-30
B4: 5.4 MAXIMUM DEMAND AND UTILISATION AT SPATIAL LEVEL
B5: TEMPLATE DATE - OCTOBER 2023 - FINAL RIN
B7: There are two tables on this worksheet. The tables have been sub-grouped for ease of navigation. See the Instructions sheet on how to group or ungroup tables.
B9: 5.4.1 - NON-COINCIDENT & COINCIDENT MAXIMUM DEMAND
B10: SUBTRANSMISSION SUBSTATION
F11: DEMAND
B12: SUBSTATION | C12: FORECASTING ELEMENTS | D12: UNIT | E12: MAX DEMAND | F12: =CRCP_y4 -> 2023-24 | G12: =CRCP_y5 -> 2024-25 | H12: =FRCP_y1 -> 2025-26 | I12: =FRCP_y2 -> 2026-27 | J12: =FRCP_y3 -> 2027-28 | K12: =FRCP_y4 -> 2028-29 | L12: =FRCP_y5 -> 2029-30
B13: Abermain BS | C13: Substation Rating | D13: MVA | E13: Non-Coincident | F13: 264 | G13: 264 | H13: 264 | I13: 264 | J13: 264 | K13: 264 | L13: 264
E14: Coincident | F14: 264 | G14: 264 | H14: 264 | I14: 264 | J14: 264 | K14: 264 | L14: 264
C15: Raw Adjusted MD | D15: MW | E15: Non-Coincident
E16: Coincident
C17: Raw Adjusted MD | D17: MVA | E17: Non-Coincident
E18: Coincident
C19: Date MD occurred | E19: Non-Coincident
E20: Coincident
C21: Half hour time period MD occurred | E21: Non-Coincident
E22: Coincident
C23: Winter/Summer Peaking | E23: Non-Coincident | F23: Summer | G23: Summer | H23: Summer | I23: Summer | J23: Summer | K23: Summer | L23: Summer
E24: Coincident | F24: Summer | G24: Summer | H24: Summer | I24: Summer | J24: Summer | K24: Summer | L24: Summer
C25: Adjustments - Embedded generation | D25: MW | E25: Non-Coincident | F25: 0 | G25: 0 | H25: 0 | I25: 0 | J25: 0 | K25: 0 | L25: 0
E26: Coincident | F26: 0 | G26: 0 | H26: 0 | I26: 0 | J26: 0 | K26: 0 | L26: 0
C27: Weather Corrected 10% POE | D27: MW | E27: Non-Coincident | F27: 110.18 | G27: 109.8 | H27: 109.93 | I27: 109.63 | J27: 110.15 | K27: 111.23 | L27: 112.2
E28: Coincident | F28: 110.14 | G28: 109.75 | H28: 109.9 | I28: 109.6 | J28: 110.14 | K28: 111.23 | L28: 112.2
C29: Weather Corrected MD 10% POE | D29: MVA | E29: Non-Coincident | F29: 112.57 | G29: 112.19 | H29: 112.32 | I29: 112.01 | J29: 112.55 | K29: 113.65 | L29: 114.64
E30: Coincident | F30: 110.34 | G30: 109.77 | H30: 109.91 | I30: 109.61 | J30: 110.16 | K30: 111.25 | L30: 112.22
C31: Weather Corrected MD 50% POE | D31: MW | E31: Non-Coincident | F31: 101.3 | G31: 100.82 | H31: 100.97 | I31: 100.72 | J31: 101.24 | K31: 102.25 | L31: 103.15
E32: Coincident | F32: 101.3 | G32: 100.82 | H32: 100.97 | I32: 100.72 | J32: 101.24 | K32: 102.25 | L32: 103.15
C33: Weather Corrected MD 50% POE | D33: MVA | E33: Non-Coincident | F33: 103.5 | G33: 103.01 | H33: 103.17 | I33: 102.91 | J33: 103.44 | K33: 104.47 | L33: 105.39
E34: Coincident | F34: 101.4 | G34: 103.49 | H34: 103.65 | I34: 103.41 | J34: 103.94 | K34: 104.98 | L34: 105.9
B35: Algester BS | C35: Substation Rating | D35: MVA | E35: Non-Coincident | F35: 202 | G35: 202 | H35: 202 | I35: 202 | J35: 202 | K35: 202 | L35: 202
E36: Coincident | F36: 202 | G36: 202 | H36: 202 | I36: 202 | J36: 202 | K36: 202 | L36: 202
C37: Raw Adjusted MD | D37: MW | E37: Non-Coincident
E38: Coincident
C39: Raw Adjusted MD | D39: MVA | E39: Non-Coincident
E40: Coincident
C41: Date MD occurred | E41: Non-Coincident
E42: Coincident
C43: Half hour time period MD occurred | E43: Non-Coincident
E44: Coincident
C45: Winter/Summer Peaking | E45: Non-Coincident | F45: Summer | G45: Summer | H45: Summer | I45: Summer | J45: Summer | K45: Summer | L45: Summer
E46: Coincident | F46: Summer | G46: Summer | H46: Summer | I46: Summer | J46: Summer | K46: Summer | L46: Summer
C47: Adjustments - Embedded generation | D47: MW | E47: Non-Coincident | F47: 0 | G47: 0 | H47: 0 | I47: 0 | J47: 0 | K47: 0 | L47: 0
E48: Coincident | F48: 0 | G48: 0 | H48: 0 | I48: 0 | J48: 0 | K48: 0 | L48: 0
C49: Weather Corrected 10% POE | D49: MW | E49: Non-Coincident | F49: 77.22 | G49: 76.14 | H49: 75.66 | I49: 74.9 | J49: 74.98 | K49: 75.56 | L49: 76.2
E50: Coincident | F50: 76.89 | G50: 75.81 | H50: 75.34 | I50: 74.58 | J50: 74.66 | K50: 75.24 | L50: 75.88
C51: Weather Corrected MD 10% POE | D51: MVA | E51: Non-Coincident | F51: 78.71 | G51: 77.61 | H51: 77.12 | I51: 76.35 | J51: 76.43 | K51: 77.03 | L51: 77.68
E52: Coincident | F52: 78.3 | G52: 77.21 | H52: 76.72 | I52: 75.95 | J52: 76.03 | K52: 76.61 | L52: 77.25
C53: Weather Corrected MD 50% POE | D53: MW | E53: Non-Coincident | F53: 73.05 | G53: 72.03 | H53: 71.58 | I53: 70.86 | J53: 70.92 | K53: 71.47 | L53: 72.06
E54: Coincident | F54: 72.74 | G54: 71.73 | H54: 71.28 | I54: 70.56 | J54: 70.63 | K54: 71.17 | L54: 71.76
C55: Weather Corrected MD 50% POE | D55: MVA | E55: Non-Coincident | F55: 74.46 | G55: 73.43 | H55: 72.97 | I55: 72.23 | J55: 72.3 | K55: 72.85 | L55: 73.46
E56: Coincident | F56: 74.09 | G56: 73.06 | H56: 72.6 | I56: 71.86 | J56: 71.93 | K56: 72.47 | L56: 73.07
B57: Archerfield BS | C57: Substation Rating | D57: MVA | E57: Non-Coincident | F57: 176 | G57: 176 | H57: 176 | I57: 176 | J57: 176 | K57: 176 | L57: 176
E58: Coincident | F58: 176 | G58: 176 | H58: 176 | I58: 176 | J58: 176 | K58: 176 | L58: 176
C59: Raw Adjusted MD | D59: MW | E59: Non-Coincident
E60: Coincident
C61: Raw Adjusted MD | D61: MVA | E61: Non-Coincident
E62: Coincident
C63: Date MD occurred | E63: Non-Coincident
E64: Coincident
C65: Half hour time period MD occurred | E65: Non-Coincident
E66: Coincident
C67: Winter/Summer Peaking | E67: Non-Coincident | F67: Summer | G67: Summer | H67: Summer | I67: Summer | J67: Summer | K67: Summer | L67: Summer
E68: Coincident | F68: Summer | G68: Summer | H68: Summer | I68: Summer | J68: Summer | K68: Summer | L68: Summer
C69: Adjustments - Embedded generation | D69: MW | E69: Non-Coincident | F69: 0 | G69: 0 | H69: 0 | I69: 0 | J69: 0 | K69: 0 | L69: 0
E70: Coincident | F70: 0 | G70: 0 | H70: 0 | I70: 0 | J70: 0 | K70: 0 | L70: 0
C71: Weather Corrected 10% POE | D71: MW | E71: Non-Coincident | F71: 63.99 | G71: 63.1 | H71: 62.14 | I71: 60.92 | J71: 60.5 | K71: 60.38 | L71: 60.44
E72: Coincident | F72: 47.11 | G72: 46.71 | H72: 46.08 | I72: 45.28 | J72: 45.05 | K72: 45.06 | L72: 45.18
C73: Weather Corrected MD 10% POE | D73: MVA | E73: Non-Coincident | F73: 67.38 | G73: 66.44 | H73: 65.43 | I73: 64.15 | J73: 63.71 | K73: 63.59 | L73: 63.65
E74: Coincident | F74: 48.11 | G74: 47.73 | H74: 47.08 | I74: 46.26 | J74: 46.03 | K74: 46.03 | L74: 46.15
C75: Weather Corrected MD 50% POE | D75: MW | E75: Non-Coincident | F75: 60.88 | G75: 60.07 | H75: 59.15 | I75: 57.99 | J75: 57.59 | K75: 57.47 | L75: 57.52
E76: Coincident | F76: 44.71 | G76: 44.37 | H76: 43.77 | I76: 43 | J76: 42.79 | K76: 42.79 | L76: 42.9
C77: Weather Corrected MD 50% POE | D77: MVA | E77: Non-Coincident | F77: 64.11 | G77: 63.25 | H77: 62.29 | I77: 61.07 | J77: 60.64 | K77: 60.52 | L77: 60.57
E78: Coincident | F78: 45.67 | G78: 45.34 | H78: 44.73 | I78: 43.94 | J78: 43.72 | K78: 43.72 | L78: 43.83
B79: Ashgrove West BS | C79: Substation Rating | D79: MVA | E79: Non-Coincident | F79: 168 | G79: 168 | H79: 168 | I79: 168 | J79: 168 | K79: 168 | L79: 168
E80: Coincident | F80: 168 | G80: 168 | H80: 168 | I80: 168 | J80: 168 | K80: 168 | L80: 168
C81: Raw Adjusted MD | D81: MW | E81: Non-Coincident
E82: Coincident
C83: Raw Adjusted MD | D83: MVA | E83: Non-Coincident
E84: Coincident
C85: Date MD occurred | E85: Non-Coincident
E86: Coincident
C87: Half hour time period MD occurred | E87: Non-Coincident
E88: Coincident
C89: Winter/Summer Peaking | E89: Non-Coincident | F89: Summer | G89: Summer | H89: Summer | I89: Summer | J89: Summer | K89: Summer | L89: Summer
E90: Coincident | F90: Summer | G90: Summer | H90: Summer | I90: Summer | J90: Summer | K90: Summer | L90: Summer
C91: Adjustments - Embedded generation | D91: MW | E91: Non-Coincident | F91: 0 | G91: 0 | H91: 0 | I91: 0 | J91: 0 | K91: 0 | L91: 0
E92: Coincident | F92: 0 | G92: 0 | H92: 0 | I92: 0 | J92: 0 | K92: 0 | L92: 0
C93: Weather Corrected 10% POE | D93: MW | E93: Non-Coincident | F93: 83.32 | G93: 81.82 | H93: 84.37 | I93: 83.42 | J93: 83.36 | K93: 83.98 | L93: 84.88
E94: Coincident | F94: 76.62 | G94: 75.12 | H94: 77.77 | I94: 76.82 | J94: 76.75 | K94: 77.38 | L94: 78.27
C95: Weather Corrected MD 10% POE | D95: MVA | E95: Non-Coincident | F95: 83.76 | G95: 82.25 | H95: 84.81 | I95: 83.86 | J95: 83.79 | K95: 84.43 | L95: 85.32
E96: Coincident | F96: 76.95 | G96: 75.44 | H96: 77.81 | I96: 76.87 | J96: 76.8 | K96: 77.43 | L96: 78.32
C97: Weather Corrected MD 50% POE | D97: MW | E97: Non-Coincident | F97: 77.99 | G97: 76.6 | H97: 79.21 | I97: 78.32 | J97: 78.26 | K97: 78.85 | L97: 79.68
E98: Coincident | F98: 71.36 | G98: 69.97 | H98: 72.68 | I98: 71.8 | J98: 71.74 | K98: 72.32 | L98: 73.15
C99: Weather Corrected MD 50% POE | D99: MVA | E99: Non-Coincident | F99: 78.4 | G99: 77 | H99: 79.62 | I99: 78.74 | J99: 78.67 | K99: 79.26 | L99: 80.1
E100: Coincident | F100: 71.67 | G100: 70.27 | H100: 72.72 | I100: 71.83 | J100: 71.77 | K100: 72.36 | L100: 73.19
B101: Beaudesert BS | C101: Substation Rating | D101: MVA | E101: Non-Coincident | F101: 145 | G101: 145 | H101: 145 | I101: 145 | J101: 145 | K101: 145 | L101: 145
E102: Coincident | F102: 145 | G102: 145 | H102: 145 | I102: 145 | J102: 145 | K102: 145 | L102: 145
C103: Raw Adjusted MD | D103: MW | E103: Non-Coincident
E104: Coincident
C105: Raw Adjusted MD | D105: MVA | E105: Non-Coincident
E106: Coincident
C107: Date MD occurred | E107: Non-Coincident
E108: Coincident
C109: Half hour time period MD occurred | E109: Non-Coincident
E110: Coincident
C111: Winter/Summer Peaking | E111: Non-Coincident | F111: Summer | G111: Summer | H111: Summer | I111: Summer | J111: Summer | K111: Summer | L111: Summer
E112: Coincident | F112: Summer | G112: Summer | H112: Summer | I112: Summer | J112: Summer | K112: Summer | L112: Summer
C113: Adjustments - Embedded generation | D113: MW | E113: Non-Coincident | F113: 0 | G113: 0 | H113: 0 | I113: 0 | J113: 0 | K113: 0 | L113: 0
E114: Coincident | F114: 0 | G114: 0 | H114: 0 | I114: 0 | J114: 0 | K114: 0 | L114: 0
C115: Weather Corrected 10% POE | D115: MW | E115: Non-Coincident | F115: 39.6 | G115: 39.59 | H115: 39.86 | I115: 39.87 | J115: 40.24 | K115: 40.81 | L115: 41.33
E116: Coincident | F116: 37.48 | G116: 37.48 | H116: 37.74 | I116: 37.75 | J116: 38.1 | K116: 38.64 | L116: 39.14
C117: Weather Corrected MD 10% POE | D117: MVA | E117: Non-Coincident | F117: 41.06 | G117: 41.05 | H117: 41.33 | I117: 41.34 | J117: 41.72 | K117: 42.32 | L117: 42.86
E118: Coincident | F118: 38.49 | G118: 38.49 | H118: 38.76 | I118: 38.77 | J118: 39.13 | K118: 39.69 | L118: 40.2
C119: Weather Corrected MD 50% POE | D119: MW | E119: Non-Coincident | F119: 37.63 | G119: 37.62 | H119: 37.88 | I119: 37.89 | J119: 38.24 | K119: 38.79 | L119: 39.28
E120: Coincident | F120: 35.61 | G120: 35.61 | H120: 35.86 | I120: 35.87 | J120: 36.2 | K120: 36.72 | L120: 37.19
C121: Weather Corrected MD 50% POE | D121: MVA | E121: Non-Coincident | F121: 39.02 | G121: 39.01 | H121: 39.28 | I121: 39.29 | J121: 39.65 | K121: 40.22 | L121: 40.73
E122: Coincident | F122: 36.78 | G122: 36.78 | H122: 37.03 | I122: 37.04 | J122: 37.39 | K122: 37.71 | L122: 38.19
B123: Beenleigh BS | C123: Substation Rating | D123: MVA | E123: Non-Coincident | F123: 260 | G123: 260 | H123: 260 | I123: 260 | J123: 260 | K123: 260 | L123: 260
E124: Coincident | F124: 260 | G124: 260 | H124: 260 | I124: 260 | J124: 260 | K124: 260 | L124: 260
C125: Raw Adjusted MD | D125: MW | E125: Non-Coincident
E126: Coincident
C127: Raw Adjusted MD | D127: MVA | E127: Non-Coincident
E128: Coincident
C129: Date MD occurred | E129: Non-Coincident
E130: Coincident
C131: Half hour time period MD occurred | E131: Non-Coincident
E132: Coincident
C133: Winter/Summer Peaking | E133: Non-Coincident | F133: Summer | G133: Summer | H133: Summer | I133: Summer | J133: Summer | K133: Summer | L133: Summer
E134: Coincident | F134: Summer | G134: Summer | H134: Summer | I134: Summer | J134: Summer | K134: Summer | L134: Summer
C135: Adjustments - Embedded generation | D135: MW | E135: Non-Coincident | F135: 0 | G135: 0 | H135: 0 | I135: 0 | J135: 0 | K135: 0 | L135: 0
E136: Coincident | F136: 0 | G136: 0 | H136: 0 | I136: 0 | J136: 0 | K136: 0 | L136: 0
C137: Weather Corrected 10% POE | D137: MW | E137: Non-Coincident | F137: 137.86 | G137: 162.41 | H137: 161.07 | I137: 159.31 | J137: 158.83 | K137: 159.15 | L137: 159.34
E138: Coincident | F138: 136.74 | G138: 158.46 | H138: 157.13 | I138: 155.39 | J138: 154.92 | K138: 155.25 | L138: 155.44
C139: Weather Corrected MD 10% POE | D139: MVA | E139: Non-Coincident | F139: 139.11 | G139: 162.42 | H139: 161.07 | I139: 159.32 | J139: 158.84 | K139: 159.16 | L139: 159.35
E140: Coincident | F140: 137.37 | G140: 158.46 | H140: 157.13 | I140: 155.4 | J140: 154.92 | K140: 155.25 | L140: 155.45
C141: Weather Corrected MD 50% POE | D141: MW | E141: Non-Coincident | F141: 127.2 | G141: 151.81 | H141: 150.57 | I141: 148.96 | J141: 148.52 | K141: 148.81 | L141: 148.99
E142: Coincident | F142: 125.98 | G142: 147.89 | H142: 146.68 | I142: 145.08 | J142: 144.65 | K142: 144.95 | L142: 145.13
C143: Weather Corrected MD 50% POE | D143: MVA | E143: Non-Coincident | F143: 128.35 | G143: 151.81 | H143: 150.57 | I143: 148.96 | J143: 148.52 | K143: 148.81 | L143: 148.99
E144: Coincident | F144: 126.58 | G144: 147.89 | H144: 146.68 | I144: 146.44 | J144: 146 | K144: 146.3 | L144: 146.48
B145: Beerwah BS | C145: Substation Rating | D145: MVA | E145: Non-Coincident | F145: 144 | G145: 144 | H145: 144 | I145: 144 | J145: 144 | K145: 144 | L145: 144
E146: Coincident | F146: 144 | G146: 144 | H146: 144 | I146: 144 | J146: 144 | K146: 144 | L146: 144
C147: Raw Adjusted MD | D147: MW | E147: Non-Coincident
E148: Coincident
C149: Raw Adjusted MD | D149: MVA | E149: Non-Coincident
E150: Coincident
C151: Date MD occurred | E151: Non-Coincident
E152: Coincident
C153: Half hour time period MD occurred | E153: Non-Coincident
E154: Coincident
C155: Winter/Summer Peaking | E155: Non-Coincident | F155: Summer | G155: Summer | H155: Summer | I155: Summer | J155: Summer | K155: Summer | L155: Summer
E156: Coincident | F156: Summer | G156: Summer | H156: Summer | I156: Summer | J156: Summer | K156: Summer | L156: Summer
C157: Adjustments - Embedded generation | D157: MW | E157: Non-Coincident | F157: 0 | G157: 0 | H157: 0 | I157: 0 | J157: 0 | K157: 0 | L157: 0
E158: Coincident | F158: 0 | G158: 0 | H158: 0 | I158: 0 | J158: 0 | K158: 0 | L158: 0
C159: Weather Corrected 10% POE | D159: MW | E159: Non-Coincident | F159: 59.99 | G159: 59.32 | H159: 59.05 | I159: 58.36 | J159: 58.21 | K159: 58.38 | L159: 58.47
E160: Coincident | F160: 55.06 | G160: 54.45 | H160: 54.2 | I160: 53.58 | J160: 53.44 | K160: 53.61 | L160: 53.69
C161: Weather Corrected MD 10% POE | D161: MVA | E161: Non-Coincident | F161: 61.11 | G161: 60.42 | H161: 60.15 | I161: 59.44 | J161: 59.3 | K161: 59.47 | L161: 59.56
E162: Coincident | F162: 55.94 | G162: 55.31 | H162: 55.07 | I162: 54.43 | J162: 54.29 | K162: 54.45 | L162: 54.54
C163: Weather Corrected MD 50% POE | D163: MW | E163: Non-Coincident | F163: 55.61 | G163: 54.98 | H163: 54.73 | I163: 54.09 | J163: 53.96 | K163: 54.12 | L163: 54.2
E164: Coincident | F164: 51.06 | G164: 50.5 | H164: 50.27 | I164: 49.69 | J164: 49.57 | K164: 49.72 | L164: 49.8
C165: Weather Corrected MD 50% POE | D165: MVA | E165: Non-Coincident | F165: 56.64 | G165: 56 | H165: 55.75 | I165: 55.1 | J165: 54.96 | K165: 55.13 | L165: 55.21
E166: Coincident | F166: 51.86 | G166: 51.29 | H166: 51.06 | I166: 50.46 | J166: 50.34 | K166: 50.49 | L166: 50.57
B167: Belmont BS | C167: Substation Rating | D167: MVA | E167: Non-Coincident | F167: 299 | G167: 299 | H167: 299 | I167: 299 | J167: 299 | K167: 299 | L167: 299
E168: Coincident | F168: 299 | G168: 299 | H168: 299 | I168: 299 | J168: 299 | K168: 299 | L168: 299
C169: Raw Adjusted MD | D169: MW | E169: Non-Coincident
E170: Coincident
C171: Raw Adjusted MD | D171: MVA | E171: Non-Coincident
E172: Coincident
C173: Date MD occurred | E173: Non-Coincident
E174: Coincident
C175: Half hour time period MD occurred | E175: Non-Coincident
E176: Coincident
C177: Winter/Summer Peaking | E177: Non-Coincident | F177: Summer | G177: Summer | H177: Summer | I177: Summer | J177: Summer | K177: Summer | L177: Summer
E178: Coincident | F178: Summer | G178: Summer | H178: Summer | I178: Summer | J178: Summer | K178: Summer | L178: Summer
C179: Adjustments - Embedded generation | D179: MW | E179: Non-Coincident | F179: 0 | G179: 0 | H179: 0 | I179: 0 | J179: 0 | K179: 0 | L179: 0
E180: Coincident | F180: 0 | G180: 0 | H180: 0 | I180: 0 | J180: 0 | K180: 0 | L180: 0
C181: Weather Corrected 10% POE | D181: MW | E181: Non-Coincident | F181: 142.83 | G181: 140.1 | H181: 138.56 | I181: 137.62 | J181: 138.11 | K181: 138.58 | L181: 139.07
E182: Coincident | F182: 141.2 | G182: 138.5 | H182: 136.98 | I182: 136.32 | J182: 137.06 | K182: 137.53 | L182: 138.03
C183: Weather Corrected MD 10% POE | D183: MVA | E183: Non-Coincident | F183: 142.86 | G183: 140.13 | H183: 138.58 | I183: 137.64 | J183: 138.13 | K183: 138.6 | L183: 139.09
E184: Coincident | F184: 141.24 | G184: 138.54 | H184: 137.01 | I184: 136.35 | J184: 137.11 | K184: 137.58 | L184: 138.08
C185: Weather Corrected MD 50% POE | D185: MW | E185: Non-Coincident | F185: 133.55 | G185: 131.02 | H185: 129.6 | I185: 128.8 | J185: 129.32 | K185: 129.77 | L185: 130.24
E186: Coincident | F186: 132.05 | G186: 129.55 | H186: 128.15 | I186: 127.61 | J186: 128.39 | K186: 128.85 | L186: 129.32
C187: Weather Corrected MD 50% POE | D187: MVA | E187: Non-Coincident | F187: 133.56 | G187: 131.03 | H187: 129.6 | I187: 128.8 | J187: 129.33 | K187: 129.78 | L187: 130.24
E188: Coincident | F188: 132.07 | G188: 129.56 | H188: 128.15 | I188: 127.62 | J188: 128.41 | K188: 128.87 | L188: 129.34
B189: Brendale BS | C189: Substation Rating | D189: MVA | E189: Non-Coincident | F189: 273 | G189: 273 | H189: 273 | I189: 273 | J189: 273 | K189: 273 | L189: 273
E190: Coincident | F190: 273 | G190: 273 | H190: 273 | I190: 273 | J190: 273 | K190: 273 | L190: 273
C191: Raw Adjusted MD | D191: MW | E191: Non-Coincident
E192: Coincident
C193: Raw Adjusted MD | D193: MVA | E193: Non-Coincident
E194: Coincident
C195: Date MD occurred | E195: Non-Coincident
E196: Coincident
C197: Half hour time period MD occurred | E197: Non-Coincident
E198: Coincident
C199: Winter/Summer Peaking | E199: Non-Coincident | F199: Summer | G199: Summer | H199: Summer | I199: Summer | J199: Summer | K199: Summer | L199: Summer
E200: Coincident | F200: Summer | G200: Summer | H200: Summer | I200: Summer | J200: Summer | K200: Summer | L200: Summer
C201: Adjustments - Embedded generation | D201: MW | E201: Non-Coincident | F201: 0 | G201: 0 | H201: 0 | I201: 0 | J201: 0 | K201: 0 | L201: 0
E202: Coincident | F202: 0 | G202: 0 | H202: 0 | I202: 0 | J202: 0 | K202: 0 | L202: 0
... 11371 more rows

Sheet 6.2 Reliability & Cust serv
B1: =INDEX(dms_Worksheet_List,MATCH(dms_Model,dms_Model_List)) -> REGULATORY REPORTING STATEMENT
B2: =INDEX(dms_TradingNameFull_List,MATCH(dms_TradingName,dms_TradingName_List)) -> Energex
B3: =CONCATENATE("REGULATORY PERIOD FROM ", FRCP_y1," TO ",dms_MultiYear_FinalYear_Result) -> REGULATORY PERIOD FROM 2025-26 TO 2029-30
B4: 6.2 RELIABILITY AND CUSTOMER SERVICE PERFORMANCE
B5: TEMPLATE DATE - OCTOBER 2023 - FINAL RIN
B7: There are FIVE tables on this worksheet. Each table has been grouped for ease of navigation. There are no further instructions.
B9: 6.2.1 - UNPLANNED MINUTES OFF SUPPLY (SAIDI)
E10: Proposed target
B11: SAIDI | E11: =FRCP_y1 -> 2025-26 | F11: =FRCP_y2 -> 2026-27 | G11: =FRCP_y3 -> 2027-28 | H11: =FRCP_y4 -> 2028-29 | I11: =FRCP_y5 -> 2029-30
B12: Total sustained minutes off supply after removing excluded events
B13: =INDEX(dms_FeederName_1,MATCH(dms_TradingName,dms_TradingName_List)) -> CBD | E13: 4.4356 | F13: 4.4356 | G13: 4.4356 | H13: 4.4356 | I13: 4.4356
B14: =INDEX(dms_FeederName_2,MATCH(dms_TradingName,dms_TradingName_List)) -> Urban | E14: 54.0352 | F14: 54.0352 | G14: 54.0352 | H14: 54.0352 | I14: 54.0352
B15: =INDEX(dms_FeederName_3,MATCH(dms_TradingName,dms_TradingName_List)) -> Short rural | E15: 132.385 | F15: 132.385 | G15: 132.385 | H15: 132.385 | I15: 132.385
B16: =INDEX(dms_FeederName_4,MATCH(dms_TradingName,dms_TradingName_List)) -> Long rural
B17: =IF(ISBLANK(INDEX(dms_FeederName_5,MATCH(dms_TradingName,dms_TradingName_List))),"",INDEX(dms_FeederName_5,MATCH(dms_TradingName,dms_TradingName_List))) -> 
B18: Total | E18: =SUM(E13:E17) -> 190.8558 | F18: =SUM(F13:F17) -> 190.8558 | G18: =SUM(G13:G17) -> 190.8558 | H18: =SUM(H13:H17) -> 190.8558 | I18: =SUM(I13:I17) -> 190.8558
B21: 6.2.2 - UNPLANNED INTERRUPTIONS TO SUPPLY (SAIFI)
E22: Proposed target
B23: SAIFI | E23: =FRCP_y1 -> 2025-26 | F23: =FRCP_y2 -> 2026-27 | G23: =FRCP_y3 -> 2027-28 | H23: =FRCP_y4 -> 2028-29 | I23: =FRCP_y5 -> 2029-30
B24: Total sustained interruptions after removing excluded events
B25: =INDEX(dms_FeederName_1,MATCH(dms_TradingName,dms_TradingName_List)) -> CBD | E25: 0.0522 | F25: 0.0522 | G25: 0.0522 | H25: 0.0522 | I25: 0.0522
B26: =INDEX(dms_FeederName_2,MATCH(dms_TradingName,dms_TradingName_List)) -> Urban | E26: 0.5651 | F26: 0.5651 | G26: 0.5651 | H26: 0.5651 | I26: 0.5651
B27: =INDEX(dms_FeederName_3,MATCH(dms_TradingName,dms_TradingName_List)) -> Short rural | E27: 1.1786 | F27: 1.1786 | G27: 1.1786 | H27: 1.1786 | I27: 1.1786
B28: =INDEX(dms_FeederName_4,MATCH(dms_TradingName,dms_TradingName_List)) -> Long rural
B29: =IF(ISBLANK(INDEX(dms_FeederName_5,MATCH(dms_TradingName,dms_TradingName_List))),"",INDEX(dms_FeederName_5,MATCH(dms_TradingName,dms_TradingName_List))) -> 
B30: Total | E30: =SUM(E25:E29) -> 1.7959 | F30: =SUM(F25:F29) -> 1.7959 | G30: =SUM(G25:G29) -> 1.7959 | H30: =SUM(H25:H29) -> 1.7959 | I30: =SUM(I25:I29) -> 1.7959
B33: 6.2.3 - UNPLANNED MOMENTARY INTERRUPTIONS TO SUPPLY (MAIFI)
E34: Proposed target
B35: MAIFI | E35: =FRCP_y1 -> 2025-26 | F35: =FRCP_y2 -> 2026-27 | G35: =FRCP_y3 -> 2027-28 | H35: =FRCP_y4 -> 2028-29 | I35: =FRCP_y5 -> 2029-30
B36: Total momentary interruptions after removing excluded events
B37: =INDEX(dms_FeederName_1,MATCH(dms_TradingName,dms_TradingName_List)) -> CBD
B38: =INDEX(dms_FeederName_2,MATCH(dms_TradingName,dms_TradingName_List)) -> Urban
B39: =INDEX(dms_FeederName_3,MATCH(dms_TradingName,dms_TradingName_List)) -> Short rural
B40: =INDEX(dms_FeederName_4,MATCH(dms_TradingName,dms_TradingName_List)) -> Long rural
B41: =IF(ISBLANK(INDEX(dms_FeederName_5,MATCH(dms_TradingName,dms_TradingName_List))),"",INDEX(dms_FeederName_5,MATCH(dms_TradingName,dms_TradingName_List))) -> 
B42: Total | E42: =SUM(E37:E41) -> 0 | F42: =SUM(F37:F41) -> 0 | G42: =SUM(G37:G41) -> 0 | H42: =SUM(H37:H41) -> 0 | I42: =SUM(I37:I41) -> 0
B45: 6.2.3(B) - UNPLANNED MOMENTARY INTERRUPTIONS TO SUPPLY (MAIFIe)
E46: Proposed target
B47: MAIFIe | E47: =FRCP_y1 -> 2025-26 | F47: =FRCP_y2 -> 2026-27 | G47: =FRCP_y3 -> 2027-28 | H47: =FRCP_y4 -> 2028-29 | I47: =FRCP_y5 -> 2029-30
B48: Total momentary interruptions after removing excluded events
B49: =INDEX(dms_FeederName_1,MATCH(dms_TradingName,dms_TradingName_List)) -> CBD
B50: =INDEX(dms_FeederName_2,MATCH(dms_TradingName,dms_TradingName_List)) -> Urban
B51: =INDEX(dms_FeederName_3,MATCH(dms_TradingName,dms_TradingName_List)) -> Short rural
B52: =INDEX(dms_FeederName_4,MATCH(dms_TradingName,dms_TradingName_List)) -> Long rural
B53: =IF(ISBLANK(INDEX(dms_FeederName_5,MATCH(dms_TradingName,dms_TradingName_List))),"",INDEX(dms_FeederName_5,MATCH(dms_TradingName,dms_TradingName_List))) -> 
B54: Total | E54: =SUM(E49:E53) -> 0 | F54: =SUM(F49:F53) -> 0 | G54: =SUM(G49:G53) -> 0 | H54: =SUM(H49:H53) -> 0 | I54: =SUM(I49:I53) -> 0
B57: The number of distribution customers is calculated as the average of the number of customers at the beginning of the reporting period and the number of customers at the end of the reporting period.
B59: 6.2.4 - DISTRIBUTION CUSTOMER NUMBERS (STPIS)
C60: FORECAST
B61: Average customer numbers | C61: =CRCP_y4 -> 2023-24 | D61: =CRCP_y5 -> 2024-25 | E61: =FRCP_y1 -> 2025-26 | F61: =FRCP_y2 -> 2026-27 | G61: =FRCP_y3 -> 2027-28 | H61: =FRCP_y4 -> 2028-29 | I61: =FRCP_y5 -> 2029-30
B62: =INDEX(dms_FeederName_1,MATCH(dms_TradingName,dms_TradingName_List)) -> CBD | C62: 4114 | D62: 4169 | E62: 4224 | F62: 4283 | G62: 4341 | H62: 4394 | I62: 4446
B63: =INDEX(dms_FeederName_2,MATCH(dms_TradingName,dms_TradingName_List)) -> Urban | C63: 1050509 | D63: 1064443 | E63: 1078547 | F63: 1093597 | G63: 1108426 | H63: 1121968 | I63: 1135138
B64: =INDEX(dms_FeederName_3,MATCH(dms_TradingName,dms_TradingName_List)) -> Short rural | C64: 534138 | D64: 541223 | E64: 548394 | F64: 556046 | G64: 563586 | H64: 570471 | I64: 577167
B65: =INDEX(dms_FeederName_4,MATCH(dms_TradingName,dms_TradingName_List)) -> Long rural
B66: =IF(ISBLANK(INDEX(dms_FeederName_5,MATCH(dms_TradingName,dms_TradingName_List))),"",INDEX(dms_FeederName_5,MATCH(dms_TradingName,dms_TradingName_List))) -> 
B67: Total | C67: =SUM(C62:C66) -> 1588761 | D67: 1609835 | E67: 1631165 | F67: 1653926 | G67: 1676353 | H67: 1696833 | I67: 1716751
B69: The AER's definition of calls answered within 30 seconds is as follows: Calls to the fault line answered in 30 seconds where the time to answer a call is measured from when the call enters the telephone system of the call centre (including that time when it may be ringing unanswered by any response) and the caller speaks with a human operator, but excluding the time that the caller is connected to an automated interactive service that provides substantive information. This measure does not apply to: - calls to payment lines and automated interactive services; - calls abandoned by the customer within 30 seconds of the call being queued for response by a human operator. Where the time in which a telephone call is abandoned is not measured, then an estimate of the number of calls abandoned within 30 seconds will be determined by taking 20 per cent of all calls abandoned. Note: Being placed in a queuing system (automated or otherwise) does not constitute a response. 'Calls answered within 30 seconds' and 'Calls received' should be calculated excluding calls abandoned within 30 seconds of being queued for a human operator; and calls to payment lines and automated interactive services.
B71: 6.2.5 - CUSTOMER SERVICE
E72: Proposed target
E73: =FRCP_y1 -> 2025-26 | F73: =FRCP_y2 -> 2026-27 | G73: =FRCP_y3 -> 2027-28 | H73: =FRCP_y4 -> 2028-29 | I73: =FRCP_y5 -> 2029-30
B74: Number of calls received
B75: Number of calls answered within 30 seconds
B76: Percentage of calls answered within 30 seconds | E76: =IFERROR((E75/E74),"") ->  | F76: =IFERROR((F75/F74),"") ->  | G76: =IFERROR((G75/G74),"") ->  | H76: =IFERROR((H75/H74),"") ->  | I76: =IFERROR((I75/I74),"") -> 

Sheet 7.1 Policies and Procedures
B1: =INDEX(dms_Worksheet_List,MATCH(dms_Model,dms_Model_List)) -> REGULATORY REPORTING STATEMENT
B2: =INDEX(dms_TradingNameFull_List,MATCH(dms_TradingName,dms_TradingName_List)) -> Energex
B3: =CONCATENATE("REGULATORY PERIOD FROM ", FRCP_y1," TO ",dms_MultiYear_FinalYear_Result) -> REGULATORY PERIOD FROM 2025-26 TO 2029-30
B4: 7.1 PLANS, POLICIES, PROCEDURES AND STRATEGIES
B5: TEMPLATE DATE - OCTOBER 2023 - FINAL RIN
B7: 7.1.1 - PLANS, POLICIES, PROCEDURES AND STRATEGIES
C8: Brief description | D8: Relevance to regulatory proposal | E8: Expenditure impact
C9: Description of the plan, policy, procedure or strategy. | D9: Identify the element of the proposal/supporting documents that the policy, plan, procedure or strategy is relevant to e.g. replacement capex, capacity utilisation thresholds, opex | E9: Is this policy, plan or procedure identified in the response to section 4 'Step Changes' of the notice (yes or no)?
B10: Corporate
B11: <insert relevant policy, plan, strategy etc>
B31: Governance framework
B32: EQL Statement of Corporate Intent (public version) | C32: It outlines the critical business objectives, key priorities, major initiatives, and financial and non-financial performance measures for Energy Queensland | D32: All | E32: No
B33: EQL Risk Appetite Statement Q015 | C33: EQL’s Risk Appetite establishes the amount of risk EQL is willing to pursue or accept in order to achieve its objectives | D33: All | E33: No
B34: EQL Risk Evaluation Matrix R056 | C34: This matrix is a tool used for ranking risks. | D34: All | E34: No
B35: EQL Risk management standard | C35: This Standard is a key element of the Enterprise Risk Management Framework (Framework). It provides details regarding risk management at EQL | D35: All | E35: No
B36: Risk management policy P043 | C36: The purpose of this Policy is to ensure the implementation of effective risk management practices that will protect and create value and are consistent with strategy formation, business planning and the achievement of the EQL Group’s strategic objectives. This policy defines the whole of business, enterprise-wide approach to risk management through the utilisation of an integrated framework. | D36: All | E36: No
B37: Risk Management Procedure | C37: This procedure provides the information necessary to support the effective application of the Enterprise Risk Management Framework in our day-to-day operations. It is designed to provide the ‘how’ and ensure a consistent and effective approach to the management of risk at EQL. | D37: All | E37: No
B38: EQL Governance and delegations policy P013 | C38: This Policy sets out the overarching decision making governance and delegation of authority framework for Energy Queensland Limited (EQL) and its subsidiaries. | D38: All | E38: No
B49: Accounting policies, procedures and methodologies (including a capitalisation policy, depreciation policy and an approved expenditure allocation methodology)
B50: Capitalisation Policy | C50: This manual is designed to interpret the Accounting standard guidelines AASB 116 Property Plant and Equipment and AASB 138 Intangible Assets and provide guidance for employees on the application of those standards in practice. | D50: Capex | E50: No
B72: Asset management plan or equivalent documentation
B73: Asset Management Policies
B74: Asset Management Policy | C74: The purpose of this policy is to set out Energy Queensland's principles by which it intends to apply asset management to achieve its organisational objectives. | D74: ALL | E74: No
B96: Asset Management Strategies
B97: Strategic Asset Management Plan (SAMP) | C97: The Strategic Asset Management Plan (SAMP) sets out how we will apply the principles stated in our Asset Management Policy to fulfil Energy Queensland’s (EQL’s)Strategic Objectives. It provides direction for asset management activities and form the basis for developing the more specific asset management strategies and plans. It also describes the asset management system, which conceptualises the integration and interrelationship between asset management activities that is necessary to optimise the value from assets and contribute to the achievement of the asset management objectives. | D97: All CAPEX /' All OPEX | E97: No
B98: Network Risk Framework | C98: This framework has been developed to undertake and risk based prioritisation of our program of work | D98: Network Capex and Opex | E98: No
B117: Asset Management Plans
B118: Distribution Annual Planning Report (DAPR) Energex | C118: The DAPR covers a five year period and outlines our strategies and plans. In particular, it includes: •Planning for subtransmission and distribution network growth •Asset repair and replacement planning •Planning for future demand on the network •Capacity and load forecasts by region •Current and future limitations on our subtransmission and distribution networks •Possible solutions for network limitations. | D118: All Capex | E118: No
B119: Asset Management Plan - Poles | C119: This document outlines our processes, practises and procedures in managing this asset category | D119: Poles capex | E119: No
B120: Asset Management Plan - Pole Top Structures | C120: This document outlines our processes, practises and procedures in managing this asset category | D120: Pole Top Structures capex | E120: No
B121: Asset Management Plan - Overhead Conductor | C121: This document outlines our processes, practises and procedures in managing this asset category | D121: Overhead Conductor capex | E121: No
B122: Asset Management Plan - Distribution Transformers | C122: This document outlines our processes, practises and procedures in managing this asset category | D122: Distribution Transformers capex | E122: No
B123: Asset Management Plan - Service Lines | C123: This document outlines our processes, practises and procedures in managing this asset category | D123: Service Lines capex | E123: No
B124: Asset Management Plan - Switches | C124: This document outlines our processes, practises and procedures in managing this asset category | D124: Switches capex | E124: No
B125: Asset Management Plan - DC Systems | C125: This document outlines our processes, practises and procedures in managing this asset category | D125: DC Systems capex | E125: No
B126: Asset Management Plan - Control Systems | C126: This document outlines our processes, practises and procedures in managing this asset category | D126: Control Systems capex | E126: No
B127: Asset Management Plan - Instrument Transformers | C127: This document outlines our processes, practises and procedures in managing this asset category | D127: Instrument Transformers capex | E127: No
B128: Asset Management Plan - Protection Relays | C128: This document outlines our processes, practises and procedures in managing this asset category | D128: Protection Relays capex | E128: No
B129: Asset Management Plan - Underground Cables | C129: This document outlines our processes, practises and procedures in managing this asset category | D129: Underground Cables capex | E129: No
B130: Asset Management Plan -Circuit Breakers and Reclosers | C130: This document outlines our processes, practises and procedures in managing this asset category | D130: Circuit Breakers and Reclosers capex | E130: No
B131: Asset Management Plan - Substation Transformers | C131: This document outlines our processes, practises and procedures in managing this asset category | D131: Substation Transformers capex | E131: No
B132: Asset Management Plan - Communications Linear Assets | C132: This document outlines our processes, practises and procedures in managing this asset category | D132: Fibre Optic and Metallic Pilot Cables capex | E132: No
B133: Asset Management Plan - Telecommunications | C133: This document outlines our processes, practises and procedures in managing this asset category | D133: Microwave, Multiplexers, Switches, Routers capex | E133: No
B134: Asset Management Plan - Telecommunications | C134: This document outlines our processes, practises and procedures in managing this asset category | D134: Microwave, Multiplexers, Switches, Routers capex | E134: No
B142: Capital expenditure policies and procedures (including capex approval policies and procedures and replacement policy)
B143: Property Plan 2025-30 | C143: Outlines the strategy, drivers and proposed expenditure for the 2025-30 period | D143: Non-network capex | E143: No
B144: Fleet Plan 2025-30 | C144: Outlines the strategy, drivers and proposed expenditure for the 2025-30 period | D144: Non-network capex | E144: No
B145: Tools and Equipment Plan 2025-30 | C145: Outlines the strategy, drivers and proposed expenditure for the 2025-30 period | D145: Non-network capex | E145: No
B163: Internal standards for network planning, design, maintenance and operation
B164: Safety Net Application Guidelines | C164: This document outlines the application of the Safety Net requirements under our Distribution Authority. | D164: All Capex | E164: No
B165: Cost Benefit Analysis Framework and Principles | C165: This document outlines how to approach quantifying the benefits to customers and the community in assessing investment options for projects and programs. | D165: All Capex | E165: No
B166: Joint Supply and Planning Manual | C166: This document outlines the calculation is to specify the connection and technical requirements that Small and Major Customers connecting to the LV network and requiring a negotiated connection must comply with in order to establish a new Connection, or to alter an existing Connection, to either the Energex distribution networks. | D166: Augmentation and Connections | E166: No
B167: Standard for Sub-transmission and Distribution Planning | C167: This Standard establishes a set of parameters for electrical network planning, network development and network connection activities within Energy Queensland on the Energex and Ergon Energy Networks. | D167: All Capex | E167: No
B168: Standard for Voltage and Reactive Power Management | C168: This standard describes a set of parameters for the management of voltages on the Energex and Ergon Energy networks | D168: All Capex / All Opex | E168: No
B169: Standard for Network Performance | C169: This Standard is a reference document to be used to assess network performance on a routine or case specific basis and to provide advice on network reliability, quality of supply, power quality, check customer connection requirements related to power quality, and determine if network augmentations are required to mitigate reliability and power quality risks. | D169: All Capex / All Opex | E169: No
B170: Power Quality Planning Guideline | C170: This guideline has been developed to assist with making appropriate assessments of power quality phenomena such as harmonics and flicker, and to assist in planning large customer connections to the ENERGEX, and Ergon Energy electrical distributions systems in Queensland | D170: All Capex | E170: No
B171: Substation Design Manual | C171: This document is a reference for the Designers of Ergon Energy substations and it covers all aspects of substation design for both Greenfield and Brownfield substation projects to meet the performance expected by Ergon Energy | D171: Network Capex | E171: No
B172: Maintenance Standard for Overhead Pole Lines | C172: This standard defines and communicates requirements for inspection and maintenance of overhead pole lines | D172: Network Capex and Opex | E172: No
B173: Lines Defect Classification Manual Substation Defect Classification Manual | C173: This manual outlines the ways our asset inspectors determine asset defects | D173: Network Capex and Opex | E173: No
B174: Maintenance Acceptance Criteria | C174: This document sets out the Maintenance Acceptance Criteria which is used to evaluate the degree of deterioration in condition and performance of network plant and equipment as well as set setting safety criteria to determine if plant is fit to remain in service. Note: This document does not identify any safety / environmental hazards or provide warnings / cautions associated with carrying out the inspection or maintenance activities prescribed within it. | D174: All Capex and All Opex | E174: No
B175: EQL Standard for Conductor Clearance Prioritisation and Remediation | C175: This document sets out how we assess the criticality of a clearance to structure or clearance to ground issue and the timeframes for remediation. | D175: Augex | E175: No
B176: CBRM/CNAIM Models | C176: This model is utilised to predict asset condition by using condition and other data from our asset inspections and maintenance. This is utilised for the majority of our major asset classes | D176: Repex | E176: No
B177: Maintenance Activity Frequency | C177: This document sets out the frequency of our maintenance and inspection activities | D177: Opex and Capex | E177: No
B178: EQL Maintenance Driven Relay Replacement Priorities & Spares Strategy | C178: This document sets out our approach to prioritising replacements in our relay assets and the strategy for storing spares | D178: Capex | E178: No
B179: Distribution Lines Refurbishment Guidelines - REPEX | C179: This document outlines our approach for identifying and prioritising the bundling of REPEX lines work. | D179: Capex | E179: No
B243: Procurement and contracting out policies
B244: EQL Procurement Policy P011 | C244: The Energy Queensland Limited Procurement Policy provides direction in procurement and purchasing activities that support Energy Queensland’s business strategies. According to the Policy, procurement activities will be undertaken in accordance with established probity and governance standards. | D244: All Capex / All Opex | E244: No
B245: EQL Procurement Business Rules R052 | C245: The Business Rules have been developed to provide early process guidance and standards to all EQL business operations about the minimum requirements expected when purchasing on behalf of EQL and its subsidiaries, and in doing so seeks to identify the purchasing needs of both the regulated (and unregulated) businesses. In respect to the unregulated business, the Strategic Procurement Group has identified that there is a particular need to tailor solutions as opportunities and challenges emerge, while ensuring that we continue to work together within important ring fencing parameters at all times. THe Procurement Business Rules align and support EQL's Sustainable Procurement Policy. | D245: All Capex / All Opex | E245: No
B264: Information technology policies or strategies
B265: Non-network ICT Plan 2025-30 | C265: Outlines the strategy, governance and expenditure for non-network ICT for the next regulatory control period (2025-30) | D265: Non-Network Capex / Opex | E265: No
B301: Demand management policies or strategies
B302: Demand Management Plan | C302: The purpose of the Demand Management Plan (DM Plan) is to engage and inform our end use customers and industry partners on our planned DM programs for the next five years. | D302: All CAPEX /' All OPEX | E302: No
B322: Self insurance guidelines or policy
B323: Insurance Policy P042 | C323: The objective of this risk management plan is to ensure the current EQL Insurance Strategy and Program provides the appropriate balance of risk retention (self-insurance) and risk transfer (commercial insurance), to align to EQL’s risk appetite, ensuring adequate cover for existing and emerging risks that have the potential to impact the ongoing financial stability of EQL. | D323: All CAPEX / All OPEX | E323: No
B343: Land and easement acquisition polices
B344: <insert relevant policy, plan, strategy etc>
B364: Asset security plans and policies
B365: Natural Hazard Strategy | C365: This strategy has been developed on behalf of both Ergon Energy Network and Energex. It details planning and preparation activities critical to providing Queensland with a reliable network where disruptions are minimised during natural hazard events | D365: All Opex / All Capex | E365: No
B366: Bushfire Risk Management Plan | C366: This Bushfire Risk Management Plan is a subset of the Summer Preparedness Plan and targets issues and initiatives relating specifically to bushfires. | D366: All Opex / All Capex | E366: No
B367: Emergency Management Plan (EMP) - Distribution Network | C367: This Emergency Management Plan (EMP) provides the direction for emergency response arrangements in response to emergency events on the Distribution Network. It details the higher level framework and processes to be applied by Energex and Ergon Energy Network when responding to a Level 2 or Level 3 event which disrupts or has the potential to disrupt the supply and distribution of electricity, or the provision of related services to customers and communities. This plan is supported by other detailed processes as referenced throughout the document. | D367: All Opex / All Capex | E367: No
B385: Disaster recovery policy
B386: Manage Level 2 Emergency - Severe Weather | C386: The procedure for extreme weather events that have potential to affect the Energex network (covers Thunderstorms, Winds, Rain and Hot Weather that is likely to result in possible overloads). | D386: Emergency response (Opex) | E386: No

Sheet 7.2 Contingent projects
B1: =INDEX(dms_Worksheet_List,MATCH(dms_Model,dms_Model_List)) -> REGULATORY REPORTING STATEMENT
B2: =INDEX(dms_TradingNameFull_List,MATCH(dms_TradingName,dms_TradingName_List)) -> Energex
B3: =CONCATENATE("REGULATORY PERIOD FROM ", FRCP_y1," TO ",dms_MultiYear_FinalYear_Result) -> REGULATORY PERIOD FROM 2025-26 TO 2029-30
B4: 7.2 CONTINGENT PROJECTS
B5: TEMPLATE DATE - OCTOBER 2023 - FINAL RIN
B7: 7.2.1 - PROPOSED CONTINGENT PROJECTS FOR THE FORTHCOMING REGULATORY CONTROL PERIOD
B8: Proposed contingent project name | C8: Proposed contingent capital expenditure ($, nominal) | D8: Proposed trigger events | E8: =CONCATENATE("Proposed annual revenue requirement for ", FRCP_y1, " ($, nominal)") -> Proposed annual revenue requirement for 2025-26 ($, nominal) | F8: =CONCATENATE("5% of the annual revenue requirement for ",FRCP_y1,"") -> 5% of the annual revenue requirement for 2025-26
F9: =+E9*0.05 -> 0
E10: =+$E$9 -> 0 | F10: 0
E11: 0 | F11: 0
E12: 0 | F12: 0
E13: 0 | F13: 0
E14: 0 | F14: 0
E15: 0 | F15: 0
E16: 0 | F16: 0
E17: 0 | F17: 0
E18: 0 | F18: 0
E19: 0 | F19: 0
E20: 0 | F20: 0
E21: 0 | F21: 0
E22: 0 | F22: 0
E23: 0 | F23: 0
E24: 0 | F24: 0
E25: 0 | F25: 0
E26: 0 | F26: 0
E27: 0 | F27: 0
E28: 0 | F28: 0
E29: 0 | F29: 0
E30: 0 | F30: 0
E31: 0 | F31: 0
E32: 0 | F32: 0
E33: 0 | F33: 0
E34: 0 | F34: 0
E35: 0 | F35: 0
E36: 0 | F36: 0
E37: 0 | F37: 0
E38: 0 | F38: 0
E39: 0 | F39: 0
E40: 0 | F40: 0
E41: 0 | F41: 0
E42: 0 | F42: 0
E43: 0 | F43: 0
E44: 0 | F44: 0
E45: 0 | F45: 0
E46: 0 | F46: 0

Sheet 7.3 Obligations
B1: =INDEX(dms_Worksheet_List,MATCH(dms_Model,dms_Model_List)) -> REGULATORY REPORTING STATEMENT
B2: =INDEX(dms_TradingNameFull_List,MATCH(dms_TradingName,dms_TradingName_List)) -> Energex
B3: =CONCATENATE("REGULATORY PERIOD FROM ", FRCP_y1," TO ",dms_MultiYear_FinalYear_Result) -> REGULATORY PERIOD FROM 2025-26 TO 2029-30
B4: 7.3 OBLIGATIONS, REQUIREMENTS & STANDARDS
B5: TEMPLATE DATE - OCTOBER 2023 - FINAL RIN
B7: 7.3.1 - OBLIGATIONS OR REQUIREMENTS
C8: Brief description | D8: Relevance to regulatory proposal | E8: Expenditure impact
C9: Description of relevant obligations or requirements within the instrument (e.g. safety obligations, reliability targets) | D9: Identify what element of the proposal/supporting documents the obligation or requirement is relevant to e.g. replacement capex, capacity utilisation thresholds, opex | E9: Is the obligation or requirement identified in the response to section 4 'Step Changes' of the notice (yes or no)?
B10: LEGISLATION
B11: Electricity - National Scheme (Qld) Act 1997 | C11: This legislation provides that the National Electricity Law (NEL) and the National Electricity Rules (NER) apply as a law of Queensland | D11: All | E11: No
B12: National Electricity Law | C12: Electricity distribution entities have a large number of obligations under the NEL. The most significant obligations are to: register with AEMO as a "Registered Participant"; comply with the distribution determination that applies to the electricity distribution network services provided; provide the AER with the necessary information or prepare, maintain or keep the information as is requested by the AER in either a "relevant notice" or a "regulatory information instrument"; provide information to the AER for the purpose of the preparation of a NSP's performance or financial report; comply with the guidelines established by AEMO in relation to the shedding and restoration of loads in order to ensure the safety and security of the National Electricity System; comply with a wide range of obligations relating to the determination and resolution of access disputes, as well as to the restrictions on, variation of and compliance with access determinations; and comply with the general obligation not to prevent or hinder the access of another person to a regulated network service. | D12: All | E12: No
B13: National Electricity Rules and subordinate Regulations | C13: These Rules and Regulations are made under the NEL and set out the rights and obligations of participants in the NEM, AEMO as market operator, and the market institutions. This includes connections, planning and expansion, economic regulation, metering and transitional requirements. It also includes all procedures established under the Rules. | D13: All | E13: No
B14: National Energy Retail Law (NERL) | C14: The NERL establishes the NECF which is focussed on the sale and supply of energy to residential and small business customers. | D14: ACS, Connection Policy | E14: No
B15: National Energy Retail Rules (NERR) | C15: The NERR are made under the NERL and provide the detailed content of the consumer protection measures and model contracts that govern the relationships between customers, retailers and distributors. | D15: Connection Policy, ACS | E15: No
B16: National Energy Retail Law (Qld) Act 2014 | C16: This legislation proivdes that the National Energy Retail Law (South Australia) Act applies as an Act in Queensland and provides the Queensland derogations from the national law as a schedule. | D16: Connection Policy, ACS | E16: No
B17: National Energy Retail Law (Qld) Regulation 2014 | C17: This legislation provides the Queensland derogations to the NERR, including protections specific to consumers in regional and remote Queensland. | D17: Connection Policy, ACS | E17: No
B18: Electricity Act 1994 (Qld) | C18: The key obligations of an electricity distribution entity under this Act are to: comply with the provisions of the National Electricity (Queensland) Law and the National Electricity Rules; operate, maintain and protect its supply network to ensure the adequate, economic, reliable and safe connection and supply of electricity; properly take into account the environmental effects of its activities; consider both demand and supply side options to provide for the efficient supply of electricity; pay the amounts required under the authority or regulations for administering the authority and its conditions; and pay any amount that, under the Energy and Water Ombudsman Act 2006, it is required to pay the Energy Ombudsman. | D18: All Capex and All Opex; Connection Policy | E18: No
B19: Electricity Regulation 2006 (Qld) | C19: The Regulation sets out a number of provisions which impose specific obligations on electricity distribution entities including: prescribing standards and procedures for the design, building and maintenance of electric lines and works; prescribing standards and procedures for the measurement of energy efficiency and the performance of electrical equipment; specifying caps on fees for certain services; and providing for GOEindustry employee leave, award and allowance entitlements. | D19: All Capex and All Opex | E19: No
B20: Electrical Safety Act 2002 (Qld) | C20: Electrical distribution entities are required to comply with all relevant provisions under this Act, with the most specific obligation being the responsibility to ensure that all electricity inspection, testing and maintenance works are operated in a way that is electrically safe. | D20: All Capex and All Opex | E20: No
B21: Electrical Safety Regulation 2013 (Qld) | C21: This Regulation identifies specific ways for an electricity entity to meet its obligations under the Electrical Safety Act 2002. The provisions of the Regulation include: safety and technical requirements for electrical work and equipment and the works of electrical entities; safety and technical requirements for work in contact with or near exposed parts; requirements for the development of safety management plans; notification and reporting requirements for electrical incidents and dangerous electrical events; all matters concerning electrical licences and electrical licensing provisions; approvals of electrical equipment; and administrative matters. | D21: All Capex and All Opex | E21: No
B22: Work Health and Safety Act 2011 (Qld) | C22: This Act details Energex's obligations in relation to having appropriate health and safety standards at its place of business to ensure the safety of its employees and other persons. Energex must provide and maintain a safe and healthy work environment, provide and maintain safe plant, ensure a safe system of work and provide information, instruction, training and supervision to ensure health and safety. The Work Health and Safety Act does not apply to circumstances where the Electrical Safety Act applies. | D22: All Capex and All Opex | E22: No
B23: Work Health and Safety Regulation 2011 (Qld) | C23: This instrument provides a framework for health and safety of workers and workplaces. | D23: All | E23: No
B24: Workers Compensation and Rehabilitation Act 2003 (Qld) | C24: Under this Act, Energex, as a registered Queensland business, is legally liable for compensation for injury sustained by a worker. Given the inherently dangerous nature of electricity distribution field operations, Energex is likely to have significantly higher compliance costs under this legislation than a typical Queensland business. | D24: All | E24: No
B25: Workers Compensation and Rehabilitation Regulation 2014 (Qld) | C25: This Regulation sets out the legal requirements for the workers compensation scheme defined under the Workers Compensation and Rehabilitation Act 2003. All organisations operating in Queensland, including an electricity distribution entity are obliged to comply with all provisions under this Regulation. | D25: Opex | E25: No
B26: Energy and Water Ombudsman Act 2006 (Qld) and subordinate Regulation | C26: Establishes an independent dispute resolution mechanism for small customers who have a complaint about their energy supply. | D26: Opex | E26: No
B27: National Greenhouse and Energy Reporting Act 2007 (Cth) | C27: Establishes the framework for the reporting and dissemination of information related to greenhouse gas emissions, greenhouse gas projects, energy consumption and energy production of corporations. | D27: All | E27: No
B28: Environment Protection and Biodiversity Conservation Act 1999 (Cth) and associated Regulation | C28: The objects of this Act include, among other things, protection of the environment; promotion of ecologically sustainable development and biodiversity conservation; and provision for the protection and conservation of heritage. | D28: All | E28: No
B29: Environmental Protection Act 1994 (Qld) and subordinate legislation | C29: This legislation is relevant to Energex in terms of the environmental considerations that must be taken into account in constructing, operating and maintaining distribution network infrastructure. This entails regular monitoring of environmental exposures and review of incident trends, as well as ensuring compliance with environmental regulations as part of an ongoing internal Environmental Management System. Distribution entities are also required to comply with the framework established under the Act for the environmental evaluation of individual projects. If the administering authority believes that an event or activity is causing or likely to cause environmental harm, it can require the responsible entity to either undertake or commission an environmental investigation into the activity and submit an accompanying report. Electricity distribution entities are also required under the Act to obtain approvals prior to engaging in certain activities. | D29: All | E29: No
B30: Nature Conservation Act 1992 and subordinate legislation (Qld) | C30: The operation of an electricity supply network is classified as a "service facility" under the Nature Conservation Act and as such may be granted permission to operate on land situated in a national park. This legislation provides the framework under which an electricity distribution entity must operate in order to obtain permission to construct distribution network infrastructure on land lying inside national park boundaries. The Act also regulates the taking of protected plants, protected animals and tampering with animal breeding places. | D30: All | E30: No
B31: Native Title Act 1993 (Cth) | C31: This Act provides for the recognition and protection of native title; establishes ways in which future dealings affecting native title may proceed and to set standards for those dealings; establishes a mechanism for determining claims to native title; and provides for, or permits, the validation of past acts, and intermediate period acts, invalidated because of the existence of native title. | D31: All | E31: No
B32: Aboriginal Cultural Heritage Act 2003 (Qld) and Torres Strait Islander Cultural Heritage Act 2003 (Qld) | C32: The main purpose of these Acts is to provide effective recognition, protection and conservation of Aboriginal and Torres Strait Islander cultural heritage. | D32: All | E32: No
B33: Queensland Heritage Act 1992 (Qld) Queensland Heritage Regulation 2015 (Qld) | C33: The obligations of an electricity distribution entity in relation to this legislation relate to the planning of expansions to its distribution network. Distribution entities must take the provisions of this Act into account when planning an expansion project that has the potential to impact on an area that is registered as a heritage location under this Act. Distribution entities must also follow the requirements outlined in the Act when applying to enter an area classified as a protected area. | D33: All | E33: No
B34: Vegetation Management Act 1999 (Qld) Vegetation Management Regulation 2012 | C34: Deals with various aspects of clearing, conservation and management of native vegetation. | D34: Opex - Vegetation Management | E34: No
B35: Coastal Protection and Management Act 1995 (Qld) and associated regulation | C35: The main objects of this Act are to: provide for the protection, conservation, rehabilitation and management of the coast, including its resources and biological diversity; and have regard to the goal, core objectives and guiding principles of the National Strategy for Ecologically Sustainable Development in the use of the coastal zone; and provide, in conjunction with other legislation, a coordinated and integrated management and administrative framework for the ecologically sustainable development of the coastal zone; and encourage the enhancement of knowledge of coastal resources and the effect of human activities on the coastal zone. | D35: All | E35: No
B36: Planning Act 2016 (Qld) and associated Regulation | C36: In order to ensure compliance with the provisions of this Act, a distribution entity must consider and attempt to minimise, where practicable, any adverse environmental impacts of its network expansion programs. Under the Act, construction of new electricity infrastructure often requires a full impact assessment involving public consultation and negotiation. To accommodate the longer project delivery times due to such assessments, demand forecasting and project planning must often be initiated earlier than would otherwise be required. There may also be implications for cost and timing of construction of infrastructure due to design requirements imposed under planning approvals. | D36: All | E36: No
B37: State Development and Public Works Organisation Act 1971 (Qld) | C37: Energex is obligated under this Act to cooperate with the Coordinator-General and provide information upon request to assist in the planning process for the Queensland Government's program of works. | D37: All | E37: No
B38: Acquisition of Land Act 1967 (Qld) Acquisition of Land Regulation 2014 (Qld) | C38: Electricity distribution entities are required to comply with all obligations under the Act relating to the acquiring of land for the purpose of constructing an easement and the payment of compensation to the holder of the land over which an easement is to be constructed. | D38: All | E38: No
B39: Land Act 1994 (Qld) | C39: There are a large number of specific obligations that a DNSP is required to comply with under this Act relating to the registration and administration of easements. | D39: All | E39: No
B40: Land Title Act 1994 (Qld) | C40: The obligations upon a DNSP under this legislation relate to the registration and administration of easements and are broadly similar to its obligations under the Land Act 1994. | D40: All | E40: No
B41: Fire and Emergency Services Act 1990 (Qld) | C41: This Act provide for the prevention of, and responses to, fires and other emergency incidents; provides for rescue services and operations; and establishes a framework for the management of the Queensland Fire and Emergency Service, the State Emergency Service, emergency service units established for an emergency service area, and the conduct of authorised rescue officers. | D41: All | E41: No
B42: Building Fire Safety Regulation 2008 (Qld) | C42: This instrument provdes a framework for safe evacuation of buildings and fire safety installations in buildings. | D42: All | E42: No
B43: Government Owned Corporations Act 1993 (Qld) | C43: This Act makes provision for a structural reform process (corporatisation) for nominated government entities. | D43: All | E43: No
B44: Queensland Competition Authority Act 1997 (Qld) | C44: The key ongoing obligation of Energex under this Act is to report to the QCA in accordance with the Electricity Distribution Network Code. Part 3 (pricing practices relating to monopoly business activities) and Part 5 (access to services) of the Act are potentially applicable to Energex but do not impose ongoing obligations. | D44: All | E44: No
B45: Corporations Act 2001 (Cth) | C45: This Act is the principal legislation regulating companies in Australia. It regulates matters such as the formation and operation of companies (in conjunction with a constitution that may be adopted by a company), duties of officers, takeovers and fundraising. | D45: All | E45: No
B46: Financial Accountability Act 2009 (Qld) | C46: The Financial Accountability Act 2009 sets out the principles to be observed by all Queensland public sector agencies in relation to their financial management. | D46: All | E46: No
B47: Income Tax Assessment Act 1936 (Cth) Income Tax Assessment Act 1997 (Cth) Fringe Benefits Tax Assessment Act 1986 (Cth) A New Tax System (Goods and Service Tax) Act 1999 (Cth) | C47: These instruments provide a framework for the treatment of income tax, fringe benefits tax, and goods and services tax. | D47: All | E47: No
B48: Tax Administration Act 1953 | C48: The TAA and regulations made under it, contain provisions dealing with the administration of tax laws (including GST) by, and the powers of, the ATO. The TAA has become increasingly important because it contains the PAYG withholding regimes and the generic provisions for tax administration including dealing with penalties for breaches of various tax laws. | D48: All | E48: No
B49: Payroll Tax Act 1971 (Qld), Payroll Tax Act 2007 Act 21 of 2007 (NSW Consolidated Acts), Payroll Tax Act 2007 (Victorian Current Acts), Payroll Tax Act 2009 (South Australia) | C49: Payroll Tax is a state impost controlled by eight separate legislatures. Accordingly, the requirements, liabilities and rates of tax vary from state to state.The legislation in each state broadly provides for payroll tax to be levied on "wages", in cash or in kind, provided by employers to employees. | D49: All | E49: No
B50: Competition and Consumer Act 2010 (Cth) | C50: The object of this Act is to enhance the welfare of Australians through the promotion of competition and fair trading and provision for consumer protection. | D50: All | E50: No
B51: Fair Trading Act 1989 (Qld) | C51: The principal objective of this Act is to improve consumer wellbeing through consumer empowerment and protection, fostering effective competition and enabling the confident participation of consumers in markets in which both consumers and suppliers trade fairly. | D51: All | E51: No
B52: Privacy Act 1988 (Cth) | C52: Energex is an organisation which is subject to the provisions of the Privacy Act 1988 and the Australian Privacy Principles for the protection of privacy of individuals and the responsible and transparent handling of personal information. The Act also sets out a procedure for individuals to complain about privacy breaches. | D52: Non Network Opex and Capex; Overheads | E52: No
B53: Public Records Act 2002 (Qld) | C53: The main purposes of this Act are to ensure— (a) the public records of Queensland are made, managed, kept and, if appropriate, preserved in a useable form for the benefit of present and future generations; and (b) public access to records under this Act is consistent with the principles of the Right to Information Act 2009 and the Information Privacy Act 2009. | D53: Non Network Opex and Capex; Overheads | E53: No
B54: Right to Information Act 2009 (Qld) | C54: The public has a right of access to certain information in Energex's possession or control, unless, on balance, it is contrary to the public interest to give the access. The Act sets out the procedural steps for releasing information to the public, including when access to information may be refused. | D54: Non Network Opex and Capex; Overheads | E54: No
B55: Information Privacy Act 2009 (Qld) | C55: Contains a set of rules or ‘privacy principles’ that govern how Energex collects, stores, uses and discloses personal information. The Act also allows an individual to make a complaint about an agency's breach of the privacy principles. | D55: Non Network Opex and Capex; Overheads | E55: No
B222: LICENCES
B223: Distribution Authority | C223: The Queensland Regulator (the Department of Energy and Public Works) has issued Energex a Distribution Authority in accordance with the Electricity Act 1994 (Qld) | D223: All | E223: No
B224: Electrical Worker's Licence | C224: Issued to Qualified Technical Person for Energex in accordance with the Electrical Safety Act 2002 (Qld) | D224: All | E224: No
B225: Electrical Contractor's Licence | C225: Issued to Energex Responsible Person in accordance with the Electrical Safety Act 2002 (Qld) | D225: All | E225: No
B227: RULES
B228: National Electricity Rules | C228: These Rules are made under the NEL and set out the rights and obligations of Registered Participants in the NEM, AEMO as market operator, and the market institutions. This includes connections, planning and expansation, economic regulation and transitional requirements. It also includes all procedures established under the Rules. | D228: All | E228: No
B229: National Energy Retail Rules (NERR) | C229: The NERR are made under the National Energy Retail Law and provide the detailed content of the consumer protection measures and model contracts that govern the relationships between customers, retailers and distributors. | D229: ACS, Connection Policy | E229: No
B230: Market Settlement and Transfer Solution (MSATS) Procedures | C230: Energex is required to comply with various MSATS Procedures including Consumer Administration and Transfer Solution (CATS) Procedures Principles and Obligations; Wholesale, Interconnector, Generator and Sample (WIGS) NMI; and Meter Data Management (MDM) Procedures | D230: All | E230: No
B231: See Tab Additional info 7.3
B232: ORDERS
B233: Regulatory Information Notice | C233: The AER issued a RIN for Energex on 11 October 20223 in accordance with Division 4 of Part 3 of the National Electricity (QLD) Law (NEL). | D233: Reset RIN | E233: No
B236: CODES
B237: Electricity Distribution Network Code (EDNC) | C237: The EDNC has been made under the Electricity Act 1994 and contains a wide range of obligations that impact on Energex's operations. | D237: All | E237: No
B238: Traffic Management for Construction or Maintenance Work Code of Practice 2008 | C238: This Code provides advice about how to manage risks associated with working on, or adjacent to, a roadway. | D238: All | E238: No
B239: Managing electrical risks in the workplace Code of Practice 2021 | C239: This Code gives practical advice on ways to manage electrical risk when working near exposed live parts. It applies to Energex as an electricity entity and an employer. It also provides benchmarks for ensuring that electrical work (live and de-energised) is performed in ways that are electrically safe. It also provides guidance on electrical risk. As such, it applies to Energex's operations. | D239: All | E239: No
B240: Electrical safety code of practice 2020 Works | C240: This Code gives advice on ways for an electricity entity to manage electrical safety risks associated with earthing systems, underground cable systems and supporting structures for overhead lines forming part of the works of an electricity entity. As such, this Code applies to Energex's operations. | D240: All | E240: No
B241: How to manage and control asbestos in the workplace Code of Practice 2021 | C241: This is a national code of practice that has been developed to assist persons in control of premises to control the risks of asbestos-containing materials in workplaces. This Code applies to parts of Energex's operations in terms of asset management. | D241: All | E241: No
B242: How to safely remove asbestos Code of Practice 2021 | C242: The purpose of this Code is to provide advice for the safe removal of asbestos and asbestos-containing material from buildings and structures, plant and equipment and vehicles. This Code applies to Energex in terms of asset management. | D242: All | E242: No
B243: Electrical Safety Code of Practice 2020 - Working near overhead and underground electric lines | C243: A person conducting a business or undertaking at a workplace is required to comply with the requirements of this Code to ensure that no person, plant or thing comes within an unsafe distance (exclusion zone) of an overhead electric line. | D243: All | E243: No
B252: GUIDELINES
B253: Framework and Approach | C253: The AER issued its Framework and Approach for Energex in accordance with clause 6.8.1 of the NER on 3 July 2023 | D253: All | E253: No
B254: Distribution Annual Planning Report | C254: Clause 5.13.2(b) of the NER requires each DNSP to publish a DAPR by the DAPR date each year, setting out the results of the distribution annual planning review for the forward planning period. | D254: All Capex / All Opex | E254: No
B255: Cost Allocation Guideline (Distribution) | C255: This guideline oulines the required content of Energex's cost allocation method and the basis on which the AER will assess that method for approval. | D255: Overheads | E255: No
B256: Regulatory Investment Test for Distribution (RIT-D) | C256: The RIT-D is required for all investment decisions (subject to a number of exclusions) to identify the credible option that maximises the present value of the net economic benefit to all those who produce, consume and transport electricity in the NEM, in accordance with clause 5.17 of the NER. | D256: All Capex / All Opex | E256: No
B257: Ring-fencing Guideline | C257: This guideline details Energex's obligations and related compliance reporting requirements | D257: All | E257: No
B258: Expenditure Forecast Assessment Guideline | C258: This guideline describes the process, techniques and associated data requirements for the AER's approach to setting efficient expenditure allowances for network businesses, in accordance with clause 6.2.8 of the NER. | D258: All Capex / All Opex | E258: No
B259: Rate of Return Instrument | C259: The Rate of Return Instrument sets out how the AER will determine the return that electricity and gas network businesses can earn on their investments, in accordance with clause 6.2.8 of the NER. | D259: Rate of return | E259: No
B260: Expenditure Incentives Guideline | C260: This guideline gives electricity network businesses incentives to spend efficiently and share the benefits of efficiencies with consumers, in accordance with clause 6.2.8 of the NER. | D260: Expenditure incentives | E260: No
B261: Better Resets Handbook | C261: The Handbook sets out the way the AER will undertake its revenue determinations, placing greater emphasis on high quality consumer engagement and providing more clarity on what the AER consider what would be in a proposal that is capable of acceptance. | D261: All | E261: No
B262: Shared Asset Guideline | C262: This guideline outlines how consumers will benefit from the other services electricity network businesses may provide using the assets consumers pay for, in accordance with clause 6.2.8 of the NER. | D262: All | E262: No
B263: Confidentiality Guideline | C263: The confidentiality guideline sets out how energy network businesses must make confidentiality claims over information they submit to the AER. The guideline balances protecting genuinely confidential information with ensuring that stakeholders can access sufficient information on issues affecting their interests, in accordance with clause 6.2.8 of the NER. | D263: All | E263: No
B264: Post Tax Revenue Model (PTRM) | C264: The PTRM will be used by the AER to determine the maximum allowed revenue to be earned by a network service provider over a regulatory control period. The AER has issued a PTRM and an associated PTRM Handbook. | D264: Revenue | E264: No
B265: Roll Forward Model (RFM) | C265: The RFM will be used by the AER to determine the closing regulated asset base for a regulatory control period. The AER has issued a RFM and associated RFM handbook. | D265: Capex, RAB | E265: No
B266: Service Target Performance Incentive Scheme (STPIS) | C266: The STPIS is designed to ensure DNSPs improve efficiency without a deterioration in service performance for customers, and improving service performance where customers are willing to pay for these improvements, in accordance with clause 6.6.2 of the NER. | D266: STPIS - reliability targets | E266: No
B267: Efficiency Benefit Sharing Scheme (EBSS) | C267: The EBSS should provide for a fair sharing between DNSPs and network users of efficiency gains and efficiency losses in accordance with clause 6.5.8 of the NER. | D267: EBSS | E267: No
B268: Capital Expenditure Sharing Scheme (CESS) | C268: The CESS provides financial rewards for DNSPs whose capex becomes more efficient and imposes financial penalties for those that become less efficient. Consumers benefit from improved efficiency through lower regulated prices, in accordance with clause 6.5.8A of the NER. | D268: CESS | E268: No
B269: Demand Management Incentive Scheme (DMIS) and Demand Management Innovation Allowance Mechansim (DMIAM) | C269: The DMIS provides DNSPs with an incentive to undertake efficient expenditure on non-network options relating to demand management. The separate DMIA provides DNSPs with funding for research and development in demand management projects that have the potential to reduce long term network costs. | D269: DMIS and DMIA | E269: No
B270: Cost Allocation Method | C270: The AER has approved the Cost Allocation Method that Energex submitted to it in accordance with the Cost Allocation Guidelines and clause 6.15 of the NER. This document will be used by Energex for the purposes of attributing costs to, or allocating costs between, its Distribution Services, and other unregulated activities within the Energex Group. | D270: Overheads | E270: No
B271: Connection Charge Guideline | C271: This guideline sets out how DNSPs should charge electricity customers for connection services. | D271: Connection Policy | E271: No
B291: DEFAULT AGREEMENTS
B292: Standard Coordination Agreement (Annexure A, ENDC) | C292: This is a deemed agreement that applies between Energex and any retailer with whom we have a common customer. The agreement defines the way in which the parties will discharge their respective obligations to customers and establishes common protocols for communicating customer information, in circumstances where a Negotiated Coordination Agreement has not been entered into. | D292: All | E292: No
B295: OTHER
B296: Negotiated Coordination Agreement | C296: Energex can negotiate with any retailer with whom it has a common customer. The agreement defines the terms and conditions under which the parties will discharge their respective obligations to customers and establish common protocols for communicating customer information. | D296: All | E296: No

Sheet Additional Info 7.3
A1: 7.3.1 - OBLIGATIONS OR REQUIREMENTS
B2: Brief description | C2: Relevance to regulatory proposal | D2: Expenditure impact
B3: Description of relevant obligations or requirements within the instrument (e.g. safety obligations, reliability targets) | C3: Identify what element of the proposal/supporting documents the obligation or requirement is relevant to e.g. replacement capex, capacity utilisation thresholds, opex | D3: Is the obligation or requirement identified in the response to section 4 'Step Changes' of the notice (yes or no)?
A4: RULES
A5: Business to Business (B2B) Procedures | B5: Comply with B2B procudures including Customer and Site Details Notification Process; Service Order Process; and Meter Data Process | C5: All | D5: No
A6: Queensland B2B Process Specification: Network Billing | B6: This document describes the automation of the network billing process, its associated transactions and the associated business rules. | C6: All | D6: No
A7: Retailer Handbook: Operating Procedures | B7: This document defines the standard protocols for communication and transactions between Energex and retailers operating within its distribution area. In the Standard Coordination Agreement it is known as the Operational Procedures. | C7: Connection Policy, ACS | D7: No

Sheet 7.4 Shared Assets
B1: =INDEX(dms_Worksheet_List,MATCH(dms_Model,dms_Model_List)) -> REGULATORY REPORTING STATEMENT
B2: =INDEX(dms_TradingNameFull_List,MATCH(dms_TradingName,dms_TradingName_List)) -> Energex
B3: =CONCATENATE("REGULATORY PERIOD FROM ", FRCP_y1," TO ",dms_MultiYear_FinalYear_Result) -> REGULATORY PERIOD FROM 2025-26 TO 2029-30
B4: 7.4 SHARED ASSETS
B5: TEMPLATE DATE - OCTOBER 2023 - FINAL RIN
B7: 7.4.1 - TOTAL UNREGULATED REVENUE EARNED WITH SHARED ASSETS
B8: Name of shared asset unregulated service | C8: Description of shared assets used to provide the service | D8: =CONCATENATE("Shared asset unregulated revenue ($, real ", dms_DollarReal,")") -> Shared asset unregulated revenue ($, real June 2025)
D9: =CRCP_y4 -> 2023-24 | E9: =CRCP_y5 -> 2024-25 | F9: =FRCP_y1 -> 2025-26 | G9: =FRCP_y2 -> 2026-27 | H9: =FRCP_y3 -> 2027-28 | I9: =FRCP_y4 -> 2028-29 | J9: =FRCP_y5 -> 2029-30 | K9: =CONCATENATE("Total ",FRCP_y1," to ", FRCP_y5) -> Total 2025-26 to 2029-30
B10: License fee for use of Energex electricty distribution network assets | C10: Energex owned electricity distribution network assets comprising of aerial transmission towers, distribution wood poles, public lighting columns and underground conduit and pit networks (used to support telephone or fibre optic cable for communication services for example) | D10: 9654421.951 | E10: 9341509.624 | F10: 9073850.883 | G10: 8826721.987 | H10: 8586323.716 | I10: 8352472.76 | J10: 8124990.801 | K10: =SUM(F10:J10) -> 42964360.15
K11: 0
K12: 0
K13: 0
K14: 0
K15: 0
K16: 0
K17: 0
K18: 0
K19: 0
K20: 0
K21: 0
K22: 0
K23: 0
K24: 0
B26: 7.4.2 - SHARED ASSET UNREGULATED SERVICES - APPORTIONMENT METHODOLOGY
B27: Name of shared asset unregulated service for which revenues were apportioned | C27: Apportionment methodology

Sheet 7.7 TSS-LRMC
B1: =INDEX(dms_Worksheet_List,MATCH(dms_Model,dms_Model_List)) -> REGULATORY REPORTING STATEMENT
B2: =INDEX(dms_TradingNameFull_List,MATCH(dms_TradingName,dms_TradingName_List)) -> Energex
B3: =CONCATENATE("REGULATORY PERIOD FROM ", FRCP_y1," TO ",dms_MultiYear_FinalYear_Result) -> REGULATORY PERIOD FROM 2025-26 TO 2029-30
B4: 7.7 - TARIFF STRUCTURE STATEMENT - INPUTS TO LRMC CALCULATION
B5: TEMPLATE DATE - OCTOBER 2023 - FINAL RIN
D7: ="Is "&dms_TradingName&" using the 'Average Incremental Cost' approach?" -> Is Energex using the 'Average Incremental Cost' approach?
F8: YES
B10: 7.7.1 - INPUTS TO LRMC CALCULATION - STANDARD CONTROL SERVICES - CAPEX
B11: 7.7.1.1 - SERIES A
C12: =CONCATENATE("FORECAST ($, real ", dms_DollarReal) -> FORECAST ($, real June 2025
C13: =CRCP_y4 -> 2023-24 | D13: =IF(dms_RPT="financial",(VALUE(LEFT(C13,4)+1)&"-"&MID(C13,3,2)+2),VALUE(LEFT(C13,4)+1)) -> 2024-25 | E13: 2025-26 | F13: 2026-27 | G13: 2027-28 | H13: 2028-29 | I13: 2029-30 | J13: 2030-31 | K13: 2031-32 | L13: 2032-33 | M13: 2033-34 | N13: 2034-35 | O13: 2035-36 | P13: 2036-37 | Q13: 2037-38 | R13: 2038-39 | S13: 2039-40 | T13: 2040-41 | U13: 2041-42 | V13: 2042-43
B14: Replacement expenditure
B15: Connections | C15: 3169320.126 | D15: 3053738.783 | E15: 3173740.05 | F15: 3282126.109 | G15: 3397328.219 | H15: 3517454.54 | I15: 3517454.54 | J15: 3517454.54 | K15: 3517454.54 | L15: 3517454.54
B16: Augmentation Expenditure | C16: 12431958.69 | D16: 21021448.12 | E16: 21606322.97 | F16: 16459116.87 | G16: 20266875.42 | H16: 18707367.63 | I16: 29201722.05 | J16: 21409225.39 | K16: 21409225.39 | L16: 21409225.39
B17: Non-network
B18: Export services | C18: 9000000 | D18: 9000000 | E18: 11656697.77 | F18: 23714797.88 | G18: 15311197.92 | H18: 17409208.84 | I18: 18009955.05 | J18: 16500000 | K18: 12000000 | L18: 12500000
B19: Capitalised network overheads
B20: Capitalised corporate overheads
B21: Total capex | C21: =SUM(C14:C20) -> 24601278.82 | D21: =SUM(D14:D20) -> 33075186.9 | E21: 36436760.79 | F21: 43456040.86 | G21: 38975401.56 | H21: 39634031.01 | I21: 50729131.64 | J21: 41426679.93 | K21: 36926679.93 | L21: 37426679.93 | M21: 0 | N21: 0 | O21: 0 | P21: 0 | Q21: 0 | R21: 0 | S21: 0 | T21: 0 | U21: 0 | V21: 0
B23: 7.7.1.2 - SERIES B
C24: =CONCATENATE("FORECAST ($, real ", dms_DollarReal) -> FORECAST ($, real June 2025
C25: =CRCP_y4 -> 2023-24 | D25: =IF(dms_RPT="financial",(VALUE(LEFT(C25,4)+1)&"-"&MID(C25,3,2)+2),VALUE(LEFT(C25,4)+1)) -> 2024-25 | E25: =IF(dms_RPT="financial",(VALUE(LEFT(D25,4)+1)&"-"&MID(D25,3,2)+2),VALUE(LEFT(D25,4)+1)) -> 2025-26 | F25: =IF(dms_RPT="financial",(VALUE(LEFT(E25,4)+1)&"-"&MID(E25,3,2)+2),VALUE(LEFT(E25,4)+1)) -> 2026-27 | G25: =IF(dms_RPT="financial",(VALUE(LEFT(F25,4)+1)&"-"&MID(F25,3,2)+2),VALUE(LEFT(F25,4)+1)) -> 2027-28 | H25: =IF(dms_RPT="financial",(VALUE(LEFT(G25,4)+1)&"-"&MID(G25,3,2)+2),VALUE(LEFT(G25,4)+1)) -> 2028-29 | I25: =IF(dms_RPT="financial",(VALUE(LEFT(H25,4)+1)&"-"&MID(H25,3,2)+2),VALUE(LEFT(H25,4)+1)) -> 2029-30 | J25: =IF(dms_RPT="financial",(VALUE(LEFT(I25,4)+1)&"-"&MID(I25,3,2)+2),VALUE(LEFT(I25,4)+1)) -> 2030-31 | K25: =IF(dms_RPT="financial",(VALUE(LEFT(J25,4)+1)&"-"&MID(J25,3,2)+2),VALUE(LEFT(J25,4)+1)) -> 2031-32 | L25: =IF(dms_RPT="financial",(VALUE(LEFT(K25,4)+1)&"-"&MID(K25,3,2)+2),VALUE(LEFT(K25,4)+1)) -> 2032-33 | M25: =IF(dms_RPT="financial",(VALUE(LEFT(L25,4)+1)&"-"&MID(L25,3,2)+2),VALUE(LEFT(L25,4)+1)) -> 2033-34 | N25: =IF(dms_RPT="financial",(VALUE(LEFT(M25,4)+1)&"-"&MID(M25,3,2)+2),VALUE(LEFT(M25,4)+1)) -> 2034-35 | O25: =IF(dms_RPT="financial",(VALUE(LEFT(N25,4)+1)&"-"&MID(N25,3,2)+2),VALUE(LEFT(N25,4)+1)) -> 2035-36 | P25: =IF(dms_RPT="financial",(VALUE(LEFT(O25,4)+1)&"-"&MID(O25,3,2)+2),VALUE(LEFT(O25,4)+1)) -> 2036-37 | Q25: =IF(dms_RPT="financial",(VALUE(LEFT(P25,4)+1)&"-"&MID(P25,3,2)+2),VALUE(LEFT(P25,4)+1)) -> 2037-38 | R25: =IF(dms_RPT="financial",(VALUE(LEFT(Q25,4)+1)&"-"&MID(Q25,3,2)+2),VALUE(LEFT(Q25,4)+1)) -> 2038-39 | S25: =IF(dms_RPT="financial",(VALUE(LEFT(R25,4)+1)&"-"&MID(R25,3,2)+2),VALUE(LEFT(R25,4)+1)) -> 2039-40 | T25: =IF(dms_RPT="financial",(VALUE(LEFT(S25,4)+1)&"-"&MID(S25,3,2)+2),VALUE(LEFT(S25,4)+1)) -> 2040-41 | U25: =IF(dms_RPT="financial",(VALUE(LEFT(T25,4)+1)&"-"&MID(T25,3,2)+2),VALUE(LEFT(T25,4)+1)) -> 2041-42 | V25: =IF(dms_RPT="financial",(VALUE(LEFT(U25,4)+1)&"-"&MID(U25,3,2)+2),VALUE(LEFT(U25,4)+1)) -> 2042-43
B26: Replacement expenditure
B27: Connections
B28: Augmentation Expenditure
B29: Non-network
B30: Export services
B31: Capitalised network overheads
B32: Capitalised corporate overheads
B33: Total capex | C33: =SUM(C26:C32) -> 0 | D33: =SUM(D26:D32) -> 0 | E33: 0 | F33: 0 | G33: 0 | H33: 0 | I33: 0 | J33: 0 | K33: 0 | L33: 0 | M33: 0 | N33: 0 | O33: 0 | P33: 0 | Q33: 0 | R33: 0 | S33: 0 | T33: 0 | U33: 0 | V33: 0
B35: 7.7.1.3 - SERIES C
C36: =CONCATENATE("FORECAST ($, real ", dms_DollarReal) -> FORECAST ($, real June 2025
C37: =CRCP_y4 -> 2023-24 | D37: =IF(dms_RPT="financial",(VALUE(LEFT(C37,4)+1)&"-"&MID(C37,3,2)+2),VALUE(LEFT(C37,4)+1)) -> 2024-25 | E37: =IF(dms_RPT="financial",(VALUE(LEFT(D37,4)+1)&"-"&MID(D37,3,2)+2),VALUE(LEFT(D37,4)+1)) -> 2025-26 | F37: =IF(dms_RPT="financial",(VALUE(LEFT(E37,4)+1)&"-"&MID(E37,3,2)+2),VALUE(LEFT(E37,4)+1)) -> 2026-27 | G37: =IF(dms_RPT="financial",(VALUE(LEFT(F37,4)+1)&"-"&MID(F37,3,2)+2),VALUE(LEFT(F37,4)+1)) -> 2027-28 | H37: =IF(dms_RPT="financial",(VALUE(LEFT(G37,4)+1)&"-"&MID(G37,3,2)+2),VALUE(LEFT(G37,4)+1)) -> 2028-29 | I37: =IF(dms_RPT="financial",(VALUE(LEFT(H37,4)+1)&"-"&MID(H37,3,2)+2),VALUE(LEFT(H37,4)+1)) -> 2029-30 | J37: =IF(dms_RPT="financial",(VALUE(LEFT(I37,4)+1)&"-"&MID(I37,3,2)+2),VALUE(LEFT(I37,4)+1)) -> 2030-31 | K37: =IF(dms_RPT="financial",(VALUE(LEFT(J37,4)+1)&"-"&MID(J37,3,2)+2),VALUE(LEFT(J37,4)+1)) -> 2031-32 | L37: =IF(dms_RPT="financial",(VALUE(LEFT(K37,4)+1)&"-"&MID(K37,3,2)+2),VALUE(LEFT(K37,4)+1)) -> 2032-33 | M37: =IF(dms_RPT="financial",(VALUE(LEFT(L37,4)+1)&"-"&MID(L37,3,2)+2),VALUE(LEFT(L37,4)+1)) -> 2033-34 | N37: =IF(dms_RPT="financial",(VALUE(LEFT(M37,4)+1)&"-"&MID(M37,3,2)+2),VALUE(LEFT(M37,4)+1)) -> 2034-35 | O37: =IF(dms_RPT="financial",(VALUE(LEFT(N37,4)+1)&"-"&MID(N37,3,2)+2),VALUE(LEFT(N37,4)+1)) -> 2035-36 | P37: =IF(dms_RPT="financial",(VALUE(LEFT(O37,4)+1)&"-"&MID(O37,3,2)+2),VALUE(LEFT(O37,4)+1)) -> 2036-37 | Q37: =IF(dms_RPT="financial",(VALUE(LEFT(P37,4)+1)&"-"&MID(P37,3,2)+2),VALUE(LEFT(P37,4)+1)) -> 2037-38 | R37: =IF(dms_RPT="financial",(VALUE(LEFT(Q37,4)+1)&"-"&MID(Q37,3,2)+2),VALUE(LEFT(Q37,4)+1)) -> 2038-39 | S37: =IF(dms_RPT="financial",(VALUE(LEFT(R37,4)+1)&"-"&MID(R37,3,2)+2),VALUE(LEFT(R37,4)+1)) -> 2039-40 | T37: =IF(dms_RPT="financial",(VALUE(LEFT(S37,4)+1)&"-"&MID(S37,3,2)+2),VALUE(LEFT(S37,4)+1)) -> 2040-41 | U37: =IF(dms_RPT="financial",(VALUE(LEFT(T37,4)+1)&"-"&MID(T37,3,2)+2),VALUE(LEFT(T37,4)+1)) -> 2041-42 | V37: =IF(dms_RPT="financial",(VALUE(LEFT(U37,4)+1)&"-"&MID(U37,3,2)+2),VALUE(LEFT(U37,4)+1)) -> 2042-43
B38: Replacement expenditure
B39: Connections
B40: Augmentation Expenditure
B41: Non-network
B42: Capitalised network overheads
B43: Capitalised corporate overheads
B44: Total capex | C44: =SUM(C37:C43) -> 0 | D44: 0 | E44: 0 | F44: 0 | G44: 0 | H44: 0 | I44: 0 | J44: 0 | K44: 0 | L44: 0 | M44: 0 | N44: 0 | O44: 0 | P44: 0 | Q44: 0 | R44: 0 | S44: 0 | T44: 0 | U44: 0 | V44: 0
B48: 7.7.2 - INPUTS TO LRMC CALCULATION - STANDARD CONTROL SERVICES - OPEX
B49: 7.7.2.1 - SERIES A
C50: =CONCATENATE("FORECAST ($, real ", dms_DollarReal) -> FORECAST ($, real June 2025
C51: =CRCP_y4 -> 2023-24 | D51: =IF(dms_RPT="financial",(VALUE(LEFT(C51,4)+1)&"-"&MID(C51,3,2)+2),VALUE(LEFT(C51,4)+1)) -> 2024-25 | E51: =IF(dms_RPT="financial",(VALUE(LEFT(D51,4)+1)&"-"&MID(D51,3,2)+2),VALUE(LEFT(D51,4)+1)) -> 2025-26 | F51: =IF(dms_RPT="financial",(VALUE(LEFT(E51,4)+1)&"-"&MID(E51,3,2)+2),VALUE(LEFT(E51,4)+1)) -> 2026-27 | G51: =IF(dms_RPT="financial",(VALUE(LEFT(F51,4)+1)&"-"&MID(F51,3,2)+2),VALUE(LEFT(F51,4)+1)) -> 2027-28 | H51: =IF(dms_RPT="financial",(VALUE(LEFT(G51,4)+1)&"-"&MID(G51,3,2)+2),VALUE(LEFT(G51,4)+1)) -> 2028-29 | I51: =IF(dms_RPT="financial",(VALUE(LEFT(H51,4)+1)&"-"&MID(H51,3,2)+2),VALUE(LEFT(H51,4)+1)) -> 2029-30 | J51: =IF(dms_RPT="financial",(VALUE(LEFT(I51,4)+1)&"-"&MID(I51,3,2)+2),VALUE(LEFT(I51,4)+1)) -> 2030-31 | K51: =IF(dms_RPT="financial",(VALUE(LEFT(J51,4)+1)&"-"&MID(J51,3,2)+2),VALUE(LEFT(J51,4)+1)) -> 2031-32 | L51: =IF(dms_RPT="financial",(VALUE(LEFT(K51,4)+1)&"-"&MID(K51,3,2)+2),VALUE(LEFT(K51,4)+1)) -> 2032-33 | M51: =IF(dms_RPT="financial",(VALUE(LEFT(L51,4)+1)&"-"&MID(L51,3,2)+2),VALUE(LEFT(L51,4)+1)) -> 2033-34 | N51: =IF(dms_RPT="financial",(VALUE(LEFT(M51,4)+1)&"-"&MID(M51,3,2)+2),VALUE(LEFT(M51,4)+1)) -> 2034-35 | O51: =IF(dms_RPT="financial",(VALUE(LEFT(N51,4)+1)&"-"&MID(N51,3,2)+2),VALUE(LEFT(N51,4)+1)) -> 2035-36 | P51: =IF(dms_RPT="financial",(VALUE(LEFT(O51,4)+1)&"-"&MID(O51,3,2)+2),VALUE(LEFT(O51,4)+1)) -> 2036-37 | Q51: =IF(dms_RPT="financial",(VALUE(LEFT(P51,4)+1)&"-"&MID(P51,3,2)+2),VALUE(LEFT(P51,4)+1)) -> 2037-38 | R51: =IF(dms_RPT="financial",(VALUE(LEFT(Q51,4)+1)&"-"&MID(Q51,3,2)+2),VALUE(LEFT(Q51,4)+1)) -> 2038-39 | S51: =IF(dms_RPT="financial",(VALUE(LEFT(R51,4)+1)&"-"&MID(R51,3,2)+2),VALUE(LEFT(R51,4)+1)) -> 2039-40 | T51: =IF(dms_RPT="financial",(VALUE(LEFT(S51,4)+1)&"-"&MID(S51,3,2)+2),VALUE(LEFT(S51,4)+1)) -> 2040-41 | U51: =IF(dms_RPT="financial",(VALUE(LEFT(T51,4)+1)&"-"&MID(T51,3,2)+2),VALUE(LEFT(T51,4)+1)) -> 2041-42 | V51: =IF(dms_RPT="financial",(VALUE(LEFT(U51,4)+1)&"-"&MID(U51,3,2)+2),VALUE(LEFT(U51,4)+1)) -> 2042-43
B52: Opex for import | C52: 149772.2766 | D52: 231121.7943 | E52: 237888.605 | F52: 189515.9326 | G52: 227176.355 | H52: 213358.2928 | I52: 314104.0953 | J52: 239296.1273 | K52: 239296.1273 | L52: 239296.1273
B53: Opex for export | C53: 90000 | D53: 90000 | E53: 116566.9777 | F53: 237147.9788 | G53: 153111.9792 | H53: 174092.0884 | I53: 180099.5505 | J53: 165000 | K53: 120000 | L53: 125000
B67: Total opex | C67: =SUM(C52:C66) -> 239772.2766 | D67: =SUM(D52:D66) -> 321121.7943 | E67: 354455.5827 | F67: 426663.9114 | G67: 380288.3342 | H67: 387450.3812 | I67: 494203.6458 | J67: 404296.1273 | K67: 359296.1273 | L67: 364296.1273 | M67: 0 | N67: 0 | O67: 0 | P67: 0 | Q67: 0 | R67: 0 | S67: 0 | T67: 0 | U67: 0 | V67: 0
B69: 7.7.2.2- SERIES B
C70: =CONCATENATE("FORECAST ($, real ", dms_DollarReal) -> FORECAST ($, real June 2025
C71: =CRCP_y4 -> 2023-24 | D71: =IF(dms_RPT="financial",(VALUE(LEFT(C71,4)+1)&"-"&MID(C71,3,2)+2),VALUE(LEFT(C71,4)+1)) -> 2024-25 | E71: =IF(dms_RPT="financial",(VALUE(LEFT(D71,4)+1)&"-"&MID(D71,3,2)+2),VALUE(LEFT(D71,4)+1)) -> 2025-26 | F71: =IF(dms_RPT="financial",(VALUE(LEFT(E71,4)+1)&"-"&MID(E71,3,2)+2),VALUE(LEFT(E71,4)+1)) -> 2026-27 | G71: =IF(dms_RPT="financial",(VALUE(LEFT(F71,4)+1)&"-"&MID(F71,3,2)+2),VALUE(LEFT(F71,4)+1)) -> 2027-28 | H71: =IF(dms_RPT="financial",(VALUE(LEFT(G71,4)+1)&"-"&MID(G71,3,2)+2),VALUE(LEFT(G71,4)+1)) -> 2028-29 | I71: =IF(dms_RPT="financial",(VALUE(LEFT(H71,4)+1)&"-"&MID(H71,3,2)+2),VALUE(LEFT(H71,4)+1)) -> 2029-30 | J71: =IF(dms_RPT="financial",(VALUE(LEFT(I71,4)+1)&"-"&MID(I71,3,2)+2),VALUE(LEFT(I71,4)+1)) -> 2030-31 | K71: =IF(dms_RPT="financial",(VALUE(LEFT(J71,4)+1)&"-"&MID(J71,3,2)+2),VALUE(LEFT(J71,4)+1)) -> 2031-32 | L71: =IF(dms_RPT="financial",(VALUE(LEFT(K71,4)+1)&"-"&MID(K71,3,2)+2),VALUE(LEFT(K71,4)+1)) -> 2032-33 | M71: =IF(dms_RPT="financial",(VALUE(LEFT(L71,4)+1)&"-"&MID(L71,3,2)+2),VALUE(LEFT(L71,4)+1)) -> 2033-34 | N71: =IF(dms_RPT="financial",(VALUE(LEFT(M71,4)+1)&"-"&MID(M71,3,2)+2),VALUE(LEFT(M71,4)+1)) -> 2034-35 | O71: =IF(dms_RPT="financial",(VALUE(LEFT(N71,4)+1)&"-"&MID(N71,3,2)+2),VALUE(LEFT(N71,4)+1)) -> 2035-36 | P71: =IF(dms_RPT="financial",(VALUE(LEFT(O71,4)+1)&"-"&MID(O71,3,2)+2),VALUE(LEFT(O71,4)+1)) -> 2036-37 | Q71: =IF(dms_RPT="financial",(VALUE(LEFT(P71,4)+1)&"-"&MID(P71,3,2)+2),VALUE(LEFT(P71,4)+1)) -> 2037-38 | R71: =IF(dms_RPT="financial",(VALUE(LEFT(Q71,4)+1)&"-"&MID(Q71,3,2)+2),VALUE(LEFT(Q71,4)+1)) -> 2038-39 | S71: =IF(dms_RPT="financial",(VALUE(LEFT(R71,4)+1)&"-"&MID(R71,3,2)+2),VALUE(LEFT(R71,4)+1)) -> 2039-40 | T71: =IF(dms_RPT="financial",(VALUE(LEFT(S71,4)+1)&"-"&MID(S71,3,2)+2),VALUE(LEFT(S71,4)+1)) -> 2040-41 | U71: =IF(dms_RPT="financial",(VALUE(LEFT(T71,4)+1)&"-"&MID(T71,3,2)+2),VALUE(LEFT(T71,4)+1)) -> 2041-42 | V71: =IF(dms_RPT="financial",(VALUE(LEFT(U71,4)+1)&"-"&MID(U71,3,2)+2),VALUE(LEFT(U71,4)+1)) -> 2042-43
B87: Total opex | C87: =SUM(C72:C86) -> 0 | D87: =SUM(D72:D86) -> 0 | E87: =SUM(E72:E86) -> 0 | F87: =SUM(F72:F86) -> 0 | G87: =SUM(G72:G86) -> 0 | H87: =SUM(H72:H86) -> 0 | I87: =SUM(I72:I86) -> 0 | J87: =SUM(J72:J86) -> 0 | K87: =SUM(K72:K86) -> 0 | L87: =SUM(L72:L86) -> 0 | M87: =SUM(M72:M86) -> 0 | N87: =SUM(N72:N86) -> 0 | O87: =SUM(O72:O86) -> 0 | P87: =SUM(P72:P86) -> 0 | Q87: =SUM(Q72:Q86) -> 0 | R87: =SUM(R72:R86) -> 0 | S87: =SUM(S72:S86) -> 0 | T87: =SUM(T72:T86) -> 0 | U87: =SUM(U72:U86) -> 0 | V87: =SUM(V72:V86) -> 0
B89: 7.7.2.3 - SERIES C
C90: =CONCATENATE("FORECAST ($, real ", dms_DollarReal) -> FORECAST ($, real June 2025
C91: =CRCP_y4 -> 2023-24 | D91: =IF(dms_RPT="financial",(VALUE(LEFT(C91,4)+1)&"-"&MID(C91,3,2)+2),VALUE(LEFT(C91,4)+1)) -> 2024-25 | E91: =IF(dms_RPT="financial",(VALUE(LEFT(D91,4)+1)&"-"&MID(D91,3,2)+2),VALUE(LEFT(D91,4)+1)) -> 2025-26 | F91: =IF(dms_RPT="financial",(VALUE(LEFT(E91,4)+1)&"-"&MID(E91,3,2)+2),VALUE(LEFT(E91,4)+1)) -> 2026-27 | G91: =IF(dms_RPT="financial",(VALUE(LEFT(F91,4)+1)&"-"&MID(F91,3,2)+2),VALUE(LEFT(F91,4)+1)) -> 2027-28 | H91: =IF(dms_RPT="financial",(VALUE(LEFT(G91,4)+1)&"-"&MID(G91,3,2)+2),VALUE(LEFT(G91,4)+1)) -> 2028-29 | I91: =IF(dms_RPT="financial",(VALUE(LEFT(H91,4)+1)&"-"&MID(H91,3,2)+2),VALUE(LEFT(H91,4)+1)) -> 2029-30 | J91: =IF(dms_RPT="financial",(VALUE(LEFT(I91,4)+1)&"-"&MID(I91,3,2)+2),VALUE(LEFT(I91,4)+1)) -> 2030-31 | K91: =IF(dms_RPT="financial",(VALUE(LEFT(J91,4)+1)&"-"&MID(J91,3,2)+2),VALUE(LEFT(J91,4)+1)) -> 2031-32 | L91: =IF(dms_RPT="financial",(VALUE(LEFT(K91,4)+1)&"-"&MID(K91,3,2)+2),VALUE(LEFT(K91,4)+1)) -> 2032-33 | M91: =IF(dms_RPT="financial",(VALUE(LEFT(L91,4)+1)&"-"&MID(L91,3,2)+2),VALUE(LEFT(L91,4)+1)) -> 2033-34 | N91: =IF(dms_RPT="financial",(VALUE(LEFT(M91,4)+1)&"-"&MID(M91,3,2)+2),VALUE(LEFT(M91,4)+1)) -> 2034-35 | O91: =IF(dms_RPT="financial",(VALUE(LEFT(N91,4)+1)&"-"&MID(N91,3,2)+2),VALUE(LEFT(N91,4)+1)) -> 2035-36 | P91: =IF(dms_RPT="financial",(VALUE(LEFT(O91,4)+1)&"-"&MID(O91,3,2)+2),VALUE(LEFT(O91,4)+1)) -> 2036-37 | Q91: =IF(dms_RPT="financial",(VALUE(LEFT(P91,4)+1)&"-"&MID(P91,3,2)+2),VALUE(LEFT(P91,4)+1)) -> 2037-38 | R91: =IF(dms_RPT="financial",(VALUE(LEFT(Q91,4)+1)&"-"&MID(Q91,3,2)+2),VALUE(LEFT(Q91,4)+1)) -> 2038-39 | S91: =IF(dms_RPT="financial",(VALUE(LEFT(R91,4)+1)&"-"&MID(R91,3,2)+2),VALUE(LEFT(R91,4)+1)) -> 2039-40 | T91: =IF(dms_RPT="financial",(VALUE(LEFT(S91,4)+1)&"-"&MID(S91,3,2)+2),VALUE(LEFT(S91,4)+1)) -> 2040-41 | U91: =IF(dms_RPT="financial",(VALUE(LEFT(T91,4)+1)&"-"&MID(T91,3,2)+2),VALUE(LEFT(T91,4)+1)) -> 2041-42 | V91: =IF(dms_RPT="financial",(VALUE(LEFT(U91,4)+1)&"-"&MID(U91,3,2)+2),VALUE(LEFT(U91,4)+1)) -> 2042-43
B107: Total opex | C107: =SUM(C92:C106) -> 0 | D107: =SUM(D92:D106) -> 0 | E107: =SUM(E92:E106) -> 0 | F107: =SUM(F92:F106) -> 0 | G107: =SUM(G92:G106) -> 0 | H107: =SUM(H92:H106) -> 0 | I107: =SUM(I92:I106) -> 0 | J107: =SUM(J92:J106) -> 0 | K107: =SUM(K92:K106) -> 0 | L107: =SUM(L92:L106) -> 0 | M107: =SUM(M92:M106) -> 0 | N107: =SUM(N92:N106) -> 0 | O107: =SUM(O92:O106) -> 0 | P107: =SUM(P92:P106) -> 0 | Q107: =SUM(Q92:Q106) -> 0 | R107: =SUM(R92:R106) -> 0 | S107: =SUM(S92:S106) -> 0 | T107: =SUM(T92:T106) -> 0 | U107: =SUM(U92:U106) -> 0 | V107: =SUM(V92:V106) -> 0
B111: 7.7.3 - INPUTS TO LRMC CALCULATION - DEMAND
B112: 7.7.3.1 - SERIES A
C113: FORECAST (MWh)
C114: =CRCP_y4 -> 2023-24 | D114: =IF(dms_RPT="financial",(VALUE(LEFT(C114,4)+1)&"-"&MID(C114,3,2)+2),VALUE(LEFT(C114,4)+1)) -> 2024-25 | E114: =IF(dms_RPT="financial",(VALUE(LEFT(D114,4)+1)&"-"&MID(D114,3,2)+2),VALUE(LEFT(D114,4)+1)) -> 2025-26 | F114: =IF(dms_RPT="financial",(VALUE(LEFT(E114,4)+1)&"-"&MID(E114,3,2)+2),VALUE(LEFT(E114,4)+1)) -> 2026-27 | G114: =IF(dms_RPT="financial",(VALUE(LEFT(F114,4)+1)&"-"&MID(F114,3,2)+2),VALUE(LEFT(F114,4)+1)) -> 2027-28 | H114: =IF(dms_RPT="financial",(VALUE(LEFT(G114,4)+1)&"-"&MID(G114,3,2)+2),VALUE(LEFT(G114,4)+1)) -> 2028-29 | I114: =IF(dms_RPT="financial",(VALUE(LEFT(H114,4)+1)&"-"&MID(H114,3,2)+2),VALUE(LEFT(H114,4)+1)) -> 2029-30 | J114: =IF(dms_RPT="financial",(VALUE(LEFT(I114,4)+1)&"-"&MID(I114,3,2)+2),VALUE(LEFT(I114,4)+1)) -> 2030-31 | K114: =IF(dms_RPT="financial",(VALUE(LEFT(J114,4)+1)&"-"&MID(J114,3,2)+2),VALUE(LEFT(J114,4)+1)) -> 2031-32 | L114: =IF(dms_RPT="financial",(VALUE(LEFT(K114,4)+1)&"-"&MID(K114,3,2)+2),VALUE(LEFT(K114,4)+1)) -> 2032-33 | M114: =IF(dms_RPT="financial",(VALUE(LEFT(L114,4)+1)&"-"&MID(L114,3,2)+2),VALUE(LEFT(L114,4)+1)) -> 2033-34 | N114: =IF(dms_RPT="financial",(VALUE(LEFT(M114,4)+1)&"-"&MID(M114,3,2)+2),VALUE(LEFT(M114,4)+1)) -> 2034-35 | O114: =IF(dms_RPT="financial",(VALUE(LEFT(N114,4)+1)&"-"&MID(N114,3,2)+2),VALUE(LEFT(N114,4)+1)) -> 2035-36 | P114: =IF(dms_RPT="financial",(VALUE(LEFT(O114,4)+1)&"-"&MID(O114,3,2)+2),VALUE(LEFT(O114,4)+1)) -> 2036-37 | Q114: =IF(dms_RPT="financial",(VALUE(LEFT(P114,4)+1)&"-"&MID(P114,3,2)+2),VALUE(LEFT(P114,4)+1)) -> 2037-38 | R114: =IF(dms_RPT="financial",(VALUE(LEFT(Q114,4)+1)&"-"&MID(Q114,3,2)+2),VALUE(LEFT(Q114,4)+1)) -> 2038-39 | S114: =IF(dms_RPT="financial",(VALUE(LEFT(R114,4)+1)&"-"&MID(R114,3,2)+2),VALUE(LEFT(R114,4)+1)) -> 2039-40 | T114: =IF(dms_RPT="financial",(VALUE(LEFT(S114,4)+1)&"-"&MID(S114,3,2)+2),VALUE(LEFT(S114,4)+1)) -> 2040-41 | U114: =IF(dms_RPT="financial",(VALUE(LEFT(T114,4)+1)&"-"&MID(T114,3,2)+2),VALUE(LEFT(T114,4)+1)) -> 2041-42 | V114: =IF(dms_RPT="financial",(VALUE(LEFT(U114,4)+1)&"-"&MID(U114,3,2)+2),VALUE(LEFT(U114,4)+1)) -> 2042-43
B115: Aggregated demand - all voltage levels (MW) | C115: 5536.689268 | D115: 5573.288535 | E115: 5601.787954 | F115: 5623.487533 | G115: 5647.18706 | H115: 5677.286453 | I115: 5705.485889 | J115: 5766.684684 | K115: 5833.48332 | L115: 5842.183149
B116: Export capacity (MW) | C116: 910.380422 | D116: 1242.069462 | E116: 1559.036954 | F116: 1864.400812 | G116: 2166.610809 | H116: 2448.559445 | I116: 2695.520091 | J116: 2892.133427 | K116: 3076.275213 | L116: 3254.628762
B125: Total demand | C125: =-SUM(C115:C124) -> -6447.06969 | D125: =-SUM(D115:D124) -> -6815.357997 | E125: -7160.824908 | F125: -7487.888345 | G125: -7813.797869 | H125: -8125.845898 | I125: -8401.00598 | J125: -8658.818111 | K125: -8909.758533 | L125: -9096.811911 | M125: 0 | N125: 0 | O125: 0 | P125: 0 | Q125: 0 | R125: 0 | S125: 0 | T125: 0 | U125: 0 | V125: 0
B127: 7.7.3.2 - SERIES B
C128: FORECAST (MWh)
C129: =CRCP_y4 -> 2023-24 | D129: =IF(dms_RPT="financial",(VALUE(LEFT(C129,4)+1)&"-"&MID(C129,3,2)+2),VALUE(LEFT(C129,4)+1)) -> 2024-25 | E129: =IF(dms_RPT="financial",(VALUE(LEFT(D129,4)+1)&"-"&MID(D129,3,2)+2),VALUE(LEFT(D129,4)+1)) -> 2025-26 | F129: =IF(dms_RPT="financial",(VALUE(LEFT(E129,4)+1)&"-"&MID(E129,3,2)+2),VALUE(LEFT(E129,4)+1)) -> 2026-27 | G129: =IF(dms_RPT="financial",(VALUE(LEFT(F129,4)+1)&"-"&MID(F129,3,2)+2),VALUE(LEFT(F129,4)+1)) -> 2027-28 | H129: =IF(dms_RPT="financial",(VALUE(LEFT(G129,4)+1)&"-"&MID(G129,3,2)+2),VALUE(LEFT(G129,4)+1)) -> 2028-29 | I129: =IF(dms_RPT="financial",(VALUE(LEFT(H129,4)+1)&"-"&MID(H129,3,2)+2),VALUE(LEFT(H129,4)+1)) -> 2029-30 | J129: =IF(dms_RPT="financial",(VALUE(LEFT(I129,4)+1)&"-"&MID(I129,3,2)+2),VALUE(LEFT(I129,4)+1)) -> 2030-31 | K129: =IF(dms_RPT="financial",(VALUE(LEFT(J129,4)+1)&"-"&MID(J129,3,2)+2),VALUE(LEFT(J129,4)+1)) -> 2031-32 | L129: =IF(dms_RPT="financial",(VALUE(LEFT(K129,4)+1)&"-"&MID(K129,3,2)+2),VALUE(LEFT(K129,4)+1)) -> 2032-33 | M129: =IF(dms_RPT="financial",(VALUE(LEFT(L129,4)+1)&"-"&MID(L129,3,2)+2),VALUE(LEFT(L129,4)+1)) -> 2033-34 | N129: =IF(dms_RPT="financial",(VALUE(LEFT(M129,4)+1)&"-"&MID(M129,3,2)+2),VALUE(LEFT(M129,4)+1)) -> 2034-35 | O129: =IF(dms_RPT="financial",(VALUE(LEFT(N129,4)+1)&"-"&MID(N129,3,2)+2),VALUE(LEFT(N129,4)+1)) -> 2035-36 | P129: =IF(dms_RPT="financial",(VALUE(LEFT(O129,4)+1)&"-"&MID(O129,3,2)+2),VALUE(LEFT(O129,4)+1)) -> 2036-37 | Q129: =IF(dms_RPT="financial",(VALUE(LEFT(P129,4)+1)&"-"&MID(P129,3,2)+2),VALUE(LEFT(P129,4)+1)) -> 2037-38 | R129: =IF(dms_RPT="financial",(VALUE(LEFT(Q129,4)+1)&"-"&MID(Q129,3,2)+2),VALUE(LEFT(Q129,4)+1)) -> 2038-39 | S129: =IF(dms_RPT="financial",(VALUE(LEFT(R129,4)+1)&"-"&MID(R129,3,2)+2),VALUE(LEFT(R129,4)+1)) -> 2039-40 | T129: =IF(dms_RPT="financial",(VALUE(LEFT(S129,4)+1)&"-"&MID(S129,3,2)+2),VALUE(LEFT(S129,4)+1)) -> 2040-41 | U129: =IF(dms_RPT="financial",(VALUE(LEFT(T129,4)+1)&"-"&MID(T129,3,2)+2),VALUE(LEFT(T129,4)+1)) -> 2041-42 | V129: =IF(dms_RPT="financial",(VALUE(LEFT(U129,4)+1)&"-"&MID(U129,3,2)+2),VALUE(LEFT(U129,4)+1)) -> 2042-43
B140: Total demand | C140: =-SUM(C130:C139) -> 0 | D140: =-SUM(D130:D139) -> 0 | E140: =-SUM(E130:E139) -> 0 | F140: =-SUM(F130:F139) -> 0 | G140: =-SUM(G130:G139) -> 0 | H140: =-SUM(H130:H139) -> 0 | I140: =-SUM(I130:I139) -> 0 | J140: =-SUM(J130:J139) -> 0 | K140: =-SUM(K130:K139) -> 0 | L140: =-SUM(L130:L139) -> 0 | M140: =-SUM(M130:M139) -> 0 | N140: =-SUM(N130:N139) -> 0 | O140: =-SUM(O130:O139) -> 0 | P140: =-SUM(P130:P139) -> 0 | Q140: =-SUM(Q130:Q139) -> 0 | R140: =-SUM(R130:R139) -> 0 | S140: =-SUM(S130:S139) -> 0 | T140: =-SUM(T130:T139) -> 0 | U140: =-SUM(U130:U139) -> 0 | V140: =-SUM(V130:V139) -> 0
B142: 7.7.3.3 - SERIES C
C143: FORECAST (MWh)
C144: =CRCP_y4 -> 2023-24 | D144: =IF(dms_RPT="financial",(VALUE(LEFT(C144,4)+1)&"-"&MID(C144,3,2)+2),VALUE(LEFT(C144,4)+1)) -> 2024-25 | E144: =IF(dms_RPT="financial",(VALUE(LEFT(D144,4)+1)&"-"&MID(D144,3,2)+2),VALUE(LEFT(D144,4)+1)) -> 2025-26 | F144: =IF(dms_RPT="financial",(VALUE(LEFT(E144,4)+1)&"-"&MID(E144,3,2)+2),VALUE(LEFT(E144,4)+1)) -> 2026-27 | G144: =IF(dms_RPT="financial",(VALUE(LEFT(F144,4)+1)&"-"&MID(F144,3,2)+2),VALUE(LEFT(F144,4)+1)) -> 2027-28 | H144: =IF(dms_RPT="financial",(VALUE(LEFT(G144,4)+1)&"-"&MID(G144,3,2)+2),VALUE(LEFT(G144,4)+1)) -> 2028-29 | I144: =IF(dms_RPT="financial",(VALUE(LEFT(H144,4)+1)&"-"&MID(H144,3,2)+2),VALUE(LEFT(H144,4)+1)) -> 2029-30 | J144: =IF(dms_RPT="financial",(VALUE(LEFT(I144,4)+1)&"-"&MID(I144,3,2)+2),VALUE(LEFT(I144,4)+1)) -> 2030-31 | K144: =IF(dms_RPT="financial",(VALUE(LEFT(J144,4)+1)&"-"&MID(J144,3,2)+2),VALUE(LEFT(J144,4)+1)) -> 2031-32 | L144: =IF(dms_RPT="financial",(VALUE(LEFT(K144,4)+1)&"-"&MID(K144,3,2)+2),VALUE(LEFT(K144,4)+1)) -> 2032-33 | M144: =IF(dms_RPT="financial",(VALUE(LEFT(L144,4)+1)&"-"&MID(L144,3,2)+2),VALUE(LEFT(L144,4)+1)) -> 2033-34 | N144: =IF(dms_RPT="financial",(VALUE(LEFT(M144,4)+1)&"-"&MID(M144,3,2)+2),VALUE(LEFT(M144,4)+1)) -> 2034-35 | O144: =IF(dms_RPT="financial",(VALUE(LEFT(N144,4)+1)&"-"&MID(N144,3,2)+2),VALUE(LEFT(N144,4)+1)) -> 2035-36 | P144: =IF(dms_RPT="financial",(VALUE(LEFT(O144,4)+1)&"-"&MID(O144,3,2)+2),VALUE(LEFT(O144,4)+1)) -> 2036-37 | Q144: =IF(dms_RPT="financial",(VALUE(LEFT(P144,4)+1)&"-"&MID(P144,3,2)+2),VALUE(LEFT(P144,4)+1)) -> 2037-38 | R144: =IF(dms_RPT="financial",(VALUE(LEFT(Q144,4)+1)&"-"&MID(Q144,3,2)+2),VALUE(LEFT(Q144,4)+1)) -> 2038-39 | S144: =IF(dms_RPT="financial",(VALUE(LEFT(R144,4)+1)&"-"&MID(R144,3,2)+2),VALUE(LEFT(R144,4)+1)) -> 2039-40 | T144: =IF(dms_RPT="financial",(VALUE(LEFT(S144,4)+1)&"-"&MID(S144,3,2)+2),VALUE(LEFT(S144,4)+1)) -> 2040-41 | U144: =IF(dms_RPT="financial",(VALUE(LEFT(T144,4)+1)&"-"&MID(T144,3,2)+2),VALUE(LEFT(T144,4)+1)) -> 2041-42 | V144: =IF(dms_RPT="financial",(VALUE(LEFT(U144,4)+1)&"-"&MID(U144,3,2)+2),VALUE(LEFT(U144,4)+1)) -> 2042-43
